Dept/Family,Entity,Expense Type,Expense Area,Supplier,Payment Date, Amount ,SME,UNSPCC Code,UNSPCC Description
"Department for Levelling Up, Housing and Communities",Homes England,Land Registry Fees,Corporate Resources,HM LAND REGISTRY,03/10/2023, 255.00 ,PUB,80131700,Escrow and title services
"Department for Levelling Up, Housing and Communities",Homes England,Land Registry Fees,Corporate Resources,HM LAND REGISTRY,17/10/2023, 264.00 ,PUB,80131700,Escrow and title services
"Department for Levelling Up, Housing and Communities",Homes England,Land Registry Fees,Corporate Resources,HM LAND REGISTRY,18/10/2023, 408.00 ,PUB,80131700,Escrow and title services
"Department for Levelling Up, Housing and Communities",Homes England,CAP GRNTS TO LOCAL AUTHORITIES,Investment,The Metropolitan Borough of Bury,03/10/2023," 210,000.00 ",PUB,None,Grants
"Department for Levelling Up, Housing and Communities",Homes England,REV GRNTS TO LOCAL AUTHORITIES,Investment,MANCHESTER CITY COUNCIL,03/10/2023, 710.00 ,PUB,None,Grants
"Department for Levelling Up, Housing and Communities",Homes England,REV GRNTS TO LOCAL AUTHORITIES,Investment,SHEFFIELD CITY COUNCIL,03/10/2023, 761.00 ,PUB,None,Grants
"Department for Levelling Up, Housing and Communities",Homes England,REV GRNTS TO LOCAL AUTHORITIES,Investment,NEWCASTLE CITY COUNCIL,26/10/2023," 90,574.00 ",PUB,None,Grants
"Department for Levelling Up, Housing and Communities",Homes England,CAP GRNTS TO LOCAL AUTHORITIES,Investment,DUDLEY METROPOLITAN BOROUGH COUNCIL,05/10/2023," 139,125.00 ",PUB,None,Grants
"Department for Levelling Up, Housing and Communities",Homes England,REV GRNTS TO LOCAL AUTHORITIES,Investment,DUDLEY METROPOLITAN BOROUGH COUNCIL,12/10/2023," 23,750.00 ",PUB,None,Grants
"Department for Levelling Up, Housing and Communities",Homes England,CAP GRNTS TO LOCAL AUTHORITIES,Investment,DUDLEY METROPOLITAN BOROUGH COUNCIL,18/10/2023," 141,775.00 ",PUB,None,Grants
"Department for Levelling Up, Housing and Communities",Homes England,REV GRNTS TO LOCAL AUTHORITIES,Investment,DUDLEY METROPOLITAN BOROUGH COUNCIL,20/10/2023," 23,750.00 ",PUB,None,Grants
"Department for Levelling Up, Housing and Communities",Homes England,CAP GRNTS TO LOCAL AUTHORITIES,Investment,DUDLEY METROPOLITAN BOROUGH COUNCIL,23/10/2023," 41,250.00 ",PUB,None,Grants
"Department for Levelling Up, Housing and Communities",Homes England,CAP GRNTS TO LOCAL AUTHORITIES,Investment,SOLIHULL METROPOLITAN BOROUGH COUNCIL,25/10/2023," 2,057,100.00 ",PUB,None,Grants
"Department for Levelling Up, Housing and Communities",Homes England,REV GRNTS TO LOCAL AUTHORITIES,Investment,WOLVERHAMPTON CITY COUNCIL,13/10/2023," 18,125.00 ",PUB,None,Grants
"Department for Levelling Up, Housing and Communities",Homes England,REV GRNTS TO LOCAL AUTHORITIES,Investment,LEEDS CITY COUNCIL,13/10/2023," 22,500.00 ",PUB,None,Grants
"Department for Levelling Up, Housing and Communities",Homes England,REV GRNTS TO LOCAL AUTHORITIES,Investment,LEEDS CITY COUNCIL,24/10/2023," 25,000.00 ",PUB,None,Grants
"Department for Levelling Up, Housing and Communities",Homes England,REV GRNTS TO LOCAL AUTHORITIES,Investment,DARLINGTON BOROUGH COUNCIL,05/10/2023," 2,118.00 ",PUB,None,Grants
"Department for Levelling Up, Housing and Communities",Homes England,REV GRNTS TO LOCAL AUTHORITIES,Investment,DARLINGTON BOROUGH COUNCIL,05/10/2023," 2,187.00 ",PUB,None,Grants
"Department for Levelling Up, Housing and Communities",Homes England,REV GRNTS TO LOCAL AUTHORITIES,Investment,DARLINGTON BOROUGH COUNCIL,05/10/2023," 2,187.00 ",PUB,None,Grants
"Department for Levelling Up, Housing and Communities",Homes England,REV GRNTS TO LOCAL AUTHORITIES,Investment,DARLINGTON BOROUGH COUNCIL,05/10/2023," 2,187.00 ",PUB,None,Grants
"Department for Levelling Up, Housing and Communities",Homes England,CAP GRNTS TO LOCAL AUTHORITIES,Investment,CHESHIRE WEST AND CHESTER COUNCIL,30/10/2023," 31,139.00 ",PUB,None,Grants
"Department for Levelling Up, Housing and Communities",Homes England,REV GRNTS TO LOCAL AUTHORITIES,Investment,KINGSTON UPON HULL CITY COUNCIL,02/10/2023," 20,262.00 ",PUB,None,Grants
"Department for Levelling Up, Housing and Communities",Homes England,REV GRNTS TO LOCAL AUTHORITIES,Investment,KINGSTON UPON HULL CITY COUNCIL,02/10/2023," 20,262.00 ",PUB,None,Grants
"Department for Levelling Up, Housing and Communities",Homes England,REV GRNTS TO LOCAL AUTHORITIES,Investment,KINGSTON UPON HULL CITY COUNCIL,26/10/2023," 20,259.00 ",PUB,None,Grants
"Department for Levelling Up, Housing and Communities",Homes England,REV GRNTS TO LOCAL AUTHORITIES,Investment,KINGSTON UPON HULL CITY COUNCIL,26/10/2023," 20,262.00 ",PUB,None,Grants
"Department for Levelling Up, Housing and Communities",Homes England,REV GRNTS TO LOCAL AUTHORITIES,Investment,KINGSTON UPON HULL CITY COUNCIL,30/10/2023," 20,259.00 ",PUB,None,Grants
"Department for Levelling Up, Housing and Communities",Homes England,REV GRNTS TO LOCAL AUTHORITIES,Investment,KINGSTON UPON HULL CITY COUNCIL,30/10/2023," 20,259.00 ",PUB,None,Grants
"Department for Levelling Up, Housing and Communities",Homes England,CAP GRNTS TO LOCAL AUTHORITIES,Investment,EAST RIDING OF YORKSHIRE COUNCIL,03/10/2023," 26,000.00 ",PUB,None,Grants
"Department for Levelling Up, Housing and Communities",Homes England,CAP GRNTS TO LOCAL AUTHORITIES,Investment,EAST RIDING OF YORKSHIRE COUNCIL,04/10/2023," 26,000.00 ",PUB,None,Grants
"Department for Levelling Up, Housing and Communities",Homes England,CAP GRNTS TO LOCAL AUTHORITIES,Investment,EAST RIDING OF YORKSHIRE COUNCIL,06/10/2023," 22,750.00 ",PUB,None,Grants
"Department for Levelling Up, Housing and Communities",Homes England,CAP GRNTS TO LOCAL AUTHORITIES,Investment,EAST RIDING OF YORKSHIRE COUNCIL,13/10/2023," 852,000.00 ",PUB,None,Grants
"Department for Levelling Up, Housing and Communities",Homes England,CAP GRNTS TO LOCAL AUTHORITIES,Investment,CITY OF YORK COUNCIL,06/10/2023," 12,000.00 ",PUB,None,Grants
"Department for Levelling Up, Housing and Communities",Homes England,CAP GRNTS TO LOCAL AUTHORITIES,Investment,CITY OF YORK COUNCIL,06/10/2023," 12,000.00 ",PUB,None,Grants
"Department for Levelling Up, Housing and Communities",Homes England,CAP GRNTS TO LOCAL AUTHORITIES,Investment,CITY OF YORK COUNCIL,12/10/2023," 36,000.00 ",PUB,None,Grants
"Department for Levelling Up, Housing and Communities",Homes England,REV GRNTS TO LOCAL AUTHORITIES,Investment,BRISTOL CITY COUNCIL,20/10/2023," 66,606.00 ",PUB,None,Grants
"Department for Levelling Up, Housing and Communities",Homes England,REV GRNTS TO LOCAL AUTHORITIES,Investment,CORNWALL COUNCIL,05/10/2023," 25,178.00 ",PUB,None,Grants
"Department for Levelling Up, Housing and Communities",Homes England,REV GRNTS TO LOCAL AUTHORITIES,Investment,CORNWALL COUNCIL,05/10/2023," 2,797.00 ",PUB,None,Grants
"Department for Levelling Up, Housing and Communities",Homes England,REV GRNTS TO LOCAL AUTHORITIES,Investment,CORNWALL COUNCIL,06/10/2023," 27,975.00 ",PUB,None,Grants
"Department for Levelling Up, Housing and Communities",Homes England,REV GRNTS TO LOCAL AUTHORITIES,"Markets, Partners & Places",SOUTHEND ON SEA CITY COUNCIL,20/10/2023," 9,400.00 ",PUB,None,Grants
"Department for Levelling Up, Housing and Communities",Homes England,REV GRNTS TO LOCAL AUTHORITIES,Investment,BRIGHTON & HOVE CITY COUNCIL,02/10/2023," 30,000.00 ",PUB,None,Grants
"Department for Levelling Up, Housing and Communities",Homes England,CAP GRNTS TO LOCAL AUTHORITIES,Investment,DOVER DISTRICT COUNCIL,26/10/2023," 491,991.79 ",PUB,None,Grants
"Department for Levelling Up, Housing and Communities",Homes England,INSURANCES,Chief Operating Officer,COVENTRY CITY COUNCIL,04/10/2023," 81,764.70 ",PUB,80131500,Lease and rental of property or building
"Department for Levelling Up, Housing and Communities",Homes England,RATES,Chief Operating Officer,COVENTRY CITY COUNCIL,05/10/2023, 111.16 ,PUB,80131500,Lease and rental of property or building
"Department for Levelling Up, Housing and Communities",Homes England,INSURANCES,Chief Operating Officer,COVENTRY CITY COUNCIL,05/10/2023," 6,582.47 ",PUB,80131500,Lease and rental of property or building
"Department for Levelling Up, Housing and Communities",Homes England,REV GRNTS TO LOCAL AUTHORITIES,Investment,CAMBRIDGE CITY COUNCIL,03/10/2023," 6,179.00 ",PUB,None,Grants
"Department for Levelling Up, Housing and Communities",Homes England,TRAINING COURSES & CONFERENCES,Development,THE OPEN UNIVERSITY,26/10/2023," 3,462.00 ",LAR,86101800,In service training and manpower development
"Department for Levelling Up, Housing and Communities",Homes England,TRAINING COURSES & CONFERENCES,Investment,THE OPEN UNIVERSITY,26/10/2023," 1,731.00 ",LAR,86101800,In service training and manpower development
"Department for Levelling Up, Housing and Communities",Homes England,PENSION SCHEME CONTRIBUTIONS,Corporate Allocations,LPFA,04/10/2023," 7,500.71 ",SMA,84131700,Pension funds
"Department for Levelling Up, Housing and Communities",Homes England,PENSION SCHEME CONTRIBUTIONS,Corporate Allocations,LPFA,31/10/2023," 7,500.71 ",SMA,84131700,Pension funds
"Department for Levelling Up, Housing and Communities",Homes England,REV GRNTS TO LOCAL AUTHORITIES,Investment,EASTBOURNE BOROUGH COUNCIL,05/10/2023, 775.00 ,PUB,None,Grants
"Department for Levelling Up, Housing and Communities",Homes England,REV GRNTS TO LOCAL AUTHORITIES,Investment,EASTBOURNE BOROUGH COUNCIL,05/10/2023," 37,500.00 ",PUB,None,Grants
"Department for Levelling Up, Housing and Communities",Homes England,REV GRNTS TO LOCAL AUTHORITIES,Investment,EASTBOURNE BOROUGH COUNCIL,05/10/2023, 775.00 ,PUB,None,Grants
"Department for Levelling Up, Housing and Communities",Homes England,REV GRNTS TO LOCAL AUTHORITIES,Investment,EASTBOURNE BOROUGH COUNCIL,10/10/2023," 3,750.00 ",PUB,None,Grants
"Department for Levelling Up, Housing and Communities",Homes England,CAP GRNTS TO LOCAL AUTHORITIES,Investment,COLCHESTER CITY COUNCIL,03/10/2023," 238,017.00 ",PUB,None,Grants
"Department for Levelling Up, Housing and Communities",Homes England,ESTATE GENERAL MAINTENANCE,Development,IDVERDE LIMITED,03/10/2023," 1,159.86 ",LAR,72101500,Building maintenance and repair services
"Department for Levelling Up, Housing and Communities",Homes England,ESTATE GENERAL MAINTENANCE,Development,IDVERDE LIMITED,18/10/2023," 1,159.86 ",LAR,72101500,Building maintenance and repair services
"Department for Levelling Up, Housing and Communities",Homes England,ESTATE GENERAL MAINTENANCE,Development,IDVERDE LIMITED,20/10/2023," 1,159.86 ",LAR,72101500,Building maintenance and repair services
"Department for Levelling Up, Housing and Communities",Homes England,LANDSCAPE MAINT-BUILT ESTATE,"Markets, Partners & Places",LOWTHER FORESTRY GROUP,10/10/2023, 774.00 ,SMA,72102900,Facility maintenance and repair services
"Department for Levelling Up, Housing and Communities",Homes England,LANDSCAPE MAINT-BUILT ESTATE,"Markets, Partners & Places",LOWTHER FORESTRY GROUP,10/10/2023, 668.50 ,SMA,72102900,Facility maintenance and repair services
"Department for Levelling Up, Housing and Communities",Homes England,LANDSCAPE MAINT-BUILT ESTATE,"Markets, Partners & Places",LOWTHER FORESTRY GROUP,26/10/2023, 668.50 ,SMA,72102900,Facility maintenance and repair services
"Department for Levelling Up, Housing and Communities",Homes England,IRON MOUNTAIN-STORAGE,Corporate Resources,IRON MOUNTAIN (UK) LTD,04/10/2023," 5,083.54 ",LAR,78131800,Specialized warehousing and storage
"Department for Levelling Up, Housing and Communities",Homes England,CAP GRNTS TO LOCAL AUTHORITIES,Investment,DACORUM BOROUGH COUNCIL,05/10/2023," 101,576.00 ",PUB,None,Grants
"Department for Levelling Up, Housing and Communities",Homes England,REV GRNTS TO LOCAL AUTHORITIES,Investment,MAIDSTONE BOROUGH COUNCIL,20/10/2023," 21,667.00 ",PUB,None,Grants
"Department for Levelling Up, Housing and Communities",Homes England,CAP GRNTS TO LOCAL AUTHORITIES,Investment,LANCASTER CITY COUNCIL,09/10/2023," 177,000.00 ",PUB,None,Grants
"Department for Levelling Up, Housing and Communities",Homes England,PLANNING FEES,Development,WEST LANCASHIRE BOROUGH COUNCIL,31/10/2023,"-1,800.00 ",PUB,80131800,Real estate management services
"Department for Levelling Up, Housing and Communities",Homes England,MANAGEMENT COSTS,Development,NETWORK RAIL INFRASTRUCTURE LTD,17/10/2023, 699.84 ,LAR,80131800,Real estate management services
"Department for Levelling Up, Housing and Communities",Homes England,ROADS AND CAR PARKS,Development,GROUND CONTROL LIMITED,03/10/2023, 544.52 ,LAR,72101500,Building maintenance and repair services
"Department for Levelling Up, Housing and Communities",Homes England,ESTATE GENERAL MAINTENANCE,Development,GROUND CONTROL LIMITED,31/10/2023, 544.52 ,LAR,72101500,Building maintenance and repair services
"Department for Levelling Up, Housing and Communities",Homes England,ESTATE GENERAL MAINTENANCE,Development,GROUND CONTROL LIMITED,31/10/2023, 544.52 ,LAR,72101500,Building maintenance and repair services
"Department for Levelling Up, Housing and Communities",Homes England,ROADS AND CAR PARKS,Development,GROUND CONTROL LIMITED,31/10/2023, 544.52 ,LAR,72101500,Building maintenance and repair services
"Department for Levelling Up, Housing and Communities",Homes England,REV GRNTS TO LOCAL AUTHORITIES,Investment,CITY OF LINCOLN COUNCIL,04/10/2023," 1,447.00 ",PUB,None,Grants
"Department for Levelling Up, Housing and Communities",Homes England,REV GRNTS TO LOCAL AUTHORITIES,Investment,CITY OF LINCOLN COUNCIL,04/10/2023," 1,447.00 ",PUB,None,Grants
"Department for Levelling Up, Housing and Communities",Homes England,REV GRNTS TO LOCAL AUTHORITIES,Investment,CITY OF LINCOLN COUNCIL,04/10/2023," 1,447.00 ",PUB,None,Grants
"Department for Levelling Up, Housing and Communities",Homes England,REV GRNTS TO LOCAL AUTHORITIES,Investment,CITY OF LINCOLN COUNCIL,04/10/2023," 12,887.00 ",PUB,None,Grants
"Department for Levelling Up, Housing and Communities",Homes England,REV GRNTS TO LOCAL AUTHORITIES,Investment,NORTH KESTEVEN DISTRICT COUNCIL,09/10/2023," 4,189.00 ",PUB,None,Grants
"Department for Levelling Up, Housing and Communities",Homes England,REV GRNTS TO LOCAL AUTHORITIES,Investment,SOUTH HOLLAND DISTRICT COUNCIL,03/10/2023," 2,973.00 ",PUB,None,Grants
"Department for Levelling Up, Housing and Communities",Homes England,REV GRNTS TO LOCAL AUTHORITIES,Investment,SOUTH HOLLAND DISTRICT COUNCIL,03/10/2023," 2,973.00 ",PUB,None,Grants
"Department for Levelling Up, Housing and Communities",Homes England,REV GRNTS TO LOCAL AUTHORITIES,Investment,SOUTH HOLLAND DISTRICT COUNCIL,04/10/2023," 1,411.00 ",PUB,None,Grants
"Department for Levelling Up, Housing and Communities",Homes England,REV GRNTS TO LOCAL AUTHORITIES,Investment,SOUTH HOLLAND DISTRICT COUNCIL,04/10/2023," 1,411.00 ",PUB,None,Grants
"Department for Levelling Up, Housing and Communities",Homes England,REV GRNTS TO LOCAL AUTHORITIES,Investment,SOUTH HOLLAND DISTRICT COUNCIL,04/10/2023," 1,411.00 ",PUB,None,Grants
"Department for Levelling Up, Housing and Communities",Homes England,REV GRNTS TO LOCAL AUTHORITIES,Investment,SOUTH HOLLAND DISTRICT COUNCIL,04/10/2023," 1,410.00 ",PUB,None,Grants
"Department for Levelling Up, Housing and Communities",Homes England,REV GRNTS TO LOCAL AUTHORITIES,Investment,SOUTH HOLLAND DISTRICT COUNCIL,04/10/2023," 2,844.00 ",PUB,None,Grants
"Department for Levelling Up, Housing and Communities",Homes England,REV GRNTS TO LOCAL AUTHORITIES,Investment,SOUTH HOLLAND DISTRICT COUNCIL,05/10/2023," 2,706.00 ",PUB,None,Grants
"Department for Levelling Up, Housing and Communities",Homes England,REV GRNTS TO LOCAL AUTHORITIES,Investment,GREAT YARMOUTH BOROUGH COUNCIL,09/10/2023," 2,027.00 ",PUB,None,Grants
"Department for Levelling Up, Housing and Communities",Homes England,REV GRNTS TO LOCAL AUTHORITIES,Investment,GREAT YARMOUTH BOROUGH COUNCIL,09/10/2023," 2,027.00 ",PUB,None,Grants
"Department for Levelling Up, Housing and Communities",Homes England,REV GRNTS TO LOCAL AUTHORITIES,Investment,GREAT YARMOUTH BOROUGH COUNCIL,09/10/2023," 2,027.00 ",PUB,None,Grants
"Department for Levelling Up, Housing and Communities",Homes England,REV GRNTS TO LOCAL AUTHORITIES,Investment,GREAT YARMOUTH BOROUGH COUNCIL,09/10/2023," 2,027.00 ",PUB,None,Grants
"Department for Levelling Up, Housing and Communities",Homes England,REV GRNTS TO LOCAL AUTHORITIES,Investment,GREAT YARMOUTH BOROUGH COUNCIL,09/10/2023," 2,027.00 ",PUB,None,Grants
"Department for Levelling Up, Housing and Communities",Homes England,REV GRNTS TO LOCAL AUTHORITIES,Investment,NEWARK AND SHERWOOD DISTRICT COUNCIL,06/10/2023," 7,379.00 ",PUB,None,Grants
"Department for Levelling Up, Housing and Communities",Homes England,CAP GRNTS TO LOCAL AUTHORITIES,Investment,CORNWALL COUNCIL,30/10/2023," 2,663,347.70 ",PUB,None,Grants
"Department for Levelling Up, Housing and Communities",Homes England,CAP GRNTS TO LOCAL AUTHORITIES,Investment,MEDWAY COUNCIL,16/10/2023," 1,217,494.32 ",PUB,None,Grants
"Department for Levelling Up, Housing and Communities",Homes England,OTHER PROFESSIONAL FEES,Development,CAMBRIDGESHIRE COUNTY COUNCIL,24/10/2023," 8,250.00 ",PUB,80131800,Real estate management services
"Department for Levelling Up, Housing and Communities",Homes England,OTHER PROFESSIONAL FEES,Development,CAMBRIDGESHIRE COUNTY COUNCIL,24/10/2023," 1,220.21 ",PUB,80131800,Real estate management services
"Department for Levelling Up, Housing and Communities",Homes England,CAP GRNTS TO LOCAL AUTHORITIES,Investment,DEVON COUNTY COUNCIL,25/10/2023," 370,747.02 ",PUB,None,Grants
"Department for Levelling Up, Housing and Communities",Homes England,CAP GRNTS TO LOCAL AUTHORITIES,Investment,HAMPSHIRE COUNTY COUNCIL,30/10/2023," 772,462.76 ",PUB,None,Grants
"Department for Levelling Up, Housing and Communities",Homes England,OTHER PROFESSIONAL FEES,Development,THE LAND TRUST,18/10/2023," 4,470.41 ",MED,77101500,Environmental auditing
"Department for Levelling Up, Housing and Communities",Homes England,REV GRNTS TO LOCAL AUTHORITIES,Investment,WAVERLEY BOROUGH COUNCIL,18/10/2023," 1,513.00 ",PUB,None,Grants
"Department for Levelling Up, Housing and Communities",Homes England,REV GRNTS TO LOCAL AUTHORITIES,Investment,WOKING BOROUGH COUNCIL,18/10/2023," 1,282.00 ",PUB,None,Grants
"Department for Levelling Up, Housing and Communities",Homes England,REV GRNTS TO LOCAL AUTHORITIES,Investment,WOKING BOROUGH COUNCIL,18/10/2023," 1,282.00 ",PUB,None,Grants
"Department for Levelling Up, Housing and Communities",Homes England,REV GRNTS TO LOCAL AUTHORITIES,Investment,WOKING BOROUGH COUNCIL,18/10/2023," 1,282.00 ",PUB,None,Grants
"Department for Levelling Up, Housing and Communities",Homes England,REV GRNTS TO LOCAL AUTHORITIES,Investment,WOKING BOROUGH COUNCIL,18/10/2023," 1,282.00 ",PUB,None,Grants
"Department for Levelling Up, Housing and Communities",Homes England,REV GRNTS TO LOCAL AUTHORITIES,Investment,WOKING BOROUGH COUNCIL,18/10/2023," 1,282.00 ",PUB,None,Grants
"Department for Levelling Up, Housing and Communities",Homes England,REV GRNTS TO LOCAL AUTHORITIES,Investment,WOKING BOROUGH COUNCIL,18/10/2023," 1,282.00 ",PUB,None,Grants
"Department for Levelling Up, Housing and Communities",Homes England,REV GRNTS TO LOCAL AUTHORITIES,Investment,WOKING BOROUGH COUNCIL,18/10/2023," 1,282.00 ",PUB,None,Grants
"Department for Levelling Up, Housing and Communities",Homes England,REV GRNTS TO LOCAL AUTHORITIES,Investment,WOKING BOROUGH COUNCIL,18/10/2023," 1,282.00 ",PUB,None,Grants
"Department for Levelling Up, Housing and Communities",Homes England,REV GRNTS TO LOCAL AUTHORITIES,Investment,WOKING BOROUGH COUNCIL,20/10/2023," 1,281.00 ",PUB,None,Grants
"Department for Levelling Up, Housing and Communities",Homes England,REV GRNTS TO LOCAL AUTHORITIES,Investment,WOKING BOROUGH COUNCIL,20/10/2023," 1,281.00 ",PUB,None,Grants
"Department for Levelling Up, Housing and Communities",Homes England,REV GRNTS TO LOCAL AUTHORITIES,Investment,WOKING BOROUGH COUNCIL,20/10/2023," 1,281.00 ",PUB,None,Grants
"Department for Levelling Up, Housing and Communities",Homes England,REV GRNTS TO LOCAL AUTHORITIES,Investment,WOKING BOROUGH COUNCIL,20/10/2023," 1,281.00 ",PUB,None,Grants
"Department for Levelling Up, Housing and Communities",Homes England,REV GRNTS TO LOCAL AUTHORITIES,Investment,WOKING BOROUGH COUNCIL,20/10/2023," 1,281.00 ",PUB,None,Grants
"Department for Levelling Up, Housing and Communities",Homes England,REV GRNTS TO LOCAL AUTHORITIES,Investment,WOKING BOROUGH COUNCIL,20/10/2023," 1,281.00 ",PUB,None,Grants
"Department for Levelling Up, Housing and Communities",Homes England,REV GRNTS TO LOCAL AUTHORITIES,Investment,WOKING BOROUGH COUNCIL,20/10/2023," 1,281.00 ",PUB,None,Grants
"Department for Levelling Up, Housing and Communities",Homes England,REV GRNTS TO LOCAL AUTHORITIES,Investment,WOKING BOROUGH COUNCIL,20/10/2023," 1,281.00 ",PUB,None,Grants
"Department for Levelling Up, Housing and Communities",Homes England,CAPITAL GRANTS TO RPs,Investment,FIRST CHOICE HOMES OLDHAM LIMITED,02/10/2023," 225,000.00 ",LAR,None,Grants
"Department for Levelling Up, Housing and Communities",Homes England,CAPITAL GRANTS TO RPs,Investment,FIRST CHOICE HOMES OLDHAM LIMITED,02/10/2023," 396,000.00 ",LAR,None,Grants
"Department for Levelling Up, Housing and Communities",Homes England,CAPITAL GRANTS TO RPs,Investment,FIRST CHOICE HOMES OLDHAM LIMITED,06/10/2023," 75,000.00 ",LAR,None,Grants
"Department for Levelling Up, Housing and Communities",Homes England,CAPITAL GRANTS TO RPs,Investment,FIRST CHOICE HOMES OLDHAM LIMITED,31/10/2023," 68,000.00 ",LAR,None,Grants
"Department for Levelling Up, Housing and Communities",Homes England,CAPITAL GRANTS TO RPs,Investment,SAGE HOUSING LIMITED,25/10/2023," 222,500.00 ",MED,None,Grants
"Department for Levelling Up, Housing and Communities",Homes England,REV GRNTS TO LOCAL AUTHORITIES,Investment,ACTION HOUSING AND SUPPORT,20/10/2023," 21,600.00 ",MED,None,Grants
"Department for Levelling Up, Housing and Communities",Homes England,REV GRNTS TO LOCAL AUTHORITIES,Investment,ACTION HOUSING AND SUPPORT,25/10/2023," 7,697.00 ",MED,None,Grants
"Department for Levelling Up, Housing and Communities",Homes England,REV GRNTS TO LOCAL AUTHORITIES,Investment,ACTION HOUSING AND SUPPORT,30/10/2023, 252.00 ,MED,None,Grants
"Department for Levelling Up, Housing and Communities",Homes England,REV GRNTS TO LOCAL AUTHORITIES,Investment,ACTION HOUSING AND SUPPORT,30/10/2023," 1,579.00 ",MED,None,Grants
"Department for Levelling Up, Housing and Communities",Homes England,REV GRNTS TO LOCAL AUTHORITIES,Investment,ACTION HOUSING AND SUPPORT,30/10/2023, 253.00 ,MED,None,Grants
"Department for Levelling Up, Housing and Communities",Homes England,REV GRNTS TO LOCAL AUTHORITIES,Investment,ACTION HOUSING AND SUPPORT,30/10/2023, 253.00 ,MED,None,Grants
"Department for Levelling Up, Housing and Communities",Homes England,REV GRNTS TO LOCAL AUTHORITIES,Investment,ACTION HOUSING AND SUPPORT,30/10/2023," 1,579.00 ",MED,None,Grants
"Department for Levelling Up, Housing and Communities",Homes England,REV GRNTS TO LOCAL AUTHORITIES,Investment,ACTION HOUSING AND SUPPORT,30/10/2023," 1,361.00 ",MED,None,Grants
"Department for Levelling Up, Housing and Communities",Homes England,REV GRNTS TO LOCAL AUTHORITIES,Investment,ACTION HOUSING AND SUPPORT,30/10/2023, 253.00 ,MED,None,Grants
"Department for Levelling Up, Housing and Communities",Homes England,REV GRNTS TO LOCAL AUTHORITIES,Investment,ACTION HOUSING AND SUPPORT,30/10/2023, 253.00 ,MED,None,Grants
"Department for Levelling Up, Housing and Communities",Homes England,REV GRNTS TO LOCAL AUTHORITIES,Investment,ACTION HOUSING AND SUPPORT,30/10/2023," 1,579.00 ",MED,None,Grants
"Department for Levelling Up, Housing and Communities",Homes England,REV GRNTS TO LOCAL AUTHORITIES,Investment,ACTION HOUSING AND SUPPORT,30/10/2023," 1,579.00 ",MED,None,Grants
"Department for Levelling Up, Housing and Communities",Homes England,REV GRNTS TO LOCAL AUTHORITIES,Investment,ACTION HOUSING AND SUPPORT,30/10/2023," 24,000.00 ",MED,None,Grants
"Department for Levelling Up, Housing and Communities",Homes England,REV GRNTS TO LOCAL AUTHORITIES,Investment,ACTION HOUSING AND SUPPORT,30/10/2023, 253.00 ,MED,None,Grants
"Department for Levelling Up, Housing and Communities",Homes England,REV GRNTS TO LOCAL AUTHORITIES,Investment,ACTION HOUSING AND SUPPORT,30/10/2023," 1,579.00 ",MED,None,Grants
"Department for Levelling Up, Housing and Communities",Homes England,REV GRNTS TO LOCAL AUTHORITIES,Investment,ACTION HOUSING AND SUPPORT,30/10/2023," 2,144.00 ",MED,None,Grants
"Department for Levelling Up, Housing and Communities",Homes England,REV GRNTS TO LOCAL AUTHORITIES,Investment,ACTION HOUSING AND SUPPORT,31/10/2023," 1,361.00 ",MED,None,Grants
"Department for Levelling Up, Housing and Communities",Homes England,REV GRNTS TO LOCAL AUTHORITIES,Investment,ACTION HOUSING AND SUPPORT,31/10/2023, 817.00 ,MED,None,Grants
"Department for Levelling Up, Housing and Communities",Homes England,REV GRNTS TO LOCAL AUTHORITIES,Investment,ACTION HOUSING AND SUPPORT,31/10/2023, 817.00 ,MED,None,Grants
"Department for Levelling Up, Housing and Communities",Homes England,REV GRNTS TO LOCAL AUTHORITIES,Investment,ACTION HOUSING AND SUPPORT,31/10/2023, 817.00 ,MED,None,Grants
"Department for Levelling Up, Housing and Communities",Homes England,REV GRNTS TO LOCAL AUTHORITIES,Investment,ACTION HOUSING AND SUPPORT,31/10/2023, 817.00 ,MED,None,Grants
"Department for Levelling Up, Housing and Communities",Homes England,REV GRNTS TO LOCAL AUTHORITIES,Investment,ACTION HOUSING AND SUPPORT,31/10/2023, 817.00 ,MED,None,Grants
"Department for Levelling Up, Housing and Communities",Homes England,REV GRNTS TO LOCAL AUTHORITIES,Investment,ACTION HOUSING AND SUPPORT,31/10/2023, 817.00 ,MED,None,Grants
"Department for Levelling Up, Housing and Communities",Homes England,REV GRNTS TO LOCAL AUTHORITIES,Investment,ACTION HOUSING AND SUPPORT,31/10/2023, 817.00 ,MED,None,Grants
"Department for Levelling Up, Housing and Communities",Homes England,CAPITAL GRANTS TO RPs,Investment,Foundation,04/10/2023," 121,500.00 ",SMA,None,Grants
"Department for Levelling Up, Housing and Communities",Homes England,CAPITAL GRANTS TO RPs,Investment,THE GUINNESS PARTNERSHIP LIMITED,06/10/2023," 11,000.00 ",LAR,None,Grants
"Department for Levelling Up, Housing and Communities",Homes England,CAPITAL GRANTS TO RPs,Investment,J & M RESIDENTIAL LETTINGS LIMITED,05/10/2023," 9,380.00 ",SMA,None,Grants
"Department for Levelling Up, Housing and Communities",Homes England,CAPITAL GRANTS TO RPs,Investment,J & M RESIDENTIAL LETTINGS LIMITED,06/10/2023," 15,008.00 ",SMA,None,Grants
"Department for Levelling Up, Housing and Communities",Homes England,CAPITAL GRANTS TO RPs,Investment,J & M RESIDENTIAL LETTINGS LIMITED,18/10/2023," 13,132.00 ",SMA,None,Grants
"Department for Levelling Up, Housing and Communities",Homes England,CAPITAL GRANTS TO RPs,Investment,HOMELESS ACTION RESOURCE PROJECT LIMITED,31/10/2023," 256,500.00 ",MED,None,Grants
"Department for Levelling Up, Housing and Communities",Homes England,REV GRNTS TO LOCAL AUTHORITIES,Investment,GOODWIN DEVELOPMENT TRUST,04/10/2023," 8,750.00 ",MED,None,Grants
"Department for Levelling Up, Housing and Communities",Homes England,REV GRNTS TO LOCAL AUTHORITIES,Investment,SOVEREIGN HOUSING ASSOCIATION LTD,04/10/2023, 567.00 ,LAR,None,Grants
"Department for Levelling Up, Housing and Communities",Homes England,CAPITAL GRANTS TO RPs,Investment,SOVEREIGN HOUSING ASSOCIATION LTD,23/10/2023," 78,000.00 ",LAR,None,Grants
"Department for Levelling Up, Housing and Communities",Homes England,CAPITAL GRANTS TO RPs,Investment,SOVEREIGN HOUSING ASSOCIATION LTD,24/10/2023," 76,000.00 ",LAR,None,Grants
"Department for Levelling Up, Housing and Communities",Homes England,CAPITAL GRANTS TO RPs,Investment,SOVEREIGN HOUSING ASSOCIATION LTD,24/10/2023," 86,000.00 ",LAR,None,Grants
"Department for Levelling Up, Housing and Communities",Homes England,CAPITAL GRANTS TO RPs,Investment,SOVEREIGN HOUSING ASSOCIATION LTD,25/10/2023," 75,000.00 ",LAR,None,Grants
"Department for Levelling Up, Housing and Communities",Homes England,CAPITAL GRANTS TO RPs,Investment,KARBON HOMES,02/10/2023," 9,000.00 ",LAR,None,Grants
"Department for Levelling Up, Housing and Communities",Homes England,CAPITAL GRANTS TO RPs,Investment,KARBON HOMES,05/10/2023," 9,000.00 ",LAR,None,Grants
"Department for Levelling Up, Housing and Communities",Homes England,CAPITAL GRANTS TO RPs,Investment,KARBON HOMES,06/10/2023," 9,000.00 ",LAR,None,Grants
"Department for Levelling Up, Housing and Communities",Homes England,CAPITAL GRANTS TO RPs,Investment,KARBON HOMES,19/10/2023," 9,000.00 ",LAR,None,Grants
"Department for Levelling Up, Housing and Communities",Homes England,CAPITAL GRANTS TO RPs,Investment,KARBON HOMES,24/10/2023," 14,000.00 ",LAR,None,Grants
"Department for Levelling Up, Housing and Communities",Homes England,CAPITAL GRANTS TO RPs,Investment,KARBON HOMES,25/10/2023," 9,000.00 ",LAR,None,Grants
"Department for Levelling Up, Housing and Communities",Homes England,CAPITAL GRANTS TO RPs,Investment,KARBON HOMES,25/10/2023," 9,000.00 ",LAR,None,Grants
"Department for Levelling Up, Housing and Communities",Homes England,CAPITAL GRANTS TO RPs,Investment,MOSSCARE ST VINCENTS HOUSING GROUP LTD,26/10/2023," 9,000.00 ",LAR,None,Grants
"Department for Levelling Up, Housing and Communities",Homes England,CAPITAL GRANTS TO RPs,Investment,MOSSCARE ST VINCENTS HOUSING GROUP LTD,26/10/2023," 10,000.00 ",LAR,None,Grants
"Department for Levelling Up, Housing and Communities",Homes England,CAPITAL GRANTS TO RPs,Investment,MOSSCARE ST VINCENTS HOUSING GROUP LTD,26/10/2023," 10,000.00 ",LAR,None,Grants
"Department for Levelling Up, Housing and Communities",Homes England,CAPITAL GRANTS TO RPs,Investment,CASTLES & COASTS HOUSING ASSOCIATION,06/10/2023," 48,000.00 ",MED,None,Grants
"Department for Levelling Up, Housing and Communities",Homes England,CAPITAL GRANTS TO RPs,Investment,CASTLES & COASTS HOUSING ASSOCIATION,06/10/2023," 159,000.00 ",MED,None,Grants
"Department for Levelling Up, Housing and Communities",Homes England,CAPITAL GRANTS TO RPs,Investment,CASTLES & COASTS HOUSING ASSOCIATION,06/10/2023," 52,000.00 ",MED,None,Grants
"Department for Levelling Up, Housing and Communities",Homes England,CAPITAL GRANTS TO RPs,Investment,CASTLES & COASTS HOUSING ASSOCIATION,06/10/2023," 252,000.00 ",MED,None,Grants
"Department for Levelling Up, Housing and Communities",Homes England,CAPITAL GRANTS TO RPs,Investment,CASTLES & COASTS HOUSING ASSOCIATION,31/10/2023," 50,000.00 ",MED,None,Grants
"Department for Levelling Up, Housing and Communities",Homes England,CAPITAL GRANTS TO RPs,Investment,BERNICIA GROUP,11/10/2023," 9,000.00 ",LAR,None,Grants
"Department for Levelling Up, Housing and Communities",Homes England,CAPITAL GRANTS TO RPs,Investment,BERNICIA GROUP,16/10/2023," 866,250.00 ",LAR,None,Grants
"Department for Levelling Up, Housing and Communities",Homes England,CAPITAL GRANTS TO RPs,Investment,BERNICIA GROUP,16/10/2023," 1,824,375.00 ",LAR,None,Grants
"Department for Levelling Up, Housing and Communities",Homes England,CAPITAL GRANTS TO RPs,Investment,LIVEWEST HOMES LIMITED,18/10/2023," 28,000.00 ",LAR,None,Grants
"Department for Levelling Up, Housing and Communities",Homes England,CAPITAL GRANTS TO RPs,Investment,LIVEWEST HOMES LIMITED,18/10/2023," 90,000.00 ",LAR,None,Grants
"Department for Levelling Up, Housing and Communities",Homes England,CAPITAL GRANTS TO RPs,Investment,LIVEWEST HOMES LIMITED,20/10/2023," 10,000.00 ",LAR,None,Grants
"Department for Levelling Up, Housing and Communities",Homes England,REV GRNTS TO LOCAL AUTHORITIES,Investment,PEABODY TRUST,06/10/2023," 11,455.00 ",LAR,None,Grants
"Department for Levelling Up, Housing and Communities",Homes England,CAPITAL GRANTS TO RPs,Investment,GRAND UNION HOUSING GROUP LIMITED,19/10/2023," 9,000.00 ",LAR,None,Grants
"Department for Levelling Up, Housing and Communities",Homes England,CAPITAL GRANTS TO RPs,Investment,GRAND UNION HOUSING GROUP LIMITED,19/10/2023," 12,000.00 ",LAR,None,Grants
"Department for Levelling Up, Housing and Communities",Homes England,REV GRNTS TO LOCAL AUTHORITIES,Investment,TORUS62 LIMITED,03/10/2023," 1,182.00 ",LAR,None,Grants
"Department for Levelling Up, Housing and Communities",Homes England,REV GRNTS TO LOCAL AUTHORITIES,Investment,TORUS62 LIMITED,03/10/2023," 1,182.00 ",LAR,None,Grants
"Department for Levelling Up, Housing and Communities",Homes England,REV GRNTS TO LOCAL AUTHORITIES,Investment,TORUS62 LIMITED,03/10/2023," 17,910.00 ",LAR,None,Grants
"Department for Levelling Up, Housing and Communities",Homes England,REV GRNTS TO LOCAL AUTHORITIES,Investment,TORUS62 LIMITED,03/10/2023," 1,182.00 ",LAR,None,Grants
"Department for Levelling Up, Housing and Communities",Homes England,REV GRNTS TO LOCAL AUTHORITIES,Investment,TORUS62 LIMITED,03/10/2023," 1,182.00 ",LAR,None,Grants
"Department for Levelling Up, Housing and Communities",Homes England,REV GRNTS TO LOCAL AUTHORITIES,Investment,TORUS62 LIMITED,03/10/2023," 1,182.00 ",LAR,None,Grants
"Department for Levelling Up, Housing and Communities",Homes England,REV GRNTS TO LOCAL AUTHORITIES,Investment,TORUS62 LIMITED,03/10/2023," 40,584.00 ",LAR,None,Grants
"Department for Levelling Up, Housing and Communities",Homes England,REV GRNTS TO LOCAL AUTHORITIES,Investment,TORUS62 LIMITED,03/10/2023," 1,182.00 ",LAR,None,Grants
"Department for Levelling Up, Housing and Communities",Homes England,REV GRNTS TO LOCAL AUTHORITIES,Investment,TORUS62 LIMITED,03/10/2023," 1,182.00 ",LAR,None,Grants
"Department for Levelling Up, Housing and Communities",Homes England,REV GRNTS TO LOCAL AUTHORITIES,Investment,TORUS62 LIMITED,03/10/2023," 1,182.00 ",LAR,None,Grants
"Department for Levelling Up, Housing and Communities",Homes England,REV GRNTS TO LOCAL AUTHORITIES,Investment,TORUS62 LIMITED,03/10/2023," 1,182.00 ",LAR,None,Grants
"Department for Levelling Up, Housing and Communities",Homes England,REV GRNTS TO LOCAL AUTHORITIES,Investment,TORUS62 LIMITED,03/10/2023," 1,182.00 ",LAR,None,Grants
"Department for Levelling Up, Housing and Communities",Homes England,CAPITAL GRANTS TO RPs,Investment,TORUS62 LIMITED,11/10/2023," 9,000.00 ",LAR,None,Grants
"Department for Levelling Up, Housing and Communities",Homes England,REV GRNTS TO LOCAL AUTHORITIES,Investment,EAST SUFFOLK COUNCIL,12/10/2023," 25,000.00 ",PUB,None,Grants
"Department for Levelling Up, Housing and Communities",Homes England,REV GRNTS TO LOCAL AUTHORITIES,Investment,SOUTH HAMS DISTRICT COUNCIL,11/10/2023," 3,357.00 ",PUB,None,Grants
"Department for Levelling Up, Housing and Communities",Homes England,REV GRNTS TO LOCAL AUTHORITIES,Investment,SOUTH HAMS DISTRICT COUNCIL,11/10/2023," 3,357.00 ",PUB,None,Grants
"Department for Levelling Up, Housing and Communities",Homes England,CAP GRNTS TO LOCAL AUTHORITIES,Investment,SUNDERLAND CITY COUNCIL,06/10/2023," 9,500.00 ",PUB,None,Grants
"Department for Levelling Up, Housing and Communities",Homes England,REV GRNTS TO LOCAL AUTHORITIES,Investment,ROTHER DISTRICT COUNCIL,02/10/2023," 4,888.00 ",PUB,None,Grants
"Department for Levelling Up, Housing and Communities",Homes England,CAPITAL GRANTS TO RPs,Investment,MCCARTHY & STONE (SHARED OWNERSHIP) LIMITED,25/10/2023," 8,800,000.00 ",LAR,None,Grants
"Department for Levelling Up, Housing and Communities",Homes England,CAP GRNTS TO LOCAL AUTHORITIES,Investment,REIGATE & BANSTEAD BOROUGH COUNCIL,02/10/2023," 16,000.00 ",PUB,None,Grants
"Department for Levelling Up, Housing and Communities",Homes England,CAP GRNTS TO LOCAL AUTHORITIES,Investment,REIGATE & BANSTEAD BOROUGH COUNCIL,04/10/2023," 14,000.00 ",PUB,None,Grants
"Department for Levelling Up, Housing and Communities",Homes England,CAP GRNTS TO LOCAL AUTHORITIES,Investment,REIGATE & BANSTEAD BOROUGH COUNCIL,05/10/2023," 10,000.00 ",PUB,None,Grants
"Department for Levelling Up, Housing and Communities",Homes England,REV GRNTS TO LOCAL AUTHORITIES,Investment,NORTH NORTHAMPTONSHIRE COUNCIL,06/10/2023," 2,901.00 ",PUB,None,Grants
"Department for Levelling Up, Housing and Communities",Homes England,REV GRNTS TO LOCAL AUTHORITIES,Investment,WEST NORTHAMPTONSHIRE COUNCIL,11/10/2023," 2,750.00 ",PUB,None,Grants
"Department for Levelling Up, Housing and Communities",Homes England,REV GRNTS TO LOCAL AUTHORITIES,Investment,WEST NORTHAMPTONSHIRE COUNCIL,19/10/2023," 1,525.00 ",PUB,None,Grants
"Department for Levelling Up, Housing and Communities",Homes England,REV GRNTS TO LOCAL AUTHORITIES,Investment,WEST NORTHAMPTONSHIRE COUNCIL,19/10/2023," 2,834.00 ",PUB,None,Grants
"Department for Levelling Up, Housing and Communities",Homes England,REV GRNTS TO LOCAL AUTHORITIES,Investment,WEST NORTHAMPTONSHIRE COUNCIL,19/10/2023," 1,525.00 ",PUB,None,Grants
"Department for Levelling Up, Housing and Communities",Homes England,REV GRNTS TO LOCAL AUTHORITIES,Investment,WEST NORTHAMPTONSHIRE COUNCIL,19/10/2023," 1,813.00 ",PUB,None,Grants
"Department for Levelling Up, Housing and Communities",Homes England,REV GRNTS TO LOCAL AUTHORITIES,Investment,WEST NORTHAMPTONSHIRE COUNCIL,19/10/2023," 2,420.00 ",PUB,None,Grants
"Department for Levelling Up, Housing and Communities",Homes England,REV GRNTS TO LOCAL AUTHORITIES,Investment,WEST NORTHAMPTONSHIRE COUNCIL,19/10/2023," 2,421.00 ",PUB,None,Grants
"Department for Levelling Up, Housing and Communities",Homes England,REV GRNTS TO LOCAL AUTHORITIES,Investment,WEST NORTHAMPTONSHIRE COUNCIL,19/10/2023, 906.00 ,PUB,None,Grants
"Department for Levelling Up, Housing and Communities",Homes England,REV GRNTS TO LOCAL AUTHORITIES,Investment,WEST NORTHAMPTONSHIRE COUNCIL,19/10/2023," 2,421.00 ",PUB,None,Grants
"Department for Levelling Up, Housing and Communities",Homes England,REV GRNTS TO LOCAL AUTHORITIES,Investment,WEST NORTHAMPTONSHIRE COUNCIL,19/10/2023," 2,835.00 ",PUB,None,Grants
"Department for Levelling Up, Housing and Communities",Homes England,REV GRNTS TO LOCAL AUTHORITIES,Investment,WEST NORTHAMPTONSHIRE COUNCIL,23/10/2023," 1,527.00 ",PUB,None,Grants
"Department for Levelling Up, Housing and Communities",Homes England,REV GRNTS TO LOCAL AUTHORITIES,Investment,WEST NORTHAMPTONSHIRE COUNCIL,23/10/2023, 907.00 ,PUB,None,Grants
"Department for Levelling Up, Housing and Communities",Homes England,MISC PROFESSIONAL FEES,"Markets, Partners & Places",ATKINS LTD,02/10/2023," 32,030.40 ",LAR,81101500,Civil Engineering
"Department for Levelling Up, Housing and Communities",Homes England,MISC PROFESSIONAL FEES,Development,ATKINS LTD,09/10/2023," 5,238.00 ",LAR,77101500,Environmental auditing
"Department for Levelling Up, Housing and Communities",Homes England,MISC PROFESSIONAL FEES,Development,ATKINS LTD,09/10/2023," 16,500.00 ",LAR,77101500,Environmental auditing
"Department for Levelling Up, Housing and Communities",Homes England,PLANNING APPLICATIONS,Development,ATKINS LTD,23/10/2023," 7,774.18 ",LAR,80131800,Real estate management services
"Department for Levelling Up, Housing and Communities",Homes England,HEALTH & SAFETY,Development,ATKINS LTD,23/10/2023," 3,634.68 ",LAR,72101500,Building maintenance and repair services
"Department for Levelling Up, Housing and Communities",Homes England,MASTERPLANNING FEES,Development,ATKINS LTD,25/10/2023," 37,222.80 ",LAR,81101500,Civil Engineering
"Department for Levelling Up, Housing and Communities",Homes England,OTHER PROFESSIONAL FEES,Development,ATKINS LTD,25/10/2023," 179,160.00 ",LAR,80131800,Real estate management services
"Department for Levelling Up, Housing and Communities",Homes England,OTHER PROFESSIONAL FEES,Development,ATKINS LTD,25/10/2023," 4,555.46 ",LAR,72101500,Building maintenance and repair services
"Department for Levelling Up, Housing and Communities",Homes England,PROPERTY SERVICES,Development,ATKINS LTD,30/10/2023, 726.94 ,LAR,80131800,Real estate management services
"Department for Levelling Up, Housing and Communities",Homes England,MASTERPLANNING FEES,Development,ATKINS LTD,31/10/2023," 35,100.00 ",LAR,81101500,Civil Engineering
"Department for Levelling Up, Housing and Communities",Homes England,OTHER PROFESSIONAL FEES,Development,ATKINS LTD,31/10/2023," 39,720.00 ",LAR,80131800,Real estate management services
"Department for Levelling Up, Housing and Communities",Homes England,TRAINING COURSES & CONFERENCES,Development,ARGUS SOFTWARE LTD,03/10/2023," 9,600.00 ",MED,86101800,In service training and manpower development
"Department for Levelling Up, Housing and Communities",Homes England,TRAINING COURSES & CONFERENCES,Chief Customer Office,AVADO LEARNING LIMITED,25/10/2023," 2,699.10 ",LAR,86101800,In service training and manpower development
"Department for Levelling Up, Housing and Communities",Homes England,OTHER PROFESSIONAL FEES,Development,ANDY TRYNER PHOTOGRAPHY,04/10/2023, 596.40 ,MIC,82131600,Photographers and cinematographers
"Department for Levelling Up, Housing and Communities",Homes England,OTHER PROFESSIONAL FEES,Investment,ASHFORDS LLP,31/10/2023," 1,800.00 ",LAR,80121600,Business law services
"Department for Levelling Up, Housing and Communities",Homes England,ENGINEERING FEES,Development,WESTERN POWER DISTRIBUTION,20/10/2023," 4,131.67 ",LAR,81101500,Civil Engineering
"Department for Levelling Up, Housing and Communities",Homes England,ESTATE GENERAL MAINTENANCE,"Markets, Partners & Places",Agriscapes Ltd,02/10/2023," 3,564.42 ",MIC,72101500,Building maintenance and repair services
"Department for Levelling Up, Housing and Communities",Homes England,ESTATE GENERAL MAINTENANCE,Development,Agriscapes Ltd,11/10/2023," 8,370.00 ",MIC,72101500,Building maintenance and repair services
"Department for Levelling Up, Housing and Communities",Homes England,MISC PROFESSIONAL FEES,Chief Customer Office,Airey Miller Limited,12/10/2023," 14,400.00 ",MED,77101500,Environmental auditing
"Department for Levelling Up, Housing and Communities",Homes England,MISC PROFESSIONAL FEES,Chief Customer Office,Airey Miller Limited,31/10/2023," 18,000.00 ",MED,77101500,Environmental auditing
"Department for Levelling Up, Housing and Communities",Homes England,CAR LEASING - HIRE CHARGES,Corporate Allocations,LEASEPLAN UK LIMITED,06/10/2023," 3,193.33 ",LAR,25101500,Passenger motor vehicles
"Department for Levelling Up, Housing and Communities",Homes England,CAR LEASING - HIRE CHARGES,Corporate Allocations,LEASEPLAN UK LIMITED,06/10/2023," 3,875.55 ",LAR,25101500,Passenger motor vehicles
"Department for Levelling Up, Housing and Communities",Homes England,CAR LEASING - HIRE CHARGES,Corporate Allocations,LEASEPLAN UK LIMITED,10/10/2023," 2,680.39 ",LAR,25101500,Passenger motor vehicles
"Department for Levelling Up, Housing and Communities",Homes England,CAR LEASING - HIRE CHARGES,Corporate Allocations,LEASEPLAN UK LIMITED,10/10/2023," 3,171.18 ",LAR,25101500,Passenger motor vehicles
"Department for Levelling Up, Housing and Communities",Homes England,CAR LEASING - HIRE CHARGES,Corporate Allocations,LEASEPLAN UK LIMITED,11/10/2023," 3,272.58 ",LAR,25101500,Passenger motor vehicles
"Department for Levelling Up, Housing and Communities",Homes England,CAR LEASING - HIRE CHARGES,Corporate Allocations,LEASEPLAN UK LIMITED,11/10/2023," 4,153.86 ",LAR,25101500,Passenger motor vehicles
"Department for Levelling Up, Housing and Communities",Homes England,CAR LEASING - HIRE CHARGES,Corporate Allocations,LEASEPLAN UK LIMITED,17/10/2023," 7,779.41 ",LAR,25101500,Passenger motor vehicles
"Department for Levelling Up, Housing and Communities",Homes England,CAR LEASING - HIRE CHARGES,Corporate Allocations,LEASEPLAN UK LIMITED,24/10/2023," 2,913.29 ",LAR,25101500,Passenger motor vehicles
"Department for Levelling Up, Housing and Communities",Homes England,CAR LEASING - HIRE CHARGES,Corporate Allocations,LEASEPLAN UK LIMITED,24/10/2023," 3,434.07 ",LAR,25101500,Passenger motor vehicles
"Department for Levelling Up, Housing and Communities",Homes England,CAR LEASING - HIRE CHARGES,Corporate Allocations,LEASEPLAN UK LIMITED,26/10/2023," 1,092.00 ",LAR,25101500,Passenger motor vehicles
"Department for Levelling Up, Housing and Communities",Homes England,CAR LEASING - HIRE CHARGES,Corporate Allocations,LEASEPLAN UK LIMITED,26/10/2023," 7,057.52 ",LAR,25101500,Passenger motor vehicles
"Department for Levelling Up, Housing and Communities",Homes England,LUHBF Loans Additions,Investment,ASCOT HOMES (D'URTON) LTD,25/10/2023," 134,837.00 ",MIC,None,Loans
"Department for Levelling Up, Housing and Communities",Homes England,CAR LEASING - HIRE CHARGES,Corporate Allocations,ALPHABET (GB) LTD,06/10/2023, 189.00 ,LAR,25101500,Passenger motor vehicles
"Department for Levelling Up, Housing and Communities",Homes England,CAR LEASING - HIRE CHARGES,Corporate Allocations,ALPHABET (GB) LTD,06/10/2023, 270.36 ,LAR,25101500,Passenger motor vehicles
"Department for Levelling Up, Housing and Communities",Homes England,CAR LEASING - HIRE CHARGES,Corporate Allocations,ALPHABET (GB) LTD,10/10/2023," 3,393.35 ",LAR,25101500,Passenger motor vehicles
"Department for Levelling Up, Housing and Communities",Homes England,CAR LEASING - HIRE CHARGES,Corporate Allocations,ALPHABET (GB) LTD,10/10/2023," 4,084.62 ",LAR,25101500,Passenger motor vehicles
"Department for Levelling Up, Housing and Communities",Homes England,CAR LEASING - HIRE CHARGES,Corporate Allocations,ALPHABET (GB) LTD,11/10/2023," 2,531.00 ",LAR,25101500,Passenger motor vehicles
"Department for Levelling Up, Housing and Communities",Homes England,CAR LEASING - HIRE CHARGES,Corporate Allocations,ALPHABET (GB) LTD,11/10/2023," 2,992.06 ",LAR,25101500,Passenger motor vehicles
"Department for Levelling Up, Housing and Communities",Homes England,CAR LEASING - HIRE CHARGES,Corporate Allocations,ALPHABET (GB) LTD,31/10/2023," 3,244.18 ",LAR,25101500,Passenger motor vehicles
"Department for Levelling Up, Housing and Communities",Homes England,CAR LEASING - HIRE CHARGES,Corporate Allocations,ALPHABET (GB) LTD,31/10/2023," 4,229.52 ",LAR,25101500,Passenger motor vehicles
"Department for Levelling Up, Housing and Communities",Homes England,ESTATE GENERAL MAINTENANCE,Development,AINSTY TIMBER MARKETING LTD T/A ATM,02/10/2023," 2,818.12 ",MED,72101500,Building maintenance and repair services
"Department for Levelling Up, Housing and Communities",Homes England,MANAGEMENT COSTS,Development,AINSTY TIMBER MARKETING LTD T/A ATM,03/10/2023, 744.00 ,MED,80131800,Real estate management services
"Department for Levelling Up, Housing and Communities",Homes England,ESTATE GENERAL MAINTENANCE,Development,AINSTY TIMBER MARKETING LTD T/A ATM,03/10/2023," 2,818.12 ",MED,72101500,Building maintenance and repair services
"Department for Levelling Up, Housing and Communities",Homes England,ESTATE GENERAL MAINTENANCE,Development,AINSTY TIMBER MARKETING LTD T/A ATM,20/10/2023," 2,818.12 ",MED,72101500,Building maintenance and repair services
"Department for Levelling Up, Housing and Communities",Homes England,CONTRACT WORKS,Development,AINSTY TIMBER MARKETING LTD T/A ATM,23/10/2023," 32,048.90 ",MED,72102900,Facility maintenance and repair services
"Department for Levelling Up, Housing and Communities",Homes England,MANAGEMENT COSTS,Development,AINSTY TIMBER MARKETING LTD T/A ATM,31/10/2023," 1,488.00 ",MED,80131800,Real estate management services
"Department for Levelling Up, Housing and Communities",Homes England,FENCE MAINTENANCE,Development,AINSTY TIMBER MARKETING LTD T/A ATM,31/10/2023," 5,123.96 ",MED,72102900,Facility maintenance and repair services
"Department for Levelling Up, Housing and Communities",Homes England,AGENCY STAFF,Cido,ALEXANDER MANN SOLUTIONS LIMITED,02/10/2023,"-4,090.44 ",LAR,80111600,Temporary personnel services
"Department for Levelling Up, Housing and Communities",Homes England,AGENCY STAFF,Development,ALEXANDER MANN SOLUTIONS LIMITED,02/10/2023," 5,851.38 ",LAR,80111600,Temporary personnel services
"Department for Levelling Up, Housing and Communities",Homes England,AGENCY STAFF,Development,ALEXANDER MANN SOLUTIONS LIMITED,02/10/2023," 5,851.38 ",LAR,80111600,Temporary personnel services
"Department for Levelling Up, Housing and Communities",Homes England,AGENCY STAFF,Development,ALEXANDER MANN SOLUTIONS LIMITED,02/10/2023," 5,851.38 ",LAR,80111600,Temporary personnel services
"Department for Levelling Up, Housing and Communities",Homes England,AGENCY STAFF,Development,ALEXANDER MANN SOLUTIONS LIMITED,02/10/2023," 1,170.28 ",LAR,80111600,Temporary personnel services
"Department for Levelling Up, Housing and Communities",Homes England,AGENCY STAFF,Development,ALEXANDER MANN SOLUTIONS LIMITED,02/10/2023," 4,681.10 ",LAR,80111600,Temporary personnel services
"Department for Levelling Up, Housing and Communities",Homes England,AGENCY STAFF,Development,ALEXANDER MANN SOLUTIONS LIMITED,02/10/2023," 5,851.38 ",LAR,80111600,Temporary personnel services
"Department for Levelling Up, Housing and Communities",Homes England,AGENCY STAFF,Cido,ALEXANDER MANN SOLUTIONS LIMITED,02/10/2023," 3,459.00 ",LAR,80111600,Temporary personnel services
"Department for Levelling Up, Housing and Communities",Homes England,AGENCY STAFF,Cido,ALEXANDER MANN SOLUTIONS LIMITED,02/10/2023," 3,597.66 ",LAR,80111600,Temporary personnel services
"Department for Levelling Up, Housing and Communities",Homes England,AGENCY STAFF,Development,ALEXANDER MANN SOLUTIONS LIMITED,02/10/2023," 5,851.38 ",LAR,80111600,Temporary personnel services
"Department for Levelling Up, Housing and Communities",Homes England,MISC PROFESSIONAL FEES,Chief Customer Office,ALEXANDER MANN SOLUTIONS LIMITED,02/10/2023," 1,575.12 ",LAR,80111600,Temporary personnel services
"Department for Levelling Up, Housing and Communities",Homes England,AGENCY STAFF,Chief Risk Officer,ALEXANDER MANN SOLUTIONS LIMITED,02/10/2023," 9,930.42 ",LAR,80111600,Temporary personnel services
"Department for Levelling Up, Housing and Communities",Homes England,AGENCY STAFF,Chief Operating Officer,ALEXANDER MANN SOLUTIONS LIMITED,02/10/2023," 7,132.44 ",LAR,80111600,Temporary personnel services
"Department for Levelling Up, Housing and Communities",Homes England,AGENCY STAFF,Cido,ALEXANDER MANN SOLUTIONS LIMITED,02/10/2023," 3,597.66 ",LAR,80111600,Temporary personnel services
"Department for Levelling Up, Housing and Communities",Homes England,AGENCY STAFF,Chief Customer Office,ALEXANDER MANN SOLUTIONS LIMITED,02/10/2023," 2,322.18 ",LAR,80111600,Temporary personnel services
"Department for Levelling Up, Housing and Communities",Homes England,AGENCY STAFF,Chief Customer Office,ALEXANDER MANN SOLUTIONS LIMITED,02/10/2023," 1,393.31 ",LAR,80111600,Temporary personnel services
"Department for Levelling Up, Housing and Communities",Homes England,AGENCY STAFF,Chief Customer Office,ALEXANDER MANN SOLUTIONS LIMITED,02/10/2023," 6,867.60 ",LAR,80111600,Temporary personnel services
"Department for Levelling Up, Housing and Communities",Homes England,AGENCY STAFF,Chief Operating Officer,ALEXANDER MANN SOLUTIONS LIMITED,02/10/2023," 3,079.62 ",LAR,80111600,Temporary personnel services
"Department for Levelling Up, Housing and Communities",Homes England,AGENCY STAFF,Cido,ALEXANDER MANN SOLUTIONS LIMITED,02/10/2023," 6,918.00 ",LAR,80111600,Temporary personnel services
"Department for Levelling Up, Housing and Communities",Homes England,AGENCY STAFF,Chief Customer Office,ALEXANDER MANN SOLUTIONS LIMITED,02/10/2023," 3,465.30 ",LAR,80111600,Temporary personnel services
"Department for Levelling Up, Housing and Communities",Homes England,AGENCY STAFF,Cido,ALEXANDER MANN SOLUTIONS LIMITED,02/10/2023," 3,599.62 ",LAR,80111600,Temporary personnel services
"Department for Levelling Up, Housing and Communities",Homes England,AGENCY STAFF,Cido,ALEXANDER MANN SOLUTIONS LIMITED,02/10/2023," 2,322.18 ",LAR,80111600,Temporary personnel services
"Department for Levelling Up, Housing and Communities",Homes England,AGENCY STAFF,Cido,ALEXANDER MANN SOLUTIONS LIMITED,02/10/2023," 2,205.22 ",LAR,80111600,Temporary personnel services
"Department for Levelling Up, Housing and Communities",Homes England,AGENCY STAFF,Cido,ALEXANDER MANN SOLUTIONS LIMITED,02/10/2023," 5,113.08 ",LAR,80111600,Temporary personnel services
"Department for Levelling Up, Housing and Communities",Homes England,MISC PROFESSIONAL FEES,Chief Customer Office,ALEXANDER MANN SOLUTIONS LIMITED,02/10/2023," 1,575.12 ",LAR,80111600,Temporary personnel services
"Department for Levelling Up, Housing and Communities",Homes England,AGENCY STAFF,Cido,ALEXANDER MANN SOLUTIONS LIMITED,03/10/2023," 3,465.30 ",LAR,80111600,Temporary personnel services
"Department for Levelling Up, Housing and Communities",Homes England,AGENCY STAFF,Cido,ALEXANDER MANN SOLUTIONS LIMITED,03/10/2023," 3,465.30 ",LAR,80111600,Temporary personnel services
"Department for Levelling Up, Housing and Communities",Homes England,AGENCY STAFF,Cido,ALEXANDER MANN SOLUTIONS LIMITED,03/10/2023," 3,465.30 ",LAR,80111600,Temporary personnel services
"Department for Levelling Up, Housing and Communities",Homes England,AGENCY STAFF,Cido,ALEXANDER MANN SOLUTIONS LIMITED,03/10/2023," 2,772.24 ",LAR,80111600,Temporary personnel services
"Department for Levelling Up, Housing and Communities",Homes England,AGENCY STAFF,Cido,ALEXANDER MANN SOLUTIONS LIMITED,03/10/2023," 2,772.24 ",LAR,80111600,Temporary personnel services
"Department for Levelling Up, Housing and Communities",Homes England,AGENCY STAFF,Cido,ALEXANDER MANN SOLUTIONS LIMITED,03/10/2023," 3,465.30 ",LAR,80111600,Temporary personnel services
"Department for Levelling Up, Housing and Communities",Homes England,AGENCY STAFF,Cido,ALEXANDER MANN SOLUTIONS LIMITED,03/10/2023," 3,465.30 ",LAR,80111600,Temporary personnel services
"Department for Levelling Up, Housing and Communities",Homes England,AGENCY STAFF,Cido,ALEXANDER MANN SOLUTIONS LIMITED,03/10/2023," 3,465.30 ",LAR,80111600,Temporary personnel services
"Department for Levelling Up, Housing and Communities",Homes England,AGENCY STAFF,Cido,ALEXANDER MANN SOLUTIONS LIMITED,03/10/2023," 3,465.30 ",LAR,80111600,Temporary personnel services
"Department for Levelling Up, Housing and Communities",Homes England,AGENCY STAFF,Cido,ALEXANDER MANN SOLUTIONS LIMITED,03/10/2023," 3,238.26 ",LAR,80111600,Temporary personnel services
"Department for Levelling Up, Housing and Communities",Homes England,AGENCY STAFF,Cido,ALEXANDER MANN SOLUTIONS LIMITED,03/10/2023," 4,431.36 ",LAR,80111600,Temporary personnel services
"Department for Levelling Up, Housing and Communities",Homes England,AGENCY STAFF,Cido,ALEXANDER MANN SOLUTIONS LIMITED,03/10/2023," 4,431.36 ",LAR,80111600,Temporary personnel services
"Department for Levelling Up, Housing and Communities",Homes England,AGENCY STAFF,Cido,ALEXANDER MANN SOLUTIONS LIMITED,03/10/2023," 3,749.58 ",LAR,80111600,Temporary personnel services
"Department for Levelling Up, Housing and Communities",Homes England,AGENCY STAFF,Cido,ALEXANDER MANN SOLUTIONS LIMITED,03/10/2023," 4,260.90 ",LAR,80111600,Temporary personnel services
"Department for Levelling Up, Housing and Communities",Homes England,AGENCY STAFF,Cido,ALEXANDER MANN SOLUTIONS LIMITED,03/10/2023," 3,024.29 ",LAR,80111600,Temporary personnel services
"Department for Levelling Up, Housing and Communities",Homes England,AGENCY STAFF,Cido,ALEXANDER MANN SOLUTIONS LIMITED,03/10/2023," 3,465.30 ",LAR,80111600,Temporary personnel services
"Department for Levelling Up, Housing and Communities",Homes England,AGENCY STAFF,Cido,ALEXANDER MANN SOLUTIONS LIMITED,03/10/2023," 6,930.60 ",LAR,80111600,Temporary personnel services
"Department for Levelling Up, Housing and Communities",Homes England,AGENCY STAFF,Cido,ALEXANDER MANN SOLUTIONS LIMITED,03/10/2023," 1,008.10 ",LAR,80111600,Temporary personnel services
"Department for Levelling Up, Housing and Communities",Homes England,AGENCY STAFF,"Markets, Partners & Places",ALEXANDER MANN SOLUTIONS LIMITED,03/10/2023," 1,724.60 ",LAR,80111600,Temporary personnel services
"Department for Levelling Up, Housing and Communities",Homes England,AGENCY STAFF,Cido,ALEXANDER MANN SOLUTIONS LIMITED,03/10/2023," 2,772.24 ",LAR,80111600,Temporary personnel services
"Department for Levelling Up, Housing and Communities",Homes England,AGENCY STAFF,Cido,ALEXANDER MANN SOLUTIONS LIMITED,03/10/2023," 16,361.82 ",LAR,80111600,Temporary personnel services
"Department for Levelling Up, Housing and Communities",Homes England,AGENCY STAFF,Corporate Resources,ALEXANDER MANN SOLUTIONS LIMITED,03/10/2023," 2,653.92 ",LAR,80111600,Temporary personnel services
"Department for Levelling Up, Housing and Communities",Homes England,AGENCY STAFF,Cido,ALEXANDER MANN SOLUTIONS LIMITED,03/10/2023, 693.06 ,LAR,80111600,Temporary personnel services
"Department for Levelling Up, Housing and Communities",Homes England,AGENCY STAFF,Cido,ALEXANDER MANN SOLUTIONS LIMITED,03/10/2023," 3,749.58 ",LAR,80111600,Temporary personnel services
"Department for Levelling Up, Housing and Communities",Homes England,AGENCY STAFF,Development,ALEXANDER MANN SOLUTIONS LIMITED,04/10/2023," 3,780.36 ",LAR,80111600,Temporary personnel services
"Department for Levelling Up, Housing and Communities",Homes England,AGENCY STAFF,Cido,ALEXANDER MANN SOLUTIONS LIMITED,04/10/2023," 4,788.46 ",LAR,80111600,Temporary personnel services
"Department for Levelling Up, Housing and Communities",Homes England,AGENCY STAFF,Cido,ALEXANDER MANN SOLUTIONS LIMITED,04/10/2023," 7,362.79 ",LAR,80111600,Temporary personnel services
"Department for Levelling Up, Housing and Communities",Homes England,STAFF RECRUITMENT COSTS,Investment,ALEXANDER MANN SOLUTIONS LIMITED,04/10/2023," 4,410.42 ",LAR,80111700,Personnel Recruitment
"Department for Levelling Up, Housing and Communities",Homes England,AGENCY STAFF,Cido,ALEXANDER MANN SOLUTIONS LIMITED,05/10/2023," 1,499.52 ",LAR,80111600,Temporary personnel services
"Department for Levelling Up, Housing and Communities",Homes England,AGENCY STAFF,Cido,ALEXANDER MANN SOLUTIONS LIMITED,05/10/2023," 1,499.52 ",LAR,80111600,Temporary personnel services
"Department for Levelling Up, Housing and Communities",Homes England,AGENCY STAFF,Cido,ALEXANDER MANN SOLUTIONS LIMITED,05/10/2023," 3,465.30 ",LAR,80111600,Temporary personnel services
"Department for Levelling Up, Housing and Communities",Homes England,AGENCY STAFF,Cido,ALEXANDER MANN SOLUTIONS LIMITED,05/10/2023," 3,465.30 ",LAR,80111600,Temporary personnel services
"Department for Levelling Up, Housing and Communities",Homes England,AGENCY STAFF,Cido,ALEXANDER MANN SOLUTIONS LIMITED,05/10/2023," 10,226.16 ",LAR,80111600,Temporary personnel services
"Department for Levelling Up, Housing and Communities",Homes England,MISC PROFESSIONAL FEES,Chief Customer Office,ALEXANDER MANN SOLUTIONS LIMITED,05/10/2023," 1,575.12 ",LAR,80111600,Temporary personnel services
"Department for Levelling Up, Housing and Communities",Homes England,MISC PROFESSIONAL FEES,Chief Customer Office,ALEXANDER MANN SOLUTIONS LIMITED,05/10/2023," 2,835.24 ",LAR,80111600,Temporary personnel services
"Department for Levelling Up, Housing and Communities",Homes England,AGENCY STAFF,Cido,ALEXANDER MANN SOLUTIONS LIMITED,06/10/2023," 2,158.60 ",LAR,80111600,Temporary personnel services
"Department for Levelling Up, Housing and Communities",Homes England,AGENCY STAFF,Cido,ALEXANDER MANN SOLUTIONS LIMITED,06/10/2023," 3,597.66 ",LAR,80111600,Temporary personnel services
"Department for Levelling Up, Housing and Communities",Homes England,AGENCY STAFF,Cido,ALEXANDER MANN SOLUTIONS LIMITED,06/10/2023," 3,597.66 ",LAR,80111600,Temporary personnel services
"Department for Levelling Up, Housing and Communities",Homes England,AGENCY STAFF,Chief Risk Officer,ALEXANDER MANN SOLUTIONS LIMITED,09/10/2023," 9,930.42 ",LAR,80111600,Temporary personnel services
"Department for Levelling Up, Housing and Communities",Homes England,AGENCY STAFF,Cido,ALEXANDER MANN SOLUTIONS LIMITED,09/10/2023," 3,238.26 ",LAR,80111600,Temporary personnel services
"Department for Levelling Up, Housing and Communities",Homes England,AGENCY STAFF,Cido,ALEXANDER MANN SOLUTIONS LIMITED,09/10/2023," 3,749.58 ",LAR,80111600,Temporary personnel services
"Department for Levelling Up, Housing and Communities",Homes England,AGENCY STAFF,Cido,ALEXANDER MANN SOLUTIONS LIMITED,09/10/2023," 2,249.75 ",LAR,80111600,Temporary personnel services
"Department for Levelling Up, Housing and Communities",Homes England,AGENCY STAFF,Cido,ALEXANDER MANN SOLUTIONS LIMITED,09/10/2023," 4,260.90 ",LAR,80111600,Temporary personnel services
"Department for Levelling Up, Housing and Communities",Homes England,AGENCY STAFF,Cido,ALEXANDER MANN SOLUTIONS LIMITED,09/10/2023," 3,024.29 ",LAR,80111600,Temporary personnel services
"Department for Levelling Up, Housing and Communities",Homes England,AGENCY STAFF,Cido,ALEXANDER MANN SOLUTIONS LIMITED,09/10/2023," 3,465.30 ",LAR,80111600,Temporary personnel services
"Department for Levelling Up, Housing and Communities",Homes England,MISC PROFESSIONAL FEES,Chief Customer Office,ALEXANDER MANN SOLUTIONS LIMITED,09/10/2023," 3,748.86 ",LAR,80111600,Temporary personnel services
"Department for Levelling Up, Housing and Communities",Homes England,MISC PROFESSIONAL FEES,Chief Customer Office,ALEXANDER MANN SOLUTIONS LIMITED,09/10/2023," 7,497.72 ",LAR,80111600,Temporary personnel services
"Department for Levelling Up, Housing and Communities",Homes England,AGENCY STAFF,Cido,ALEXANDER MANN SOLUTIONS LIMITED,09/10/2023," 3,597.66 ",LAR,80111600,Temporary personnel services
"Department for Levelling Up, Housing and Communities",Homes England,AGENCY STAFF,"Markets, Partners & Places",ALEXANDER MANN SOLUTIONS LIMITED,09/10/2023," 4,800.95 ",LAR,80111600,Temporary personnel services
"Department for Levelling Up, Housing and Communities",Homes England,AGENCY STAFF,Chief Customer Office,ALEXANDER MANN SOLUTIONS LIMITED,09/10/2023," 2,322.18 ",LAR,80111600,Temporary personnel services
"Department for Levelling Up, Housing and Communities",Homes England,AGENCY STAFF,Chief Customer Office,ALEXANDER MANN SOLUTIONS LIMITED,09/10/2023," 2,322.18 ",LAR,80111600,Temporary personnel services
"Department for Levelling Up, Housing and Communities",Homes England,AGENCY STAFF,Cido,ALEXANDER MANN SOLUTIONS LIMITED,09/10/2023," 3,749.58 ",LAR,80111600,Temporary personnel services
"Department for Levelling Up, Housing and Communities",Homes England,AGENCY STAFF,Cido,ALEXANDER MANN SOLUTIONS LIMITED,09/10/2023," 3,465.30 ",LAR,80111600,Temporary personnel services
"Department for Levelling Up, Housing and Communities",Homes England,AGENCY STAFF,Chief Customer Office,ALEXANDER MANN SOLUTIONS LIMITED,09/10/2023," 3,433.80 ",LAR,80111600,Temporary personnel services
"Department for Levelling Up, Housing and Communities",Homes England,AGENCY STAFF,Chief Customer Office,ALEXANDER MANN SOLUTIONS LIMITED,09/10/2023," 3,465.30 ",LAR,80111600,Temporary personnel services
"Department for Levelling Up, Housing and Communities",Homes England,AGENCY STAFF,Cido,ALEXANDER MANN SOLUTIONS LIMITED,09/10/2023," 3,749.58 ",LAR,80111600,Temporary personnel services
"Department for Levelling Up, Housing and Communities",Homes England,AGENCY STAFF,Cido,ALEXANDER MANN SOLUTIONS LIMITED,09/10/2023," 4,499.52 ",LAR,80111600,Temporary personnel services
"Department for Levelling Up, Housing and Communities",Homes England,AGENCY STAFF,Cido,ALEXANDER MANN SOLUTIONS LIMITED,09/10/2023," 2,322.18 ",LAR,80111600,Temporary personnel services
"Department for Levelling Up, Housing and Communities",Homes England,AGENCY STAFF,Cido,ALEXANDER MANN SOLUTIONS LIMITED,09/10/2023," 3,150.30 ",LAR,80111600,Temporary personnel services
"Department for Levelling Up, Housing and Communities",Homes England,AGENCY STAFF,Cido,ALEXANDER MANN SOLUTIONS LIMITED,09/10/2023," 5,113.08 ",LAR,80111600,Temporary personnel services
"Department for Levelling Up, Housing and Communities",Homes England,AGENCY STAFF,Cido,ALEXANDER MANN SOLUTIONS LIMITED,09/10/2023," 2,402.14 ",LAR,80111600,Temporary personnel services
"Department for Levelling Up, Housing and Communities",Homes England,AGENCY STAFF,Chief Operating Officer,ALEXANDER MANN SOLUTIONS LIMITED,10/10/2023," 4,279.46 ",LAR,80111600,Temporary personnel services
"Department for Levelling Up, Housing and Communities",Homes England,AGENCY STAFF,Cido,ALEXANDER MANN SOLUTIONS LIMITED,10/10/2023, 756.07 ,LAR,80111600,Temporary personnel services
"Department for Levelling Up, Housing and Communities",Homes England,AGENCY STAFF,Chief Operating Officer,ALEXANDER MANN SOLUTIONS LIMITED,10/10/2023," 3,079.62 ",LAR,80111600,Temporary personnel services
"Department for Levelling Up, Housing and Communities",Homes England,AGENCY STAFF,Cido,ALEXANDER MANN SOLUTIONS LIMITED,11/10/2023," 3,465.30 ",LAR,80111600,Temporary personnel services
"Department for Levelling Up, Housing and Communities",Homes England,AGENCY STAFF,Cido,ALEXANDER MANN SOLUTIONS LIMITED,11/10/2023," 3,465.30 ",LAR,80111600,Temporary personnel services
"Department for Levelling Up, Housing and Communities",Homes England,AGENCY STAFF,Cido,ALEXANDER MANN SOLUTIONS LIMITED,11/10/2023," 5,453.94 ",LAR,80111600,Temporary personnel services
"Department for Levelling Up, Housing and Communities",Homes England,AGENCY STAFF,Cido,ALEXANDER MANN SOLUTIONS LIMITED,11/10/2023," 3,408.72 ",LAR,80111600,Temporary personnel services
"Department for Levelling Up, Housing and Communities",Homes England,AGENCY STAFF,Cido,ALEXANDER MANN SOLUTIONS LIMITED,12/10/2023," 25,517.40 ",LAR,80111600,Temporary personnel services
"Department for Levelling Up, Housing and Communities",Homes England,AGENCY STAFF,Development,ALEXANDER MANN SOLUTIONS LIMITED,12/10/2023," 3,780.36 ",LAR,80111600,Temporary personnel services
"Department for Levelling Up, Housing and Communities",Homes England,AGENCY STAFF,Cido,ALEXANDER MANN SOLUTIONS LIMITED,13/10/2023," 3,465.30 ",LAR,80111600,Temporary personnel services
"Department for Levelling Up, Housing and Communities",Homes England,AGENCY STAFF,Cido,ALEXANDER MANN SOLUTIONS LIMITED,16/10/2023," 4,284.41 ",LAR,80111600,Temporary personnel services
"Department for Levelling Up, Housing and Communities",Homes England,AGENCY STAFF,Cido,ALEXANDER MANN SOLUTIONS LIMITED,16/10/2023," 4,090.44 ",LAR,80111600,Temporary personnel services
"Department for Levelling Up, Housing and Communities",Homes England,AGENCY STAFF,Chief Risk Officer,ALEXANDER MANN SOLUTIONS LIMITED,16/10/2023," 7,944.34 ",LAR,80111600,Temporary personnel services
"Department for Levelling Up, Housing and Communities",Homes England,AGENCY STAFF,Cido,ALEXANDER MANN SOLUTIONS LIMITED,16/10/2023," 3,238.26 ",LAR,80111600,Temporary personnel services
"Department for Levelling Up, Housing and Communities",Homes England,AGENCY STAFF,Cido,ALEXANDER MANN SOLUTIONS LIMITED,16/10/2023," 4,431.36 ",LAR,80111600,Temporary personnel services
"Department for Levelling Up, Housing and Communities",Homes England,AGENCY STAFF,Cido,ALEXANDER MANN SOLUTIONS LIMITED,16/10/2023," 3,749.58 ",LAR,80111600,Temporary personnel services
"Department for Levelling Up, Housing and Communities",Homes England,AGENCY STAFF,Cido,ALEXANDER MANN SOLUTIONS LIMITED,16/10/2023," 2,249.75 ",LAR,80111600,Temporary personnel services
"Department for Levelling Up, Housing and Communities",Homes England,AGENCY STAFF,Cido,ALEXANDER MANN SOLUTIONS LIMITED,16/10/2023," 4,260.90 ",LAR,80111600,Temporary personnel services
"Department for Levelling Up, Housing and Communities",Homes England,AGENCY STAFF,Cido,ALEXANDER MANN SOLUTIONS LIMITED,16/10/2023," 3,024.29 ",LAR,80111600,Temporary personnel services
"Department for Levelling Up, Housing and Communities",Homes England,AGENCY STAFF,Cido,ALEXANDER MANN SOLUTIONS LIMITED,16/10/2023," 3,465.30 ",LAR,80111600,Temporary personnel services
"Department for Levelling Up, Housing and Communities",Homes England,MISC PROFESSIONAL FEES,Chief Customer Office,ALEXANDER MANN SOLUTIONS LIMITED,16/10/2023," 3,748.86 ",LAR,80111600,Temporary personnel services
"Department for Levelling Up, Housing and Communities",Homes England,AGENCY STAFF,Cido,ALEXANDER MANN SOLUTIONS LIMITED,16/10/2023," 3,597.66 ",LAR,80111600,Temporary personnel services
"Department for Levelling Up, Housing and Communities",Homes England,AGENCY STAFF,"Markets, Partners & Places",ALEXANDER MANN SOLUTIONS LIMITED,16/10/2023, 492.74 ,LAR,80111600,Temporary personnel services
"Department for Levelling Up, Housing and Communities",Homes England,AGENCY STAFF,Chief Customer Office,ALEXANDER MANN SOLUTIONS LIMITED,16/10/2023," 2,322.18 ",LAR,80111600,Temporary personnel services
"Department for Levelling Up, Housing and Communities",Homes England,AGENCY STAFF,Cido,ALEXANDER MANN SOLUTIONS LIMITED,16/10/2023," 3,465.30 ",LAR,80111600,Temporary personnel services
"Department for Levelling Up, Housing and Communities",Homes England,AGENCY STAFF,Cido,ALEXANDER MANN SOLUTIONS LIMITED,16/10/2023," 7,499.16 ",LAR,80111600,Temporary personnel services
"Department for Levelling Up, Housing and Communities",Homes England,AGENCY STAFF,Chief Operating Officer,ALEXANDER MANN SOLUTIONS LIMITED,16/10/2023," 3,079.62 ",LAR,80111600,Temporary personnel services
"Department for Levelling Up, Housing and Communities",Homes England,AGENCY STAFF,Corporate Resources,ALEXANDER MANN SOLUTIONS LIMITED,16/10/2023," 5,971.32 ",LAR,80111600,Temporary personnel services
"Department for Levelling Up, Housing and Communities",Homes England,AGENCY STAFF,Chief Customer Office,ALEXANDER MANN SOLUTIONS LIMITED,16/10/2023," 3,465.30 ",LAR,80111600,Temporary personnel services
"Department for Levelling Up, Housing and Communities",Homes England,AGENCY STAFF,Cido,ALEXANDER MANN SOLUTIONS LIMITED,16/10/2023," 3,408.72 ",LAR,80111600,Temporary personnel services
"Department for Levelling Up, Housing and Communities",Homes England,AGENCY STAFF,Cido,ALEXANDER MANN SOLUTIONS LIMITED,16/10/2023," 4,499.52 ",LAR,80111600,Temporary personnel services
"Department for Levelling Up, Housing and Communities",Homes England,AGENCY STAFF,Cido,ALEXANDER MANN SOLUTIONS LIMITED,16/10/2023," 2,322.18 ",LAR,80111600,Temporary personnel services
"Department for Levelling Up, Housing and Communities",Homes England,AGENCY STAFF,Cido,ALEXANDER MANN SOLUTIONS LIMITED,16/10/2023," 3,150.30 ",LAR,80111600,Temporary personnel services
"Department for Levelling Up, Housing and Communities",Homes England,AGENCY STAFF,Cido,ALEXANDER MANN SOLUTIONS LIMITED,16/10/2023," 4,601.77 ",LAR,80111600,Temporary personnel services
"Department for Levelling Up, Housing and Communities",Homes England,MISC PROFESSIONAL FEES,Chief Customer Office,ALEXANDER MANN SOLUTIONS LIMITED,16/10/2023," 3,150.24 ",LAR,80111600,Temporary personnel services
"Department for Levelling Up, Housing and Communities",Homes England,MISC PROFESSIONAL FEES,Chief Customer Office,ALEXANDER MANN SOLUTIONS LIMITED,16/10/2023," 3,150.24 ",LAR,80111600,Temporary personnel services
"Department for Levelling Up, Housing and Communities",Homes England,AGENCY STAFF,Cido,ALEXANDER MANN SOLUTIONS LIMITED,16/10/2023," 2,402.14 ",LAR,80111600,Temporary personnel services
"Department for Levelling Up, Housing and Communities",Homes England,AGENCY STAFF,Cido,ALEXANDER MANN SOLUTIONS LIMITED,17/10/2023," 3,780.36 ",LAR,80111600,Temporary personnel services
"Department for Levelling Up, Housing and Communities",Homes England,AGENCY STAFF,Cido,ALEXANDER MANN SOLUTIONS LIMITED,17/10/2023," 2,665.14 ",LAR,80111600,Temporary personnel services
"Department for Levelling Up, Housing and Communities",Homes England,AGENCY STAFF,Cido,ALEXANDER MANN SOLUTIONS LIMITED,17/10/2023," 3,780.36 ",LAR,80111600,Temporary personnel services
"Department for Levelling Up, Housing and Communities",Homes England,AGENCY STAFF,Cido,ALEXANDER MANN SOLUTIONS LIMITED,17/10/2023," 8,180.88 ",LAR,80111600,Temporary personnel services
"Department for Levelling Up, Housing and Communities",Homes England,AGENCY STAFF,Cido,ALEXANDER MANN SOLUTIONS LIMITED,17/10/2023," 2,665.14 ",LAR,80111600,Temporary personnel services
"Department for Levelling Up, Housing and Communities",Homes England,AGENCY STAFF,Cido,ALEXANDER MANN SOLUTIONS LIMITED,17/10/2023," 4,090.44 ",LAR,80111600,Temporary personnel services
"Department for Levelling Up, Housing and Communities",Homes England,AGENCY STAFF,Cido,ALEXANDER MANN SOLUTIONS LIMITED,17/10/2023," 2,665.14 ",LAR,80111600,Temporary personnel services
"Department for Levelling Up, Housing and Communities",Homes England,AGENCY STAFF,Cido,ALEXANDER MANN SOLUTIONS LIMITED,17/10/2023," 4,090.44 ",LAR,80111600,Temporary personnel services
"Department for Levelling Up, Housing and Communities",Homes England,AGENCY STAFF,Cido,ALEXANDER MANN SOLUTIONS LIMITED,17/10/2023," 4,090.44 ",LAR,80111600,Temporary personnel services
"Department for Levelling Up, Housing and Communities",Homes England,AGENCY STAFF,Chief Operating Officer,ALEXANDER MANN SOLUTIONS LIMITED,18/10/2023," 3,780.36 ",LAR,80111600,Temporary personnel services
"Department for Levelling Up, Housing and Communities",Homes England,AGENCY STAFF,Cido,ALEXANDER MANN SOLUTIONS LIMITED,18/10/2023," 3,780.36 ",LAR,80111600,Temporary personnel services
"Department for Levelling Up, Housing and Communities",Homes England,AGENCY STAFF,Cido,ALEXANDER MANN SOLUTIONS LIMITED,18/10/2023," 2,835.25 ",LAR,80111600,Temporary personnel services
"Department for Levelling Up, Housing and Communities",Homes England,AGENCY STAFF,Chief Operating Officer,ALEXANDER MANN SOLUTIONS LIMITED,18/10/2023," 3,780.36 ",LAR,80111600,Temporary personnel services
"Department for Levelling Up, Housing and Communities",Homes England,AGENCY STAFF,Cido,ALEXANDER MANN SOLUTIONS LIMITED,18/10/2023," 3,780.36 ",LAR,80111600,Temporary personnel services
"Department for Levelling Up, Housing and Communities",Homes England,AGENCY STAFF,Cido,ALEXANDER MANN SOLUTIONS LIMITED,18/10/2023," 2,835.25 ",LAR,80111600,Temporary personnel services
"Department for Levelling Up, Housing and Communities",Homes England,AGENCY STAFF,Chief Operating Officer,ALEXANDER MANN SOLUTIONS LIMITED,18/10/2023," 3,780.36 ",LAR,80111600,Temporary personnel services
"Department for Levelling Up, Housing and Communities",Homes England,AGENCY STAFF,Cido,ALEXANDER MANN SOLUTIONS LIMITED,18/10/2023," 4,725.42 ",LAR,80111600,Temporary personnel services
"Department for Levelling Up, Housing and Communities",Homes England,AGENCY STAFF,Cido,ALEXANDER MANN SOLUTIONS LIMITED,18/10/2023," 3,780.36 ",LAR,80111600,Temporary personnel services
"Department for Levelling Up, Housing and Communities",Homes England,AGENCY STAFF,Cido,ALEXANDER MANN SOLUTIONS LIMITED,18/10/2023," 4,725.42 ",LAR,80111600,Temporary personnel services
"Department for Levelling Up, Housing and Communities",Homes England,AGENCY STAFF,Cido,ALEXANDER MANN SOLUTIONS LIMITED,18/10/2023," 3,780.36 ",LAR,80111600,Temporary personnel services
"Department for Levelling Up, Housing and Communities",Homes England,AGENCY STAFF,Chief Operating Officer,ALEXANDER MANN SOLUTIONS LIMITED,18/10/2023," 3,780.36 ",LAR,80111600,Temporary personnel services
"Department for Levelling Up, Housing and Communities",Homes England,AGENCY STAFF,Cido,ALEXANDER MANN SOLUTIONS LIMITED,18/10/2023," 4,725.42 ",LAR,80111600,Temporary personnel services
"Department for Levelling Up, Housing and Communities",Homes England,AGENCY STAFF,Development,ALEXANDER MANN SOLUTIONS LIMITED,18/10/2023," 7,182.68 ",LAR,80111600,Temporary personnel services
"Department for Levelling Up, Housing and Communities",Homes England,AGENCY STAFF,Cido,ALEXANDER MANN SOLUTIONS LIMITED,19/10/2023," 3,597.66 ",LAR,80111600,Temporary personnel services
"Department for Levelling Up, Housing and Communities",Homes England,AGENCY STAFF,Cido,ALEXANDER MANN SOLUTIONS LIMITED,19/10/2023," 3,459.00 ",LAR,80111600,Temporary personnel services
"Department for Levelling Up, Housing and Communities",Homes England,AGENCY STAFF,Cido,ALEXANDER MANN SOLUTIONS LIMITED,19/10/2023," 3,597.66 ",LAR,80111600,Temporary personnel services
"Department for Levelling Up, Housing and Communities",Homes England,AGENCY STAFF,Cido,ALEXANDER MANN SOLUTIONS LIMITED,19/10/2023," 2,665.14 ",LAR,80111600,Temporary personnel services
"Department for Levelling Up, Housing and Communities",Homes England,AGENCY STAFF,Cido,ALEXANDER MANN SOLUTIONS LIMITED,20/10/2023," 3,597.66 ",LAR,80111600,Temporary personnel services
"Department for Levelling Up, Housing and Communities",Homes England,AGENCY STAFF,"Markets, Partners & Places",ALEXANDER MANN SOLUTIONS LIMITED,20/10/2023," 1,724.60 ",LAR,80111600,Temporary personnel services
"Department for Levelling Up, Housing and Communities",Homes England,AGENCY STAFF,Cido,ALEXANDER MANN SOLUTIONS LIMITED,20/10/2023," 2,322.18 ",LAR,80111600,Temporary personnel services
"Department for Levelling Up, Housing and Communities",Homes England,AGENCY STAFF,Cido,ALEXANDER MANN SOLUTIONS LIMITED,20/10/2023," 3,459.00 ",LAR,80111600,Temporary personnel services
"Department for Levelling Up, Housing and Communities",Homes England,AGENCY STAFF,Chief Customer Office,ALEXANDER MANN SOLUTIONS LIMITED,23/10/2023," 2,089.97 ",LAR,80111600,Temporary personnel services
"Department for Levelling Up, Housing and Communities",Homes England,AGENCY STAFF,Chief Customer Office,ALEXANDER MANN SOLUTIONS LIMITED,23/10/2023," 4,644.36 ",LAR,80111600,Temporary personnel services
"Department for Levelling Up, Housing and Communities",Homes England,AGENCY STAFF,Chief Operating Officer,ALEXANDER MANN SOLUTIONS LIMITED,23/10/2023," 7,560.72 ",LAR,80111600,Temporary personnel services
"Department for Levelling Up, Housing and Communities",Homes England,AGENCY STAFF,Cido,ALEXANDER MANN SOLUTIONS LIMITED,23/10/2023," 3,024.29 ",LAR,80111600,Temporary personnel services
"Department for Levelling Up, Housing and Communities",Homes England,AGENCY STAFF,Cido,ALEXANDER MANN SOLUTIONS LIMITED,23/10/2023," 3,465.30 ",LAR,80111600,Temporary personnel services
"Department for Levelling Up, Housing and Communities",Homes England,MISC PROFESSIONAL FEES,Chief Customer Office,ALEXANDER MANN SOLUTIONS LIMITED,23/10/2023," 3,748.86 ",LAR,80111600,Temporary personnel services
"Department for Levelling Up, Housing and Communities",Homes England,AGENCY STAFF,Cido,ALEXANDER MANN SOLUTIONS LIMITED,23/10/2023," 3,597.66 ",LAR,80111600,Temporary personnel services
"Department for Levelling Up, Housing and Communities",Homes England,AGENCY STAFF,Cido,ALEXANDER MANN SOLUTIONS LIMITED,23/10/2023," 4,725.42 ",LAR,80111600,Temporary personnel services
"Department for Levelling Up, Housing and Communities",Homes England,AGENCY STAFF,Cido,ALEXANDER MANN SOLUTIONS LIMITED,23/10/2023," 3,465.30 ",LAR,80111600,Temporary personnel services
"Department for Levelling Up, Housing and Communities",Homes England,AGENCY STAFF,Cido,ALEXANDER MANN SOLUTIONS LIMITED,23/10/2023," 2,772.24 ",LAR,80111600,Temporary personnel services
"Department for Levelling Up, Housing and Communities",Homes England,AGENCY STAFF,Cido,ALEXANDER MANN SOLUTIONS LIMITED,23/10/2023," 6,930.60 ",LAR,80111600,Temporary personnel services
"Department for Levelling Up, Housing and Communities",Homes England,AGENCY STAFF,Cido,ALEXANDER MANN SOLUTIONS LIMITED,23/10/2023," 6,930.60 ",LAR,80111600,Temporary personnel services
"Department for Levelling Up, Housing and Communities",Homes England,AGENCY STAFF,Cido,ALEXANDER MANN SOLUTIONS LIMITED,23/10/2023," 3,459.00 ",LAR,80111600,Temporary personnel services
"Department for Levelling Up, Housing and Communities",Homes England,AGENCY STAFF,Chief Customer Office,ALEXANDER MANN SOLUTIONS LIMITED,23/10/2023," 3,465.30 ",LAR,80111600,Temporary personnel services
"Department for Levelling Up, Housing and Communities",Homes England,AGENCY STAFF,Cido,ALEXANDER MANN SOLUTIONS LIMITED,23/10/2023," 7,499.16 ",LAR,80111600,Temporary personnel services
"Department for Levelling Up, Housing and Communities",Homes England,AGENCY STAFF,Cido,ALEXANDER MANN SOLUTIONS LIMITED,23/10/2023," 4,499.52 ",LAR,80111600,Temporary personnel services
"Department for Levelling Up, Housing and Communities",Homes England,AGENCY STAFF,Cido,ALEXANDER MANN SOLUTIONS LIMITED,23/10/2023," 6,300.60 ",LAR,80111600,Temporary personnel services
"Department for Levelling Up, Housing and Communities",Homes England,AGENCY STAFF,Cido,ALEXANDER MANN SOLUTIONS LIMITED,23/10/2023," 4,090.44 ",LAR,80111600,Temporary personnel services
"Department for Levelling Up, Housing and Communities",Homes England,AGENCY STAFF,Cido,ALEXANDER MANN SOLUTIONS LIMITED,23/10/2023," 8,180.88 ",LAR,80111600,Temporary personnel services
"Department for Levelling Up, Housing and Communities",Homes England,AGENCY STAFF,Cido,ALEXANDER MANN SOLUTIONS LIMITED,23/10/2023," 2,322.18 ",LAR,80111600,Temporary personnel services
"Department for Levelling Up, Housing and Communities",Homes England,AGENCY STAFF,Cido,ALEXANDER MANN SOLUTIONS LIMITED,23/10/2023," 3,150.30 ",LAR,80111600,Temporary personnel services
"Department for Levelling Up, Housing and Communities",Homes England,AGENCY STAFF,Cido,ALEXANDER MANN SOLUTIONS LIMITED,23/10/2023," 5,113.08 ",LAR,80111600,Temporary personnel services
"Department for Levelling Up, Housing and Communities",Homes England,AGENCY STAFF,Cido,ALEXANDER MANN SOLUTIONS LIMITED,23/10/2023," 2,402.14 ",LAR,80111600,Temporary personnel services
"Department for Levelling Up, Housing and Communities",Homes England,AGENCY STAFF,Cido,ALEXANDER MANN SOLUTIONS LIMITED,23/10/2023," 3,465.30 ",LAR,80111600,Temporary personnel services
"Department for Levelling Up, Housing and Communities",Homes England,AGENCY STAFF,Cido,ALEXANDER MANN SOLUTIONS LIMITED,24/10/2023," 8,862.72 ",LAR,80111600,Temporary personnel services
"Department for Levelling Up, Housing and Communities",Homes England,AGENCY STAFF,Cido,ALEXANDER MANN SOLUTIONS LIMITED,24/10/2023," 3,408.72 ",LAR,80111600,Temporary personnel services
"Department for Levelling Up, Housing and Communities",Homes England,MISC PROFESSIONAL FEES,Chief Customer Office,ALEXANDER MANN SOLUTIONS LIMITED,25/10/2023," 2,835.24 ",LAR,80111600,Temporary personnel services
"Department for Levelling Up, Housing and Communities",Homes England,MISC PROFESSIONAL FEES,Chief Customer Office,ALEXANDER MANN SOLUTIONS LIMITED,25/10/2023," 2,835.24 ",LAR,80111600,Temporary personnel services
"Department for Levelling Up, Housing and Communities",Homes England,MISC PROFESSIONAL FEES,Chief Customer Office,ALEXANDER MANN SOLUTIONS LIMITED,25/10/2023," 2,835.24 ",LAR,80111600,Temporary personnel services
"Department for Levelling Up, Housing and Communities",Homes England,AGENCY STAFF,Cido,ALEXANDER MANN SOLUTIONS LIMITED,25/10/2023," 3,238.26 ",LAR,80111600,Temporary personnel services
"Department for Levelling Up, Housing and Communities",Homes England,AGENCY STAFF,Cido,ALEXANDER MANN SOLUTIONS LIMITED,25/10/2023," 3,749.58 ",LAR,80111600,Temporary personnel services
"Department for Levelling Up, Housing and Communities",Homes England,MISC PROFESSIONAL FEES,Chief Customer Office,ALEXANDER MANN SOLUTIONS LIMITED,25/10/2023," 2,835.24 ",LAR,80111600,Temporary personnel services
"Department for Levelling Up, Housing and Communities",Homes England,AGENCY STAFF,Cido,ALEXANDER MANN SOLUTIONS LIMITED,27/10/2023," 3,597.66 ",LAR,80111600,Temporary personnel services
"Department for Levelling Up, Housing and Communities",Homes England,MISC PROFESSIONAL FEES,Investment,ALEXANDER MANN SOLUTIONS LIMITED,30/10/2023," 3,118.78 ",LAR,80111600,Temporary personnel services
"Department for Levelling Up, Housing and Communities",Homes England,STAFF RECRUITMENT COSTS,Investment,ALEXANDER MANN SOLUTIONS LIMITED,30/10/2023," 4,410.42 ",LAR,80111700,Personnel Recruitment
"Department for Levelling Up, Housing and Communities",Homes England,MISC PROFESSIONAL FEES,Investment,ALEXANDER MANN SOLUTIONS LIMITED,30/10/2023," 3,465.30 ",LAR,80111600,Temporary personnel services
"Department for Levelling Up, Housing and Communities",Homes England,STAFF RECRUITMENT COSTS,Investment,ALEXANDER MANN SOLUTIONS LIMITED,30/10/2023," 4,410.42 ",LAR,80111700,Personnel Recruitment
"Department for Levelling Up, Housing and Communities",Homes England,MISC PROFESSIONAL FEES,Investment,ALEXANDER MANN SOLUTIONS LIMITED,30/10/2023," 3,465.30 ",LAR,80111600,Temporary personnel services
"Department for Levelling Up, Housing and Communities",Homes England,AGENCY STAFF,Chief Risk Officer,ALEXANDER MANN SOLUTIONS LIMITED,30/10/2023," 8,937.38 ",LAR,80111600,Temporary personnel services
"Department for Levelling Up, Housing and Communities",Homes England,AGENCY STAFF,Corporate Resources,ALEXANDER MANN SOLUTIONS LIMITED,30/10/2023," 3,317.40 ",LAR,80111600,Temporary personnel services
"Department for Levelling Up, Housing and Communities",Homes England,STAFF RECRUITMENT COSTS,Investment,ALEXANDER MANN SOLUTIONS LIMITED,30/10/2023," 4,410.42 ",LAR,80111700,Personnel Recruitment
"Department for Levelling Up, Housing and Communities",Homes England,MISC PROFESSIONAL FEES,Investment,ALEXANDER MANN SOLUTIONS LIMITED,30/10/2023," 3,465.30 ",LAR,80111600,Temporary personnel services
"Department for Levelling Up, Housing and Communities",Homes England,AGENCY STAFF,Cido,ALEXANDER MANN SOLUTIONS LIMITED,30/10/2023," 3,238.26 ",LAR,80111600,Temporary personnel services
"Department for Levelling Up, Housing and Communities",Homes England,AGENCY STAFF,Cido,ALEXANDER MANN SOLUTIONS LIMITED,30/10/2023," 3,749.58 ",LAR,80111600,Temporary personnel services
"Department for Levelling Up, Housing and Communities",Homes England,AGENCY STAFF,Cido,ALEXANDER MANN SOLUTIONS LIMITED,30/10/2023," 5,999.33 ",LAR,80111600,Temporary personnel services
"Department for Levelling Up, Housing and Communities",Homes England,AGENCY STAFF,Cido,ALEXANDER MANN SOLUTIONS LIMITED,30/10/2023," 4,260.90 ",LAR,80111600,Temporary personnel services
"Department for Levelling Up, Housing and Communities",Homes England,AGENCY STAFF,Cido,ALEXANDER MANN SOLUTIONS LIMITED,30/10/2023," 3,465.30 ",LAR,80111600,Temporary personnel services
"Department for Levelling Up, Housing and Communities",Homes England,AGENCY STAFF,Cido,ALEXANDER MANN SOLUTIONS LIMITED,30/10/2023," 3,597.66 ",LAR,80111600,Temporary personnel services
"Department for Levelling Up, Housing and Communities",Homes England,AGENCY STAFF,Cido,ALEXANDER MANN SOLUTIONS LIMITED,30/10/2023," 3,597.66 ",LAR,80111600,Temporary personnel services
"Department for Levelling Up, Housing and Communities",Homes England,AGENCY STAFF,Cido,ALEXANDER MANN SOLUTIONS LIMITED,30/10/2023," 10,206.96 ",LAR,80111600,Temporary personnel services
"Department for Levelling Up, Housing and Communities",Homes England,AGENCY STAFF,Cido,ALEXANDER MANN SOLUTIONS LIMITED,30/10/2023," 3,465.30 ",LAR,80111600,Temporary personnel services
"Department for Levelling Up, Housing and Communities",Homes England,AGENCY STAFF,Cido,ALEXANDER MANN SOLUTIONS LIMITED,30/10/2023," 3,459.00 ",LAR,80111600,Temporary personnel services
"Department for Levelling Up, Housing and Communities",Homes England,AGENCY STAFF,Chief Customer Office,ALEXANDER MANN SOLUTIONS LIMITED,30/10/2023," 3,465.30 ",LAR,80111600,Temporary personnel services
"Department for Levelling Up, Housing and Communities",Homes England,AGENCY STAFF,Cido,ALEXANDER MANN SOLUTIONS LIMITED,30/10/2023," 6,817.44 ",LAR,80111600,Temporary personnel services
"Department for Levelling Up, Housing and Communities",Homes England,STAFF RECRUITMENT COSTS,Investment,ALEXANDER MANN SOLUTIONS LIMITED,30/10/2023," 4,410.42 ",LAR,80111700,Personnel Recruitment
"Department for Levelling Up, Housing and Communities",Homes England,MISC PROFESSIONAL FEES,Investment,ALEXANDER MANN SOLUTIONS LIMITED,30/10/2023," 2,079.18 ",LAR,80111600,Temporary personnel services
"Department for Levelling Up, Housing and Communities",Homes England,AGENCY STAFF,Cido,ALEXANDER MANN SOLUTIONS LIMITED,30/10/2023," 3,465.30 ",LAR,80111600,Temporary personnel services
"Department for Levelling Up, Housing and Communities",Homes England,AGENCY STAFF,Development,ALEXANDER MANN SOLUTIONS LIMITED,31/10/2023," 16,383.86 ",LAR,80111600,Temporary personnel services
"Department for Levelling Up, Housing and Communities",Homes England,AGENCY STAFF,Chief Risk Officer,ALEXANDER MANN SOLUTIONS LIMITED,31/10/2023," 9,930.42 ",LAR,80111600,Temporary personnel services
"Department for Levelling Up, Housing and Communities",Homes England,AGENCY STAFF,Cido,ALEXANDER MANN SOLUTIONS LIMITED,31/10/2023," 3,024.29 ",LAR,80111600,Temporary personnel services
"Department for Levelling Up, Housing and Communities",Homes England,MISC PROFESSIONAL FEES,Chief Customer Office,ALEXANDER MANN SOLUTIONS LIMITED,31/10/2023," 3,748.86 ",LAR,80111600,Temporary personnel services
"Department for Levelling Up, Housing and Communities",Homes England,AGENCY STAFF,Development,ALEXANDER MANN SOLUTIONS LIMITED,31/10/2023," 11,702.76 ",LAR,80111600,Temporary personnel services
"Department for Levelling Up, Housing and Communities",Homes England,AGENCY STAFF,Development,ALEXANDER MANN SOLUTIONS LIMITED,31/10/2023," 3,780.36 ",LAR,80111600,Temporary personnel services
"Department for Levelling Up, Housing and Communities",Homes England,AGENCY STAFF,Cido,ALEXANDER MANN SOLUTIONS LIMITED,31/10/2023," 4,788.46 ",LAR,80111600,Temporary personnel services
"Department for Levelling Up, Housing and Communities",Homes England,AGENCY STAFF,Development,ALEXANDER MANN SOLUTIONS LIMITED,31/10/2023," 3,317.40 ",LAR,80111600,Temporary personnel services
"Department for Levelling Up, Housing and Communities",Homes England,ESTATE GENERAL MAINTENANCE,Development,AGA GROUP ENVIRO-FIX LIMITED,30/10/2023," 3,960.00 ",SMA,72101500,Building maintenance and repair services
"Department for Levelling Up, Housing and Communities",Homes England,ESTATE GENERAL MAINTENANCE,Development,AGA GROUP ENVIRO-FIX LIMITED,30/10/2023," 2,126.88 ",SMA,72101500,Building maintenance and repair services
"Department for Levelling Up, Housing and Communities",Homes England,SECURITY,Chief Operating Officer,ASTUTE TECHNOLOGY LTD,10/10/2023, 600.00 ,MIC,92121500,Guard services
"Department for Levelling Up, Housing and Communities",Homes England,CAR LEASING - HIRE CHARGES,"Markets, Partners & Places",ARVAL UK LIMITED,05/10/2023,"-1,018.82 ",LAR,25101500,Passenger motor vehicles
"Department for Levelling Up, Housing and Communities",Homes England,CAR LEASING - HIRE CHARGES,"Markets, Partners & Places",ARVAL UK LIMITED,05/10/2023,-254.71 ,LAR,25101500,Passenger motor vehicles
"Department for Levelling Up, Housing and Communities",Homes England,CAR LEASING - HIRE CHARGES,Corporate Allocations,ARVAL UK LIMITED,05/10/2023, 182.99 ,LAR,25101500,Passenger motor vehicles
"Department for Levelling Up, Housing and Communities",Homes England,CAR LEASING - HIRE CHARGES,Corporate Allocations,ARVAL UK LIMITED,05/10/2023, 242.97 ,LAR,25101500,Passenger motor vehicles
"Department for Levelling Up, Housing and Communities",Homes England,CAR LEASING - HIRE CHARGES,Corporate Allocations,ARVAL UK LIMITED,05/10/2023, 218.96 ,LAR,25101500,Passenger motor vehicles
"Department for Levelling Up, Housing and Communities",Homes England,CAR LEASING - HIRE CHARGES,Corporate Allocations,ARVAL UK LIMITED,05/10/2023, 278.79 ,LAR,25101500,Passenger motor vehicles
"Department for Levelling Up, Housing and Communities",Homes England,CAR LEASING - HIRE CHARGES,Corporate Allocations,ARVAL UK LIMITED,06/10/2023, 202.47 ,LAR,25101500,Passenger motor vehicles
"Department for Levelling Up, Housing and Communities",Homes England,CAR LEASING - HIRE CHARGES,Corporate Allocations,ARVAL UK LIMITED,06/10/2023, 262.44 ,LAR,25101500,Passenger motor vehicles
"Department for Levelling Up, Housing and Communities",Homes England,CAR LEASING - HIRE CHARGES,Corporate Allocations,ARVAL UK LIMITED,09/10/2023, 130.99 ,LAR,25101500,Passenger motor vehicles
"Department for Levelling Up, Housing and Communities",Homes England,CAR LEASING - HIRE CHARGES,Corporate Allocations,ARVAL UK LIMITED,09/10/2023, 184.39 ,LAR,25101500,Passenger motor vehicles
"Department for Levelling Up, Housing and Communities",Homes England,CAR LEASING - HIRE CHARGES,Corporate Allocations,ARVAL UK LIMITED,10/10/2023, 108.70 ,LAR,25101500,Passenger motor vehicles
"Department for Levelling Up, Housing and Communities",Homes England,CAR LEASING - HIRE CHARGES,Corporate Allocations,ARVAL UK LIMITED,10/10/2023, 161.64 ,LAR,25101500,Passenger motor vehicles
"Department for Levelling Up, Housing and Communities",Homes England,CAR LEASING - HIRE CHARGES,Corporate Allocations,ARVAL UK LIMITED,10/10/2023, 183.02 ,LAR,25101500,Passenger motor vehicles
"Department for Levelling Up, Housing and Communities",Homes England,CAR LEASING - HIRE CHARGES,Corporate Allocations,ARVAL UK LIMITED,10/10/2023, 280.62 ,LAR,25101500,Passenger motor vehicles
"Department for Levelling Up, Housing and Communities",Homes England,CAR LEASING - HIRE CHARGES,Corporate Allocations,ARVAL UK LIMITED,10/10/2023, 203.28 ,LAR,25101500,Passenger motor vehicles
"Department for Levelling Up, Housing and Communities",Homes England,CAR LEASING - HIRE CHARGES,Corporate Allocations,ARVAL UK LIMITED,10/10/2023, 269.44 ,LAR,25101500,Passenger motor vehicles
"Department for Levelling Up, Housing and Communities",Homes England,CAR LEASING - HIRE CHARGES,Corporate Allocations,ARVAL UK LIMITED,10/10/2023, 135.08 ,LAR,25101500,Passenger motor vehicles
"Department for Levelling Up, Housing and Communities",Homes England,CAR LEASING - HIRE CHARGES,Corporate Allocations,ARVAL UK LIMITED,10/10/2023, 190.28 ,LAR,25101500,Passenger motor vehicles
"Department for Levelling Up, Housing and Communities",Homes England,CAR LEASING - HIRE CHARGES,Corporate Allocations,ARVAL UK LIMITED,11/10/2023, 426.90 ,LAR,25101500,Passenger motor vehicles
"Department for Levelling Up, Housing and Communities",Homes England,CAR LEASING - HIRE CHARGES,Corporate Allocations,ARVAL UK LIMITED,13/10/2023, 114.34 ,LAR,25101500,Passenger motor vehicles
"Department for Levelling Up, Housing and Communities",Homes England,CAR LEASING - HIRE CHARGES,Corporate Allocations,ARVAL UK LIMITED,13/10/2023, 169.38 ,LAR,25101500,Passenger motor vehicles
"Department for Levelling Up, Housing and Communities",Homes England,CAR LEASING - HIRE CHARGES,Corporate Allocations,ARVAL UK LIMITED,17/10/2023, 331.19 ,LAR,25101500,Passenger motor vehicles
"Department for Levelling Up, Housing and Communities",Homes England,CAR LEASING - HIRE CHARGES,Corporate Allocations,ARVAL UK LIMITED,18/10/2023, 185.74 ,LAR,25101500,Passenger motor vehicles
"Department for Levelling Up, Housing and Communities",Homes England,CAR LEASING - HIRE CHARGES,Corporate Allocations,ARVAL UK LIMITED,18/10/2023, 231.30 ,LAR,25101500,Passenger motor vehicles
"Department for Levelling Up, Housing and Communities",Homes England,CAR LEASING - HIRE CHARGES,Corporate Allocations,ARVAL UK LIMITED,18/10/2023, 194.22 ,LAR,25101500,Passenger motor vehicles
"Department for Levelling Up, Housing and Communities",Homes England,CAR LEASING - HIRE CHARGES,Corporate Allocations,ARVAL UK LIMITED,18/10/2023, 244.33 ,LAR,25101500,Passenger motor vehicles
"Department for Levelling Up, Housing and Communities",Homes England,CAR LEASING - HIRE CHARGES,Corporate Allocations,ARVAL UK LIMITED,23/10/2023, 338.34 ,LAR,25101500,Passenger motor vehicles
"Department for Levelling Up, Housing and Communities",Homes England,CAR LEASING - HIRE CHARGES,Corporate Allocations,ARVAL UK LIMITED,24/10/2023, 202.81 ,LAR,25101500,Passenger motor vehicles
"Department for Levelling Up, Housing and Communities",Homes England,CAR LEASING - HIRE CHARGES,Corporate Allocations,ARVAL UK LIMITED,24/10/2023, 231.12 ,LAR,25101500,Passenger motor vehicles
"Department for Levelling Up, Housing and Communities",Homes England,VALUATION FEES,Development,ASPINALL VERDI LIMITED,05/10/2023," 2,512.04 ",SMA,80131800,Real estate management services
"Department for Levelling Up, Housing and Communities",Homes England,LAND REMEDIATION,"Markets, Partners & Places",AURORA HEALTH PHYSICS SERVICES LTD,04/10/2023," 4,358.40 ",SMA,72141500,Land preparation services
"Department for Levelling Up, Housing and Communities",Homes England,AGENCY STAFF,Chief Customer Office,ALLEN LANE LIMITED,06/10/2023," 3,630.00 ",LAR,80111600,Temporary personnel services
"Department for Levelling Up, Housing and Communities",Homes England,AGENCY STAFF,Chief Customer Office,ALLEN LANE LIMITED,06/10/2023," 3,960.00 ",LAR,80111600,Temporary personnel services
"Department for Levelling Up, Housing and Communities",Homes England,AGENCY STAFF,Chief Customer Office,ALLEN LANE LIMITED,06/10/2023," 3,795.00 ",LAR,80111600,Temporary personnel services
"Department for Levelling Up, Housing and Communities",Homes England,AGENCY STAFF,Chief Customer Office,ALLEN LANE LIMITED,06/10/2023," 3,795.00 ",LAR,80111600,Temporary personnel services
"Department for Levelling Up, Housing and Communities",Homes England,AGENCY STAFF,Chief Customer Office,ALLEN LANE LIMITED,06/10/2023," 3,795.00 ",LAR,80111600,Temporary personnel services
"Department for Levelling Up, Housing and Communities",Homes England,ESTATE GENERAL MAINTENANCE,Development,AIREDALE FORESTRY,02/10/2023, 393.36 ,SMA,72101500,Building maintenance and repair services
"Department for Levelling Up, Housing and Communities",Homes England,ESTATE GENERAL MAINTENANCE,"Markets, Partners & Places",AIREDALE FORESTRY,02/10/2023, 653.28 ,SMA,72101500,Building maintenance and repair services
"Department for Levelling Up, Housing and Communities",Homes England,ESTATE GENERAL MAINTENANCE,Development,AIREDALE FORESTRY,02/10/2023, 339.16 ,SMA,72101500,Building maintenance and repair services
"Department for Levelling Up, Housing and Communities",Homes England,ESTATE GENERAL MAINTENANCE,Development,AIREDALE FORESTRY,02/10/2023, 492.02 ,SMA,72101500,Building maintenance and repair services
"Department for Levelling Up, Housing and Communities",Homes England,LANDSCAPE MAINT-BUILT ESTATE,Development,AIREDALE FORESTRY,11/10/2023, 492.00 ,SMA,72102900,Facility maintenance and repair services
"Department for Levelling Up, Housing and Communities",Homes England,LANDSCAPE MAINT-BUILT ESTATE,Development,AIREDALE FORESTRY,11/10/2023, 336.00 ,SMA,72102900,Facility maintenance and repair services
"Department for Levelling Up, Housing and Communities",Homes England,ESTATE GENERAL MAINTENANCE,Development,AIREDALE FORESTRY,12/10/2023, 439.44 ,SMA,72101500,Building maintenance and repair services
"Department for Levelling Up, Housing and Communities",Homes England,ESTATE GENERAL MAINTENANCE,Development,AIREDALE FORESTRY,12/10/2023, 292.55 ,SMA,72101500,Building maintenance and repair services
"Department for Levelling Up, Housing and Communities",Homes England,ESTATE GENERAL MAINTENANCE,Development,AIREDALE FORESTRY,12/10/2023, 436.07 ,SMA,72101500,Building maintenance and repair services
"Department for Levelling Up, Housing and Communities",Homes England,ESTATE GENERAL MAINTENANCE,Development,AIREDALE FORESTRY,12/10/2023, 439.44 ,SMA,72101500,Building maintenance and repair services
"Department for Levelling Up, Housing and Communities",Homes England,ESTATE GENERAL MAINTENANCE,Development,AIREDALE FORESTRY,12/10/2023, 292.55 ,SMA,72101500,Building maintenance and repair services
"Department for Levelling Up, Housing and Communities",Homes England,ESTATE GENERAL MAINTENANCE,Development,AIREDALE FORESTRY,12/10/2023," 1,617.60 ",SMA,72101500,Building maintenance and repair services
"Department for Levelling Up, Housing and Communities",Homes England,ESTATE GENERAL MAINTENANCE,Development,AIREDALE FORESTRY,30/10/2023, 419.24 ,SMA,72101500,Building maintenance and repair services
"Department for Levelling Up, Housing and Communities",Homes England,ESTATE GENERAL MAINTENANCE,Development,AIREDALE FORESTRY,30/10/2023, 393.60 ,SMA,72101500,Building maintenance and repair services
"Department for Levelling Up, Housing and Communities",Homes England,ESTATE GENERAL MAINTENANCE,Development,AIREDALE FORESTRY,30/10/2023," 1,204.80 ",SMA,72101500,Building maintenance and repair services
"Department for Levelling Up, Housing and Communities",Homes England,ESTATE GENERAL MAINTENANCE,"Markets, Partners & Places",AIREDALE FORESTRY,30/10/2023, 653.28 ,SMA,72101500,Building maintenance and repair services
"Department for Levelling Up, Housing and Communities",Homes England,ESTATE GENERAL MAINTENANCE,Development,AIREDALE FORESTRY,30/10/2023, 336.00 ,SMA,72101500,Building maintenance and repair services
"Department for Levelling Up, Housing and Communities",Homes England,LUHBF Loans Additions,Investment,APPERLEY VIEW LTD,18/10/2023," 153,156.52 ",MIC,None,Loans
"Department for Levelling Up, Housing and Communities",Homes England,LEGAL FEES (PROGRAMME - RDEL),Investment,ASHFORDS,03/10/2023, 900.00 ,LAR,80121600,Business law services
"Department for Levelling Up, Housing and Communities",Homes England,LEGAL FEES (PROGRAMME - RDEL),Development,ASHFORDS,12/10/2023," 3,300.00 ",LAR,80121600,Business law services
"Department for Levelling Up, Housing and Communities",Homes England,LEGAL FEES (PROGRAMME - RDEL),Investment,ASHFORDS,24/10/2023," 1,800.00 ",LAR,80121600,Business law services
"Department for Levelling Up, Housing and Communities",Homes England,ESTATE GENERAL MAINTENANCE,Development,ATLAS CONTRACTORS LIMITED,10/10/2023," 4,272.00 ",MIC,80121600,Business law services
"Department for Levelling Up, Housing and Communities",Homes England,LEGAL FEES (PROGRAMME - RDEL),Development,ATLAS CONTRACTORS LIMITED,16/10/2023," 2,472.00 ",MIC,80121600,Business law services
"Department for Levelling Up, Housing and Communities",Homes England,MISC PROFESSIONAL FEES,Development,AQUEOUS 1ST KWIKFLOW LTD,25/10/2023," 4,818.00 ",MED,92121500,Guard services
"Department for Levelling Up, Housing and Communities",Homes England,MISC PROFESSIONAL FEES,Development,AQUEOUS 1ST KWIKFLOW LTD,25/10/2023," 8,310.00 ",MED,92121500,Guard services
"Department for Levelling Up, Housing and Communities",Homes England,CAR LEASING - HIRE CHARGES,Corporate Allocations,ARNOLD CLARK FINANCE LIMITED,05/10/2023, 182.59 ,LAR,25101500,Passenger motor vehicles
"Department for Levelling Up, Housing and Communities",Homes England,CAR LEASING - HIRE CHARGES,Corporate Allocations,ARNOLD CLARK FINANCE LIMITED,05/10/2023, 203.55 ,LAR,25101500,Passenger motor vehicles
"Department for Levelling Up, Housing and Communities",Homes England,CAR LEASING - HIRE CHARGES,Corporate Allocations,ARNOLD CLARK FINANCE LIMITED,05/10/2023, 157.63 ,LAR,25101500,Passenger motor vehicles
"Department for Levelling Up, Housing and Communities",Homes England,CAR LEASING - HIRE CHARGES,Corporate Allocations,ARNOLD CLARK FINANCE LIMITED,05/10/2023, 175.87 ,LAR,25101500,Passenger motor vehicles
"Department for Levelling Up, Housing and Communities",Homes England,CAR LEASING - HIRE CHARGES,Corporate Allocations,ARNOLD CLARK FINANCE LIMITED,05/10/2023, 191.18 ,LAR,25101500,Passenger motor vehicles
"Department for Levelling Up, Housing and Communities",Homes England,CAR LEASING - HIRE CHARGES,Corporate Allocations,ARNOLD CLARK FINANCE LIMITED,05/10/2023, 217.99 ,LAR,25101500,Passenger motor vehicles
"Department for Levelling Up, Housing and Communities",Homes England,CAR LEASING - HIRE CHARGES,Corporate Allocations,ARNOLD CLARK FINANCE LIMITED,05/10/2023, 230.89 ,LAR,25101500,Passenger motor vehicles
"Department for Levelling Up, Housing and Communities",Homes England,CAR LEASING - HIRE CHARGES,Corporate Allocations,ARNOLD CLARK FINANCE LIMITED,05/10/2023, 272.82 ,LAR,25101500,Passenger motor vehicles
"Department for Levelling Up, Housing and Communities",Homes England,CAR LEASING - HIRE CHARGES,Corporate Allocations,ARNOLD CLARK FINANCE LIMITED,05/10/2023, 189.65 ,LAR,25101500,Passenger motor vehicles
"Department for Levelling Up, Housing and Communities",Homes England,CAR LEASING - HIRE CHARGES,Corporate Allocations,ARNOLD CLARK FINANCE LIMITED,05/10/2023, 231.76 ,LAR,25101500,Passenger motor vehicles
"Department for Levelling Up, Housing and Communities",Homes England,CAR LEASING - HIRE CHARGES,Corporate Allocations,ARNOLD CLARK FINANCE LIMITED,05/10/2023, 155.41 ,LAR,25101500,Passenger motor vehicles
"Department for Levelling Up, Housing and Communities",Homes England,CAR LEASING - HIRE CHARGES,Corporate Allocations,ARNOLD CLARK FINANCE LIMITED,05/10/2023, 187.65 ,LAR,25101500,Passenger motor vehicles
"Department for Levelling Up, Housing and Communities",Homes England,CAR LEASING - HIRE CHARGES,Corporate Allocations,ARNOLD CLARK FINANCE LIMITED,06/10/2023, 222.13 ,LAR,25101500,Passenger motor vehicles
"Department for Levelling Up, Housing and Communities",Homes England,CAR LEASING - HIRE CHARGES,Corporate Allocations,ARNOLD CLARK FINANCE LIMITED,06/10/2023, 280.80 ,LAR,25101500,Passenger motor vehicles
"Department for Levelling Up, Housing and Communities",Homes England,CAR LEASING - HIRE CHARGES,Corporate Allocations,ARNOLD CLARK FINANCE LIMITED,09/10/2023, 137.38 ,LAR,25101500,Passenger motor vehicles
"Department for Levelling Up, Housing and Communities",Homes England,CAR LEASING - HIRE CHARGES,Corporate Allocations,ARNOLD CLARK FINANCE LIMITED,09/10/2023, 174.91 ,LAR,25101500,Passenger motor vehicles
"Department for Levelling Up, Housing and Communities",Homes England,CAR LEASING - HIRE CHARGES,Corporate Allocations,ARNOLD CLARK FINANCE LIMITED,09/10/2023, 162.30 ,LAR,25101500,Passenger motor vehicles
"Department for Levelling Up, Housing and Communities",Homes England,CAR LEASING - HIRE CHARGES,Corporate Allocations,ARNOLD CLARK FINANCE LIMITED,09/10/2023, 233.68 ,LAR,25101500,Passenger motor vehicles
"Department for Levelling Up, Housing and Communities",Homes England,CAR LEASING - HIRE CHARGES,Corporate Allocations,ARNOLD CLARK FINANCE LIMITED,09/10/2023, 229.18 ,LAR,25101500,Passenger motor vehicles
"Department for Levelling Up, Housing and Communities",Homes England,CAR LEASING - HIRE CHARGES,Corporate Allocations,ARNOLD CLARK FINANCE LIMITED,09/10/2023, 305.50 ,LAR,25101500,Passenger motor vehicles
"Department for Levelling Up, Housing and Communities",Homes England,CAR LEASING - HIRE CHARGES,Corporate Allocations,ARNOLD CLARK FINANCE LIMITED,26/10/2023," 3,336.48 ",LAR,25101500,Passenger motor vehicles
"Department for Levelling Up, Housing and Communities",Homes England,CAR LEASING - HIRE CHARGES,Corporate Allocations,ARNOLD CLARK FINANCE LIMITED,26/10/2023," 4,163.33 ",LAR,25101500,Passenger motor vehicles
"Department for Levelling Up, Housing and Communities",Homes England,LEGAL FEES (PROGRAMME - RDEL),Investment,BERWIN LEIGHTON PAISNER,04/10/2023," 1,207.20 ",LAR,80121600,Business law services
"Department for Levelling Up, Housing and Communities",Homes England,LEGAL FEES (PROGRAMME - RDEL),Development,BERWIN LEIGHTON PAISNER,09/10/2023, 381.60 ,LAR,80121600,Business law services
"Department for Levelling Up, Housing and Communities",Homes England,LEGAL FEES (PROGRAMME - RDEL),Investment,BERWIN LEIGHTON PAISNER,10/10/2023," 5,400.00 ",LAR,80121600,Business law services
"Department for Levelling Up, Housing and Communities",Homes England,LEGAL FEES (PROGRAMME - RDEL),Investment,BERWIN LEIGHTON PAISNER,16/10/2023," 26,160.00 ",LAR,80121600,Business law services
"Department for Levelling Up, Housing and Communities",Homes England,LEGAL FEES (PROGRAMME - RDEL),Investment,BERWIN LEIGHTON PAISNER,26/10/2023, 888.00 ,LAR,80121600,Business law services
"Department for Levelling Up, Housing and Communities",Homes England,MISC PROFESSIONAL FEES,Chief Customer Office,BROWNE JACOBSON LLP,05/10/2023," 3,343.68 ",LAR,80121600,Business law services
"Department for Levelling Up, Housing and Communities",Homes England,MISC PROFESSIONAL FEES,Chief Customer Office,BROWNE JACOBSON LLP,05/10/2023," 2,616.00 ",LAR,80121600,Business law services
"Department for Levelling Up, Housing and Communities",Homes England,MISC PROFESSIONAL FEES,Chief Customer Office,BROWNE JACOBSON LLP,05/10/2023," 1,140.00 ",LAR,80121600,Business law services
"Department for Levelling Up, Housing and Communities",Homes England,MISC PROFESSIONAL FEES,Chief Customer Office,BROWNE JACOBSON LLP,05/10/2023," 1,140.00 ",LAR,80121600,Business law services
"Department for Levelling Up, Housing and Communities",Homes England,MISC PROFESSIONAL FEES,Chief Customer Office,BROWNE JACOBSON LLP,05/10/2023, 427.20 ,LAR,80121600,Business law services
"Department for Levelling Up, Housing and Communities",Homes England,DISPOSAL FEES - LEGAL,"Markets, Partners & Places",BROWNE JACOBSON LLP,06/10/2023," 1,200.00 ",LAR,80121600,Business law services
"Department for Levelling Up, Housing and Communities",Homes England,LEGAL FEES (PROGRAMME - RDEL),Investment,BROWNE JACOBSON LLP,06/10/2023," 5,250.00 ",LAR,80121600,Business law services
"Department for Levelling Up, Housing and Communities",Homes England,LEGAL FEES (PROGRAMME - CDEL),Development,BROWNE JACOBSON LLP,10/10/2023," 2,400.00 ",LAR,80121600,Business law services
"Department for Levelling Up, Housing and Communities",Homes England,LEGAL FEES (PROGRAMME - RDEL),"Markets, Partners & Places",BROWNE JACOBSON LLP,11/10/2023," 1,560.00 ",LAR,80121600,Business law services
"Department for Levelling Up, Housing and Communities",Homes England,LEGAL FEES (PROGRAMME - RDEL),Development,BROWNE JACOBSON LLP,12/10/2023," 2,400.00 ",LAR,80121600,Business law services
"Department for Levelling Up, Housing and Communities",Homes England,LEGAL FEES (PROGRAMME - CDEL),Development,BROWNE JACOBSON LLP,17/10/2023," 3,673.80 ",LAR,80121600,Business law services
"Department for Levelling Up, Housing and Communities",Homes England,DISPOSAL FEES - LEGAL,"Markets, Partners & Places",BROWNE JACOBSON LLP,18/10/2023," 8,700.00 ",LAR,80121600,Business law services
"Department for Levelling Up, Housing and Communities",Homes England,LEGAL FEES (PROGRAMME - RDEL),Development,BROWNE JACOBSON LLP,20/10/2023," 4,279.67 ",LAR,80121600,Business law services
"Department for Levelling Up, Housing and Communities",Homes England,DISPOSAL FEES - LEGAL,Development,BROWNE JACOBSON LLP,24/10/2023," 1,500.00 ",LAR,80121600,Business law services
"Department for Levelling Up, Housing and Communities",Homes England,LEGAL FEES (PROGRAMME - RDEL),"Markets, Partners & Places",BROWNE JACOBSON LLP,24/10/2023," 2,111.06 ",LAR,80121600,Business law services
"Department for Levelling Up, Housing and Communities",Homes England,DISPOSAL FEES - LEGAL,"Markets, Partners & Places",BROWNE JACOBSON LLP,24/10/2023, 20.00 ,LAR,80121600,Business law services
"Department for Levelling Up, Housing and Communities",Homes England,DISPOSAL FEES - LEGAL,"Markets, Partners & Places",BROWNE JACOBSON LLP,24/10/2023," 3,737.02 ",LAR,80121600,Business law services
"Department for Levelling Up, Housing and Communities",Homes England,LEGAL FEES (PROGRAMME - CDEL),Investment,BROWNE JACOBSON LLP,24/10/2023," 15,413.30 ",LAR,80121600,Business law services
"Department for Levelling Up, Housing and Communities",Homes England,MISC PROFESSIONAL FEES,Chief Customer Office,BROWNE JACOBSON LLP,25/10/2023," 1,140.00 ",LAR,80121600,Business law services
"Department for Levelling Up, Housing and Communities",Homes England,MISC PROFESSIONAL FEES,Chief Customer Office,BROWNE JACOBSON LLP,25/10/2023," 1,229.52 ",LAR,80121600,Business law services
"Department for Levelling Up, Housing and Communities",Homes England,MISC PROFESSIONAL FEES,Chief Customer Office,BROWNE JACOBSON LLP,25/10/2023," 24,751.32 ",LAR,80121600,Business law services
"Department for Levelling Up, Housing and Communities",Homes England,MISC PROFESSIONAL FEES,Chief Customer Office,BROWNE JACOBSON LLP,25/10/2023," 1,140.00 ",LAR,80121600,Business law services
"Department for Levelling Up, Housing and Communities",Homes England,LEGAL FEES (PROGRAMME - RDEL),"Markets, Partners & Places",BROWNE JACOBSON LLP,27/10/2023, 3.60 ,LAR,80121600,Business law services
"Department for Levelling Up, Housing and Communities",Homes England,LEGAL FEES (PROGRAMME - RDEL),"Markets, Partners & Places",BROWNE JACOBSON LLP,27/10/2023," 4,410.77 ",LAR,80121600,Business law services
"Department for Levelling Up, Housing and Communities",Homes England,DISPOSAL FEES - LEGAL,"Markets, Partners & Places",BROWNE JACOBSON LLP,30/10/2023," 5,076.94 ",LAR,80121600,Business law services
"Department for Levelling Up, Housing and Communities",Homes England,LEGAL FEES (PROGRAMME - RDEL),"Markets, Partners & Places",BROWNE JACOBSON LLP,31/10/2023," 23,400.00 ",LAR,80121600,Business law services
"Department for Levelling Up, Housing and Communities",Homes England,LEGAL FEES (PROGRAMME - RDEL),"Markets, Partners & Places",BROWNE JACOBSON LLP,31/10/2023, 3.00 ,LAR,80121600,Business law services
"Department for Levelling Up, Housing and Communities",Homes England,LEGAL FEES (PROGRAMME - RDEL),"Markets, Partners & Places",BROWNE JACOBSON LLP,31/10/2023," 2,028.00 ",LAR,80121600,Business law services
"Department for Levelling Up, Housing and Communities",Homes England,LEGAL FEES (PROGRAMME - RDEL),Development,BROWNE JACOBSON LLP,31/10/2023," 2,737.20 ",LAR,80121600,Business law services
"Department for Levelling Up, Housing and Communities",Homes England,RI - MONIITORING SURVEYOR FEES,Investment,BUILDING DESIGN PARTNERSHIP,11/10/2023," 2,112.00 ",LAR,81101500,Civil Engineering
"Department for Levelling Up, Housing and Communities",Homes England,LUHBF Loans Additions,Investment,BLUEOAK ESTATES (CHESHIRE) LIMITED,19/10/2023," 78,895.09 ",MIC,None,Loans
"Department for Levelling Up, Housing and Communities",Homes England,PLANNING APPLICATIONS,Development,STANTEC UK LIMITED,03/10/2023," 4,800.00 ",LAR,80131800,Real estate management services
"Department for Levelling Up, Housing and Communities",Homes England,MISC PROFESSIONAL FEES,Development,STANTEC UK LIMITED,04/10/2023," 7,800.00 ",LAR,81101500,Civil Engineering
"Department for Levelling Up, Housing and Communities",Homes England,MISC PROFESSIONAL FEES,Development,STANTEC UK LIMITED,04/10/2023," 2,820.00 ",LAR,81101500,Civil Engineering
"Department for Levelling Up, Housing and Communities",Homes England,PLANNING APPLICATIONS,"Markets, Partners & Places",STANTEC UK LIMITED,20/10/2023," 26,262.78 ",LAR,80131800,Real estate management services
"Department for Levelling Up, Housing and Communities",Homes England,ENGINEERING FEES,Development,STANTEC UK LIMITED,26/10/2023," 1,205.40 ",LAR,81101500,Civil Engineering
"Department for Levelling Up, Housing and Communities",Homes England,ENGINEERING FEES,Development,STANTEC UK LIMITED,26/10/2023," 1,709.70 ",LAR,81101500,Civil Engineering
"Department for Levelling Up, Housing and Communities",Homes England,ENGINEERING CONSULTANTS,"Markets, Partners & Places",STANTEC UK LIMITED,31/10/2023," 1,511.92 ",LAR,81101500,Civil Engineering
"Department for Levelling Up, Housing and Communities",Homes England,PLANNING APPLICATIONS,Development,STANTEC UK LIMITED,31/10/2023," 7,200.00 ",LAR,80131800,Real estate management services
"Department for Levelling Up, Housing and Communities",Homes England,AGENCY STAFF,Cido,BADENOCH & CLARK,12/10/2023," 4,114.26 ",LAR,80111600,Temporary personnel services
"Department for Levelling Up, Housing and Communities",Homes England,AGENCY STAFF,Cido,BADENOCH & CLARK,12/10/2023," 4,114.26 ",LAR,80111600,Temporary personnel services
"Department for Levelling Up, Housing and Communities",Homes England,AGENCY STAFF,Cido,BADENOCH & CLARK,18/10/2023, 887.04 ,LAR,80111600,Temporary personnel services
"Department for Levelling Up, Housing and Communities",Homes England,AGENCY STAFF,Cido,BADENOCH & CLARK,18/10/2023," 1,478.40 ",LAR,80111600,Temporary personnel services
"Department for Levelling Up, Housing and Communities",Homes England,AGENCY STAFF,Cido,BADENOCH & CLARK,18/10/2023," 1,478.40 ",LAR,80111600,Temporary personnel services
"Department for Levelling Up, Housing and Communities",Homes England,AGENCY STAFF,Cido,BADENOCH & CLARK,18/10/2023," 1,478.40 ",LAR,80111600,Temporary personnel services
"Department for Levelling Up, Housing and Communities",Homes England,AGENCY STAFF,Cido,BADENOCH & CLARK,18/10/2023," 1,478.40 ",LAR,80111600,Temporary personnel services
"Department for Levelling Up, Housing and Communities",Homes England,AGENCY STAFF,Cido,BADENOCH & CLARK,31/10/2023," 4,114.26 ",LAR,80111600,Temporary personnel services
"Department for Levelling Up, Housing and Communities",Homes England,AGENCY STAFF,Cido,BADENOCH & CLARK,31/10/2023," 4,114.26 ",LAR,80111600,Temporary personnel services
"Department for Levelling Up, Housing and Communities",Homes England,AGENCY STAFF,Cido,BADENOCH & CLARK,31/10/2023," 4,114.26 ",LAR,80111600,Temporary personnel services
"Department for Levelling Up, Housing and Communities",Homes England,RI - MONIITORING SURVEYOR FEES,Investment,RIDER LEVETT BUCKNALL UK LTD,02/10/2023," 1,260.00 ",LAR,81101500,Civil Engineering
"Department for Levelling Up, Housing and Communities",Homes England,RI - MONIITORING SURVEYOR FEES,Investment,RIDER LEVETT BUCKNALL UK LTD,02/10/2023," 1,260.00 ",LAR,81101500,Civil Engineering
"Department for Levelling Up, Housing and Communities",Homes England,RI - MONIITORING SURVEYOR FEES,Investment,RIDER LEVETT BUCKNALL UK LTD,02/10/2023," 1,170.00 ",LAR,81101500,Civil Engineering
"Department for Levelling Up, Housing and Communities",Homes England,RI - MONIITORING SURVEYOR FEES,Investment,RIDER LEVETT BUCKNALL UK LTD,04/10/2023," 1,449.60 ",LAR,81101500,Civil Engineering
"Department for Levelling Up, Housing and Communities",Homes England,RI - MONIITORING SURVEYOR FEES,Investment,RIDER LEVETT BUCKNALL UK LTD,10/10/2023," 1,680.00 ",LAR,81101500,Civil Engineering
"Department for Levelling Up, Housing and Communities",Homes England,RI - MONIITORING SURVEYOR FEES,Investment,RIDER LEVETT BUCKNALL UK LTD,16/10/2023," 1,569.60 ",LAR,81101500,Civil Engineering
"Department for Levelling Up, Housing and Communities",Homes England,RI - MONIITORING SURVEYOR FEES,Investment,RIDER LEVETT BUCKNALL UK LTD,17/10/2023," 2,880.00 ",LAR,81101500,Civil Engineering
"Department for Levelling Up, Housing and Communities",Homes England,RI - MONIITORING SURVEYOR FEES,Investment,RIDER LEVETT BUCKNALL UK LTD,23/10/2023," 1,380.00 ",LAR,81101500,Civil Engineering
"Department for Levelling Up, Housing and Communities",Homes England,RI - MONIITORING SURVEYOR FEES,Investment,RIDER LEVETT BUCKNALL UK LTD,27/10/2023," 1,170.00 ",LAR,81101500,Civil Engineering
"Department for Levelling Up, Housing and Communities",Homes England,DISPOSAL FEES - PROPERTY AGENT,"Markets, Partners & Places",RIDER LEVETT BUCKNALL UK LTD,31/10/2023," 1,440.00 ",LAR,80131600,Sale of property and building
"Department for Levelling Up, Housing and Communities",Homes England,RI - MONIITORING SURVEYOR FEES,Investment,RIDER LEVETT BUCKNALL UK LTD,31/10/2023," 1,500.00 ",LAR,81101500,Civil Engineering
"Department for Levelling Up, Housing and Communities",Homes England,ST FUND LOANS ADDITIONS,Investment,BALLYMORE DEANSTON LIMITED,09/10/2023," 1,753,725.95 ",SMA,None,Loans
"Department for Levelling Up, Housing and Communities",Homes England,MISC PROFESSIONAL FEES,Development,BIG OLD HOUSE,16/10/2023," 8,833.56 ",MIC,80131800,Real estate management services
"Department for Levelling Up, Housing and Communities",Homes England,MISC PROFESSIONAL FEES,Development,BIDWELLS,18/10/2023," 1,424.47 ",LAR,80121600,Business law services
"Department for Levelling Up, Housing and Communities",Homes England,REV GRNTS TO LOCAL AUTHORITIES,Investment,BRISTOL CITY COUNCIL,30/10/2023," 13,108.73 ",PUB,None,Grants
"Department for Levelling Up, Housing and Communities",Homes England,REV GRNTS TO LOCAL AUTHORITIES,Investment,BRISTOL CITY COUNCIL,30/10/2023," 19,359.25 ",PUB,None,Grants
"Department for Levelling Up, Housing and Communities",Homes England,OTHER PROFESSIONAL FEES,Development,BALFOUR BEATTY,24/10/2023," 2,631.54 ",LAR,81101500,Civil Engineering
"Department for Levelling Up, Housing and Communities",Homes England,OCCUPIED RATES,Development,BROMSGROVE DISTRICT COUNCIL,06/10/2023," 6,056.00 ",PUB,80131500,Lease and rental of property or building
"Department for Levelling Up, Housing and Communities",Homes England,OTHER LTF LOAN ADDITIONS,Investment,BRITISH LAND,27/10/2023," 882,692.65 ",SMA,None,Loans
"Department for Levelling Up, Housing and Communities",Homes England,DISPOSAL FEES - PROPERTY AGENT,"Markets, Partners & Places",RICHARD BARBER & CO,30/10/2023," 1,428.00 ",SMA,80131600,Sale of property and building
"Department for Levelling Up, Housing and Communities",Homes England,ESTATE GENERAL MAINTENANCE,Development,NJL BOXGREEN,03/10/2023, 434.16 ,SMA,72101500,Building maintenance and repair services
"Department for Levelling Up, Housing and Communities",Homes England,LUHBF Loans Additions,Investment,BUNNYHOMES EAST ROAD KILKHAMPTON LTD,27/10/2023," 252,482.00 ",MIC,None,Loans
"Department for Levelling Up, Housing and Communities",Homes England,BUILDINGS-VACANT RATES,"Markets, Partners & Places",BEDFORD BOROUGH COUNCIL,09/10/2023,"-35,008.88 ",PUB,80131500,Lease and rental of property or building
"Department for Levelling Up, Housing and Communities",Homes England,OTHER PROFESSIONAL FEES,Development,BURY MBC,26/10/2023," 20,162.63 ",PUB,None,Contributions
"Department for Levelling Up, Housing and Communities",Homes England,LANDSCAPE MAINT-BUILT ESTATE,"Markets, Partners & Places",BRANCHING OUT TREE AND GARDEN SERVICES,16/10/2023," 1,440.00 ",MIC,72102900,Facility maintenance and repair services
"Department for Levelling Up, Housing and Communities",Homes England,TRAINING COURSES & CONFERENCES,Development,BIRMINGHAM CITY UNIVERSITY,18/10/2023," 4,545.00 ",LAR,86101800,In service training and manpower development
"Department for Levelling Up, Housing and Communities",Homes England,MISC PROFESSIONAL FEES,Chief Customer Office,BOSTON HALE LTD,02/10/2023," 50,529.37 ",SMA,80111600,Temporary personnel services
"Department for Levelling Up, Housing and Communities",Homes England,MISC PROFESSIONAL FEES,Chief Customer Office,BOSTON HALE LTD,02/10/2023," 49,846.43 ",SMA,80111600,Temporary personnel services
"Department for Levelling Up, Housing and Communities",Homes England,MISC PROFESSIONAL FEES,Chief Customer Office,BOSTON HALE LTD,05/10/2023," 53,625.42 ",SMA,80111600,Temporary personnel services
"Department for Levelling Up, Housing and Communities",Homes England,LUHBF Loans Additions,Investment,BROADFIELD ROCHESTER DEVELOPMENT LIMITED,09/10/2023," 215,008.82 ",LAR,None,Loans
"Department for Levelling Up, Housing and Communities",Homes England,RI - MONIITORING SURVEYOR FEES,Investment,BNP PARIBAS REAL ESTATE,03/10/2023," 1,020.00 ",LAR,81101500,Civil Engineering
"Department for Levelling Up, Housing and Communities",Homes England,RI - MONIITORING SURVEYOR FEES,Investment,BNP PARIBAS REAL ESTATE,04/10/2023," 1,080.00 ",LAR,81101500,Civil Engineering
"Department for Levelling Up, Housing and Communities",Homes England,RI - MONIITORING SURVEYOR FEES,Investment,BNP PARIBAS REAL ESTATE,23/10/2023, 840.00 ,LAR,81101500,Civil Engineering
"Department for Levelling Up, Housing and Communities",Homes England,RI - MONIITORING SURVEYOR FEES,Investment,BNP PARIBAS REAL ESTATE,23/10/2023, 840.00 ,LAR,81101500,Civil Engineering
"Department for Levelling Up, Housing and Communities",Homes England,RI - MONIITORING SURVEYOR FEES,Investment,BNP PARIBAS REAL ESTATE,23/10/2023, 840.00 ,LAR,81101500,Civil Engineering
"Department for Levelling Up, Housing and Communities",Homes England,MANAGEMENT COSTS,Development,BROOKFIELD CONTRACTING & FARMING LTD,09/10/2023, 180.00 ,SMA,80131800,Real estate management services
"Department for Levelling Up, Housing and Communities",Homes England,MANAGEMENT COSTS,Development,BROOKFIELD CONTRACTING & FARMING LTD,09/10/2023, 240.00 ,SMA,80131800,Real estate management services
"Department for Levelling Up, Housing and Communities",Homes England,EXTERNAL BUILDING MAINTENANCE,Development,BROOKFIELD CONTRACTING & FARMING LTD,11/10/2023, 435.00 ,SMA,72101500,Building maintenance and repair services
"Department for Levelling Up, Housing and Communities",Homes England,EXTERNAL BUILDING MAINTENANCE,Development,BROOKFIELD CONTRACTING & FARMING LTD,11/10/2023, 435.00 ,SMA,72101500,Building maintenance and repair services
"Department for Levelling Up, Housing and Communities",Homes England,FENCE MAINTENANCE,"Markets, Partners & Places",BROOKFIELD CONTRACTING & FARMING LTD,11/10/2023," 1,410.00 ",SMA,72102900,Facility maintenance and repair services
"Department for Levelling Up, Housing and Communities",Homes England,EXTERNAL BUILDING MAINTENANCE,"Markets, Partners & Places",BROOKFIELD CONTRACTING & FARMING LTD,11/10/2023," 1,716.00 ",SMA,72101500,Building maintenance and repair services
"Department for Levelling Up, Housing and Communities",Homes England,LANDSCAPE MAINT-BUILT ESTATE,"Markets, Partners & Places",BROOKFIELD CONTRACTING & FARMING LTD,11/10/2023," 1,040.78 ",SMA,72102900,Facility maintenance and repair services
"Department for Levelling Up, Housing and Communities",Homes England,ESTATE GENERAL MAINTENANCE,Development,BROOKFIELD CONTRACTING & FARMING LTD,13/10/2023," 2,772.00 ",SMA,72101500,Building maintenance and repair services
"Department for Levelling Up, Housing and Communities",Homes England,ESTATE GENERAL MAINTENANCE,Development,BROOKFIELD CONTRACTING & FARMING LTD,17/10/2023," 4,244.40 ",SMA,72101500,Building maintenance and repair services
"Department for Levelling Up, Housing and Communities",Homes England,LEGAL FEES (PROGRAMME - CDEL),Development,BOND DICKINSON LLP,02/10/2023," 2,753.28 ",LAR,80121600,Business law services
"Department for Levelling Up, Housing and Communities",Homes England,LEGAL FEES (PROGRAMME - RDEL),"Markets, Partners & Places",BOND DICKINSON LLP,03/10/2023," 6,841.20 ",LAR,80121600,Business law services
"Department for Levelling Up, Housing and Communities",Homes England,LEGAL FEES (PROGRAMME - RDEL),"Markets, Partners & Places",BOND DICKINSON LLP,04/10/2023," 1,854.96 ",LAR,80121600,Business law services
"Department for Levelling Up, Housing and Communities",Homes England,LEGAL FEES (PROGRAMME - RDEL),"Markets, Partners & Places",BOND DICKINSON LLP,04/10/2023," 3,493.20 ",LAR,80121600,Business law services
"Department for Levelling Up, Housing and Communities",Homes England,DISPOSAL FEES - LEGAL,Development,BOND DICKINSON LLP,30/10/2023," 1,194.00 ",LAR,80121600,Business law services
"Department for Levelling Up, Housing and Communities",Homes England,LEGAL FEES (PROGRAMME - RDEL),Development,BOND DICKINSON LLP,30/10/2023," 3,480.00 ",LAR,80121600,Business law services
"Department for Levelling Up, Housing and Communities",Homes England,MANAGEMENT COSTS,"Markets, Partners & Places",BERRYS,04/10/2023," 2,635.80 ",MED,80131800,Real estate management services
"Department for Levelling Up, Housing and Communities",Homes England,MANAGEMENT COSTS,"Markets, Partners & Places",BERRYS,04/10/2023," 1,080.00 ",MED,80131800,Real estate management services
"Department for Levelling Up, Housing and Communities",Homes England,CAP GRNTS TO PRIVATE SECTOR,Investment,27-35 DUKE ST MANAGEMENT CO LTD,19/10/2023," 495,425.00 ",MIC,None,Grants
"Department for Levelling Up, Housing and Communities",Homes England,CAP GRNTS TO PRIVATE SECTOR,Investment,ESTATE SERVICE (SOUTHERN) LTD,11/10/2023," 329,572.54 ",SMA,None,Grants
"Department for Levelling Up, Housing and Communities",Homes England,CAP GRNTS TO PRIVATE SECTOR,Investment,PREMIER ESTATES LIMITED,23/10/2023," 926,722.77 ",MED,None,Grants
"Department for Levelling Up, Housing and Communities",Homes England,CAP GRNTS TO PRIVATE SECTOR,Investment,CLIPPERS QUAY (SALFORD) MANAGEMENT COMPANY LT,26/10/2023," 62,669.23 ",MIC,None,Grants
"Department for Levelling Up, Housing and Communities",Homes England,CAP GRNTS TO PRIVATE SECTOR,Investment,VANTAGE QUAY MANAGEMENT COMPANY LIMITED,04/10/2023," 4,632,095.01 ",MIC,None,Grants
"Department for Levelling Up, Housing and Communities",Homes England,CAP GRNTS TO PRIVATE SECTOR,Investment,BLOCKLIVING LIMITED,23/10/2023," 261,486.47 ",SMA,None,Grants
"Department for Levelling Up, Housing and Communities",Homes England,CAP GRNTS TO PRIVATE SECTOR,Investment,THE MEWS & CUBE RTA COMPANY,05/10/2023," 1,200,295.95 ",MIC,None,Grants
"Department for Levelling Up, Housing and Communities",Homes England,CAP GRNTS PUB SECTOR EXCL L A,Investment,CENTRICK LIMITED,12/10/2023," 341,318.53 ",SMA,None,Grants
"Department for Levelling Up, Housing and Communities",Homes England,CAP GRNTS TO PRIVATE SECTOR,Investment,CHANEYS CHARTERED SURVEYORS & PROP MANAGERS,05/10/2023," 1,340,684.43 ",SMA,None,Grants
"Department for Levelling Up, Housing and Communities",Homes England,CAP GRNTS TO PRIVATE SECTOR,Investment,NINE WICKER MANAGEMENT LIMITED,02/10/2023," 938,439.99 ",MIC,None,Grants
"Department for Levelling Up, Housing and Communities",Homes England,CAP GRNTS TO PRIVATE SECTOR,Investment,BERKELEY SHAW REAL ESTATE,17/10/2023," 2,000,738.00 ",SMA,None,Grants
"Department for Levelling Up, Housing and Communities",Homes England,CAP GRNTS TO PRIVATE SECTOR,Investment,3SIXTY REAL ESTATE,13/10/2023," 508,850.20 ",SMA,None,Grants
"Department for Levelling Up, Housing and Communities",Homes England,CAP GRNTS TO PRIVATE SECTOR,Investment,3SIXTY REAL ESTATE,24/10/2023," 2,014,279.31 ",SMA,None,Grants
"Department for Levelling Up, Housing and Communities",Homes England,CAP GRNTS TO PRIVATE SECTOR,Investment,RMG Residential Management Group - Waterside,11/10/2023," 240,481.00 ",LAR,None,Grants
"Department for Levelling Up, Housing and Communities",Homes England,CAP GRNTS TO PRIVATE SECTOR,Investment,CENTRICK LIMITED,24/10/2023," 1,122,818.56 ",SMA,None,Grants
"Department for Levelling Up, Housing and Communities",Homes England,CAP GRNTS TO PRIVATE SECTOR,Investment,BNS LIMITED,19/10/2023," 263,726.75 ",SMA,None,Grants
"Department for Levelling Up, Housing and Communities",Homes England,CAP GRNTS TO PRIVATE SECTOR,Investment,MIRAGE PORT MARINE MANAGEMENT COMPANY LIMITED,02/10/2023," 2,660,789.50 ",MIC,None,Grants
"Department for Levelling Up, Housing and Communities",Homes England,CAP GRNTS TO PRIVATE SECTOR,Investment,THE SPECTRUM (HADLEIGH ROAD) MANAGEMENT,25/10/2023," 286,601.00 ",SMA,None,Grants
"Department for Levelling Up, Housing and Communities",Homes England,CAP GRNTS TO PRIVATE SECTOR,Investment,RESIDENTIAL MANAGEMENT GROUP LTD,20/10/2023," 98,005.00 ",LAR,None,Grants
"Department for Levelling Up, Housing and Communities",Homes England,CAP GRNTS TO PRIVATE SECTOR,Investment,ALEXANDER MAY PROPERTY LIMITED,19/10/2023," 205,839.18 ",SMA,None,Grants
"Department for Levelling Up, Housing and Communities",Homes England,CAP GRNTS TO PRIVATE SECTOR,Investment,LIV GROUP LIMITED,02/10/2023," 558,462.06 ",MED,None,Grants
"Department for Levelling Up, Housing and Communities",Homes England,CAP GRNTS TO PRIVATE SECTOR,Investment,RMG - Litmus Building,20/10/2023," 673,515.00 ",LAR,None,Grants
"Department for Levelling Up, Housing and Communities",Homes England,CAP GRNTS TO PRIVATE SECTOR,Investment,OSBORNE COURT RIGHT TO MANAGE COMPANY LTD,02/10/2023," 230,626.50 ",MIC,None,Grants
"Department for Levelling Up, Housing and Communities",Homes England,CAP GRNTS TO PRIVATE SECTOR,Investment,Home Management Group,31/10/2023," 382,608.00 ",SMA,None,Grants
"Department for Levelling Up, Housing and Communities",Homes England,TRAINING COURSES & CONFERENCES,Chief Customer Office,CHARTERED INSTITUTE OF PUBLIC RELATIONS,25/10/2023, 420.00 ,LAR,86101800,In service training and manpower development
"Department for Levelling Up, Housing and Communities",Homes England,RI - MONIITORING SURVEYOR FEES,Investment,CAMPBELL REITH,04/10/2023," 2,280.00 ",MED,81101500,Civil Engineering
"Department for Levelling Up, Housing and Communities",Homes England,OTHER PROFESSIONAL FEES,Development,CAMPBELL REITH,04/10/2023," 12,170.68 ",MED,77101500,Environmental auditing
"Department for Levelling Up, Housing and Communities",Homes England,OTHER PROFESSIONAL FEES,Development,CAMPBELL REITH,04/10/2023," 11,205.24 ",MED,81101500,Civil Engineering
"Department for Levelling Up, Housing and Communities",Homes England,MISC PROFESSIONAL FEES,"Markets, Partners & Places",CAMPBELL REITH,06/10/2023," 2,209.15 ",MED,77101500,Environmental auditing
"Department for Levelling Up, Housing and Communities",Homes England,ENGINEERING FEES,Development,CAMPBELL REITH,09/10/2023," 33,052.57 ",MED,81101500,Civil Engineering
"Department for Levelling Up, Housing and Communities",Homes England,MASTERPLANNING FEES,"Markets, Partners & Places",CAMPBELL REITH,09/10/2023," 11,800.80 ",MED,81101500,Civil Engineering
"Department for Levelling Up, Housing and Communities",Homes England,ENGINEERING FEES,"Markets, Partners & Places",CAMPBELL REITH,11/10/2023," 3,300.00 ",MED,81101500,Civil Engineering
"Department for Levelling Up, Housing and Communities",Homes England,MISC PROFESSIONAL FEES,Development,CAMPBELL REITH,11/10/2023," 2,473.80 ",MED,81101500,Civil Engineering
"Department for Levelling Up, Housing and Communities",Homes England,MASTERPLANNING FEES,Development,CAMPBELL REITH,11/10/2023," 43,261.42 ",MED,81101500,Civil Engineering
"Department for Levelling Up, Housing and Communities",Homes England,OTHER PROFESSIONAL FEES,"Markets, Partners & Places",CAMPBELL REITH,12/10/2023," 1,783.44 ",MED,81101500,Civil Engineering
"Department for Levelling Up, Housing and Communities",Homes England,LANDSCAPE ARCHITECT FEES,Development,CAMPBELL REITH,12/10/2023," 2,567.23 ",MED,77101700,Environmental advisory services�
"Department for Levelling Up, Housing and Communities",Homes England,MASTERPLANNING FEES,Development,CAMPBELL REITH,13/10/2023," 2,400.00 ",MED,81101500,Civil Engineering
"Department for Levelling Up, Housing and Communities",Homes England,MASTERPLANNING FEES,Development,CAMPBELL REITH,13/10/2023," 2,400.00 ",MED,81101500,Civil Engineering
"Department for Levelling Up, Housing and Communities",Homes England,ENGINEERING FEES,"Markets, Partners & Places",CAMPBELL REITH,17/10/2023," 3,000.00 ",MED,81101500,Civil Engineering
"Department for Levelling Up, Housing and Communities",Homes England,ENGINEERING CONSULTANTS,"Markets, Partners & Places",CAMPBELL REITH,18/10/2023," 7,086.00 ",MED,81101500,Civil Engineering
"Department for Levelling Up, Housing and Communities",Homes England,MISC PROFESSIONAL FEES,"Markets, Partners & Places",CAMPBELL REITH,19/10/2023,"-1,500.00 ",MED,77101500,Environmental auditing
"Department for Levelling Up, Housing and Communities",Homes England,MISC PROFESSIONAL FEES,"Markets, Partners & Places",CAMPBELL REITH,20/10/2023," 1,260.00 ",MED,77101500,Environmental auditing
"Department for Levelling Up, Housing and Communities",Homes England,MASTERPLANNING FEES,Development,CAMPBELL REITH,20/10/2023," 26,801.64 ",MED,81101500,Civil Engineering
"Department for Levelling Up, Housing and Communities",Homes England,RI - MONIITORING SURVEYOR FEES,Investment,CAMPBELL REITH,23/10/2023," 1,320.00 ",MED,81101500,Civil Engineering
"Department for Levelling Up, Housing and Communities",Homes England,MASTERPLANNING FEES,Development,CAMPBELL REITH,24/10/2023," 52,639.99 ",MED,81101500,Civil Engineering
"Department for Levelling Up, Housing and Communities",Homes England,RI - MONIITORING SURVEYOR FEES,Investment,CAMPBELL REITH,26/10/2023," 1,740.00 ",MED,81101500,Civil Engineering
"Department for Levelling Up, Housing and Communities",Homes England,OTHER PROFESSIONAL FEES,Development,CAMPBELL REITH,30/10/2023," 18,200.12 ",MED,81101500,Civil Engineering
"Department for Levelling Up, Housing and Communities",Homes England,MISC PROFESSIONAL FEES,Development,CARTER JONAS,02/10/2023," 2,875.55 ",LAR,80131800,Real estate management services
"Department for Levelling Up, Housing and Communities",Homes England,MARKET RESEARCH FEES,"Markets, Partners & Places",CARTER JONAS,09/10/2023," 4,200.00 ",LAR,80141500,Market research
"Department for Levelling Up, Housing and Communities",Homes England,VALUATION FEES,Development,CARTER JONAS,09/10/2023," 2,904.00 ",LAR,80131800,Real estate management services
"Department for Levelling Up, Housing and Communities",Homes England,MISC PROFESSIONAL FEES,Cido,CARTER JONAS,09/10/2023," 10,935.00 ",LAR,80131800,Real estate management services
"Department for Levelling Up, Housing and Communities",Homes England,TRAINING COURSES & CONFERENCES,Development,CARTER JONAS,10/10/2023, 598.80 ,LAR,86101800,In service training and manpower development
"Department for Levelling Up, Housing and Communities",Homes England,PROPERTY SERVICES,Development,CARTER JONAS,11/10/2023," 2,220.00 ",LAR,80131800,Real estate management services
"Department for Levelling Up, Housing and Communities",Homes England,ENGINEERING CONSULTANTS,Development,CARTER JONAS,17/10/2023," 1,273.20 ",LAR,81101500,Civil Engineering
"Department for Levelling Up, Housing and Communities",Homes England,MISC PROFESSIONAL FEES,Development,CARTER JONAS,18/10/2023," 29,400.00 ",LAR,80131800,Real estate management services
"Department for Levelling Up, Housing and Communities",Homes England,MISC PROFESSIONAL FEES,"Markets, Partners & Places",CARTER JONAS,19/10/2023, 770.40 ,LAR,80131800,Real estate management services
"Department for Levelling Up, Housing and Communities",Homes England,MISC PROFESSIONAL FEES,Development,CARTER JONAS,19/10/2023," 7,154.10 ",LAR,80131800,Real estate management services
"Department for Levelling Up, Housing and Communities",Homes England,PROPERTY SERVICES,"Markets, Partners & Places",CARTER JONAS,24/10/2023," 9,000.00 ",LAR,80131800,Real estate management services
"Department for Levelling Up, Housing and Communities",Homes England,PROPERTY SERVICES,"Markets, Partners & Places",CARTER JONAS,31/10/2023," 1,260.00 ",LAR,80131800,Real estate management services
"Department for Levelling Up, Housing and Communities",Homes England,CORPORATION TAX,Corporate Resources,H M REVENUE & CUSTOMS,10/10/2023," 275,000.00 ",PUB,None,Tax
"Department for Levelling Up, Housing and Communities",Homes England,ENGINEERING FEES,Development,CADENT GAS LIMITED,26/10/2023," 3,363.36 ",LAR,81101500,Civil Engineering
"Department for Levelling Up, Housing and Communities",Homes England,BUILDINGS-GAS,Development,CORONA ENERGY,02/10/2023," 1,266.77 ",LAR,83101600,Oil and gas utilities
"Department for Levelling Up, Housing and Communities",Homes England,BUILDINGS-ELECTRICITY,Development,CORONA ENERGY,04/10/2023," 2,699.68 ",LAR,83101800,Electric utilities
"Department for Levelling Up, Housing and Communities",Homes England,BUILDINGS-ELECTRICITY,Development,CORONA ENERGY,04/10/2023, 468.72 ,LAR,83101800,Electric utilities
"Department for Levelling Up, Housing and Communities",Homes England,BUILDINGS-ELECTRICITY,Development,CORONA ENERGY,09/10/2023, 360.47 ,LAR,83101800,Electric utilities
"Department for Levelling Up, Housing and Communities",Homes England,BUILDINGS-ELECTRICITY,Development,CORONA ENERGY,09/10/2023, 365.63 ,LAR,83101800,Electric utilities
"Department for Levelling Up, Housing and Communities",Homes England,DATA CENTRE,Cido,CROWN HOSTING DATA CENTRES LIMITED,10/10/2023,"-1,728.64 ",SMA,81112000,Data Services
"Department for Levelling Up, Housing and Communities",Homes England,DATA CENTRE,Cido,CROWN HOSTING DATA CENTRES LIMITED,10/10/2023,-864.31 ,SMA,81112000,Data Services
"Department for Levelling Up, Housing and Communities",Homes England,DATA CENTRE,Cido,CROWN HOSTING DATA CENTRES LIMITED,10/10/2023," 1,860.00 ",SMA,81112000,Data Services
"Department for Levelling Up, Housing and Communities",Homes England,DATA CENTRE,Cido,CROWN HOSTING DATA CENTRES LIMITED,10/10/2023," 2,881.87 ",SMA,81112000,Data Services
"Department for Levelling Up, Housing and Communities",Homes England,DATA CENTRE,Cido,CROWN HOSTING DATA CENTRES LIMITED,10/10/2023," 1,296.84 ",SMA,81112000,Data Services
"Department for Levelling Up, Housing and Communities",Homes England,DATA CENTRE,Cido,CROWN HOSTING DATA CENTRES LIMITED,10/10/2023," 3,613.39 ",SMA,81112000,Data Services
"Department for Levelling Up, Housing and Communities",Homes England,DATA CENTRE,Cido,CROWN HOSTING DATA CENTRES LIMITED,30/10/2023," 1,860.00 ",SMA,81112000,Data Services
"Department for Levelling Up, Housing and Communities",Homes England,DATA CENTRE,Cido,CROWN HOSTING DATA CENTRES LIMITED,30/10/2023," 2,882.09 ",SMA,81112000,Data Services
"Department for Levelling Up, Housing and Communities",Homes England,DATA CENTRE,Cido,CROWN HOSTING DATA CENTRES LIMITED,30/10/2023," 1,296.95 ",SMA,81112000,Data Services
"Department for Levelling Up, Housing and Communities",Homes England,ESTATE GENERAL MAINTENANCE,Development,CHAFFIN WORKS,11/10/2023, 999.60 ,MED,72101500,Building maintenance and repair services
"Department for Levelling Up, Housing and Communities",Homes England,ESTATE GENERAL MAINTENANCE,Development,CHAFFIN WORKS,20/10/2023, 379.99 ,MED,72101500,Building maintenance and repair services
"Department for Levelling Up, Housing and Communities",Homes England,ESTATE GENERAL MAINTENANCE,Development,CHAFFIN WORKS,31/10/2023, 999.60 ,MED,72101500,Building maintenance and repair services
"Department for Levelling Up, Housing and Communities",Homes England,ESTATE GENERAL MAINTENANCE,Development,CHAFFIN WORKS,31/10/2023," 1,233.84 ",MED,72101500,Building maintenance and repair services
"Department for Levelling Up, Housing and Communities",Homes England,MISC PROFESSIONAL FEES,Cido,Civica UK Limited,03/10/2023," 10,800.00 ",LAR,43231500,Business function specific software
"Department for Levelling Up, Housing and Communities",Homes England,MISC PROFESSIONAL FEES,Cido,Civica UK Limited,03/10/2023," 6,810.00 ",LAR,43231500,Business function specific software
"Department for Levelling Up, Housing and Communities",Homes England,TRAINING COURSES & CONFERENCES,"Markets, Partners & Places",CIVIL SERVICE COLLEGE LTD,17/10/2023," 2,427.60 ",SMA,86101800,In service training and manpower development
"Department for Levelling Up, Housing and Communities",Homes England,TRAINING COURSES & CONFERENCES,"Markets, Partners & Places",CIVIL SERVICE COLLEGE LTD,18/10/2023, 606.90 ,SMA,86101800,In service training and manpower development
"Department for Levelling Up, Housing and Communities",Homes England,CONTRACT WORKS,Development,CAMBRIDGE ARCHAEOLOGY UNIT,02/10/2023," 15,128.40 ",LAR,72141500,Land preparation services
"Department for Levelling Up, Housing and Communities",Homes England,CONTRACT WORKS,Development,CAMBRIDGE ARCHAEOLOGY UNIT,31/10/2023," 37,664.40 ",LAR,72141500,Land preparation services
"Department for Levelling Up, Housing and Communities",Homes England,RENT PAYABLE,Development,COMBINED PROPERTY CONTROL,23/10/2023," 106,500.00 ",SMA,80131500,Lease and rental of property or building
"Department for Levelling Up, Housing and Communities",Homes England,CAP GRNTS TO LOCAL AUTHORITIES,Investment,CUMBERLAND COUNCIL,24/10/2023," 3,917,757.30 ",PUB,None,Grants
"Department for Levelling Up, Housing and Communities",Homes England,RI - MONIITORING SURVEYOR FEES,Investment,COLLIERS INTERNATIONAL PROPERTY CONSULTANTS,03/10/2023," 4,200.00 ",LAR,81101500,Civil Engineering
"Department for Levelling Up, Housing and Communities",Homes England,VALUATION FEES,Development,COLLIERS INTERNATIONAL PROPERTY CONSULTANTS,05/10/2023," 11,580.00 ",LAR,80131800,Real estate management services
"Department for Levelling Up, Housing and Communities",Homes England,MANAGEMENT COSTS,Development,COLLIERS INTERNATIONAL PROPERTY CONSULTANTS,10/10/2023," 8,268.96 ",LAR,80131800,Real estate management services
"Department for Levelling Up, Housing and Communities",Homes England,PROF FEES LOANS CAPITALISED,Investment,COLLIERS INTERNATIONAL PROPERTY CONSULTANTS,10/10/2023," 2,430.00 ",LAR,81101500,Civil Engineering
"Department for Levelling Up, Housing and Communities",Homes England,SERVICE CHARGE,Development,COLLIERS INTERNATIONAL PROPERTY CONSULTANTS,16/10/2023," 2,110.59 ",LAR,80131500,Lease and rental of property or building
"Department for Levelling Up, Housing and Communities",Homes England,PROPERTY SERVICES,"Markets, Partners & Places",COLLIERS INTERNATIONAL PROPERTY CONSULTANTS,31/10/2023," 11,700.00 ",LAR,80131800,Real estate management services
"Department for Levelling Up, Housing and Communities",Homes England,CONTRACT WORKS,"Markets, Partners & Places",COGNITION LAND & WATER,12/10/2023," 616,178.08 ",SMA,72141500,Land preparation services
"Department for Levelling Up, Housing and Communities",Homes England,AHP HOMEBUY AGENTS FEES,Investment,CLARKE WILLMOTT LLP,02/10/2023," 3,360.00 ",LAR,80121600,Business law services
"Department for Levelling Up, Housing and Communities",Homes England,LEGAL FEES (PROGRAMME - CDEL),Development,CLARKE WILLMOTT LLP,04/10/2023," 2,597.53 ",LAR,80121600,Business law services
"Department for Levelling Up, Housing and Communities",Homes England,LEGAL FEES (PROGRAMME - CDEL),Development,CLARKE WILLMOTT LLP,04/10/2023," 2,382.60 ",LAR,80121600,Business law services
"Department for Levelling Up, Housing and Communities",Homes England,LEGAL FEES (PROGRAMME - RDEL),Investment,CLARKE WILLMOTT LLP,09/10/2023, 780.00 ,LAR,80121600,Business law services
"Department for Levelling Up, Housing and Communities",Homes England,LEGAL FEES (PROGRAMME - RDEL),Investment,CLARKE WILLMOTT LLP,10/10/2023, 600.00 ,LAR,80121600,Business law services
"Department for Levelling Up, Housing and Communities",Homes England,MISC PROFESSIONAL FEES,Investment,CLARKE WILLMOTT LLP,23/10/2023, 720.00 ,LAR,80121600,Business law services
"Department for Levelling Up, Housing and Communities",Homes England,LEGAL FEES (PROGRAMME - CDEL),Development,CLARKE WILLMOTT LLP,31/10/2023," 2,827.20 ",LAR,80121600,Business law services
"Department for Levelling Up, Housing and Communities",Homes England,CLEANING,Chief Operating Officer,CHURCHILL CONTRACT SERVICES LTD,06/10/2023," 1,880.77 ",SMA,76111500,General building and office cleaining and maintenance services
"Department for Levelling Up, Housing and Communities",Homes England,PACKAGE MAINTENANCE & SUBSCRIP,Cido,CDW LIMITED UK,05/10/2023," 45,051.95 ",LAR,81112300,Computer hardware maintenance and support
"Department for Levelling Up, Housing and Communities",Homes England,CAP GRNTS TO LOCAL AUTHORITIES,Investment,CENTRAL BEDFORDSHIRE COUNCIL,26/10/2023," 1,259,931.00 ",PUB,None,Grants
"Department for Levelling Up, Housing and Communities",Homes England,CAP GRNTS TO LOCAL AUTHORITIES,Investment,CHESHIRE EAST BOROUGH COUNCIL,26/10/2023," 200,155.68 ",PUB,None,Grants
"Department for Levelling Up, Housing and Communities",Homes England,SECURITY,Development,C.M.A. (NEMESIS) LTD,03/10/2023, 780.00 ,SMA,92121500,Guard services
"Department for Levelling Up, Housing and Communities",Homes England,ESTATE GENERAL MAINTENANCE,Development,C.M.A. (NEMESIS) LTD,18/10/2023, 414.00 ,SMA,72101500,Building maintenance and repair services
"Department for Levelling Up, Housing and Communities",Homes England,SECURITY,Development,C.M.A. (NEMESIS) LTD,31/10/2023, 390.00 ,SMA,92121500,Guard services
"Department for Levelling Up, Housing and Communities",Homes England,LUHBF Loans Additions,Investment,94 CHINBROOK ROAD LIMITED,13/10/2023," 24,955.40 ",MIC,None,Loans
"Department for Levelling Up, Housing and Communities",Homes England,ESTATE GENERAL MAINTENANCE,Development,COUNTRYWIDE GROUNDS MAINTENANCE LTD,30/10/2023, 573.60 ,LAR,72101500,Building maintenance and repair services
"Department for Levelling Up, Housing and Communities",Homes England,OTHER PROFESSIONAL FEES,Development,CWC GROUP,25/10/2023," 440,585.63 ",MED,None,Contributions
"Department for Levelling Up, Housing and Communities",Homes England,EXTERNAL BUILDING MAINTENANCE,"Markets, Partners & Places",C-ELECT ASSOCIATES LIMITED,16/10/2023, 315.00 ,SMA,72101500,Building maintenance and repair services
"Department for Levelling Up, Housing and Communities",Homes England,EXTERNAL BUILDING MAINTENANCE,"Markets, Partners & Places",C-ELECT ASSOCIATES LIMITED,30/10/2023, 480.00 ,SMA,72101500,Building maintenance and repair services
"Department for Levelling Up, Housing and Communities",Homes England,MISC PROFESSIONAL FEES,"Markets, Partners & Places",CADENCE INNOVA LTD,31/10/2023," 68,277.00 ",MED,80111600,Temporary personnel services
"Department for Levelling Up, Housing and Communities",Homes England,RI - MONIITORING SURVEYOR FEES,Investment,CB RICHARD ELLIS,25/10/2023," 3,600.00 ",LAR,81101500,Civil Engineering
"Department for Levelling Up, Housing and Communities",Homes England,ESTATE GENERAL MAINTENANCE,"Markets, Partners & Places",CHANNEL ENGINEERING LTD,13/10/2023," 1,922.40 ",SMA,72101500,Building maintenance and repair services
"Department for Levelling Up, Housing and Communities",Homes England,ESTATE GENERAL MAINTENANCE,Development,CHANNEL ENGINEERING LTD,13/10/2023, 666.00 ,SMA,72101500,Building maintenance and repair services
"Department for Levelling Up, Housing and Communities",Homes England,ROADS AND CAR PARKS,Development,CHANNEL ENGINEERING LTD,20/10/2023," 1,124.28 ",SMA,72101500,Building maintenance and repair services
"Department for Levelling Up, Housing and Communities",Homes England,ROADS AND CAR PARKS,Development,CHANNEL ENGINEERING LTD,20/10/2023," 1,494.00 ",SMA,72101500,Building maintenance and repair services
"Department for Levelling Up, Housing and Communities",Homes England,ESTATE GENERAL MAINTENANCE,"Markets, Partners & Places",CHANNEL ENGINEERING LTD,20/10/2023, 898.20 ,SMA,72101500,Building maintenance and repair services
"Department for Levelling Up, Housing and Communities",Homes England,ESTATE GENERAL MAINTENANCE,"Markets, Partners & Places",CHANNEL ENGINEERING LTD,20/10/2023," 2,842.80 ",SMA,72101500,Building maintenance and repair services
"Department for Levelling Up, Housing and Communities",Homes England,FENCE MAINTENANCE,Development,CHANNEL ENGINEERING LTD,20/10/2023, 203.52 ,SMA,72102900,Facility maintenance and repair services
"Department for Levelling Up, Housing and Communities",Homes England,FENCE MAINTENANCE,Development,CHANNEL ENGINEERING LTD,20/10/2023, 960.00 ,SMA,72102900,Facility maintenance and repair services
"Department for Levelling Up, Housing and Communities",Homes England,FENCE MAINTENANCE,"Markets, Partners & Places",CHANNEL ENGINEERING LTD,30/10/2023, 736.80 ,SMA,72102900,Facility maintenance and repair services
"Department for Levelling Up, Housing and Communities",Homes England,FENCE MAINTENANCE,"Markets, Partners & Places",CHANNEL ENGINEERING LTD,30/10/2023," 1,890.00 ",SMA,72102900,Facility maintenance and repair services
"Department for Levelling Up, Housing and Communities",Homes England,TRAINING COURSES & CONFERENCES,Corporate Resources,CABINET OFFICE HM SHARED SERVICES,19/10/2023," 6,100.00 ",PUB,86101800,In service training and manpower development
"Department for Levelling Up, Housing and Communities",Homes England,ESTATE GENERAL MAINTENANCE,Development,EQUANS FM LIMITED,05/10/2023," 7,074.43 ",LAR,72101500,Building maintenance and repair services
"Department for Levelling Up, Housing and Communities",Homes England,PLANNED PREVENTATIVE MAINT CON,Chief Operating Officer,EQUANS FM LIMITED,26/10/2023," 4,342.12 ",LAR,72102900,Facility maintenance and repair services
"Department for Levelling Up, Housing and Communities",Homes England,PLANNED PREVENTATIVE MAINT CON,Chief Operating Officer,EQUANS FM LIMITED,26/10/2023," 3,998.72 ",LAR,72102900,Facility maintenance and repair services
"Department for Levelling Up, Housing and Communities",Homes England,PLANNED PREVENTATIVE MAINT CON,Chief Operating Officer,EQUANS FM LIMITED,26/10/2023, 600.47 ,LAR,72102900,Facility maintenance and repair services
"Department for Levelling Up, Housing and Communities",Homes England,PLANNED PREVENTATIVE MAINT CON,Chief Operating Officer,EQUANS FM LIMITED,26/10/2023," 1,274.39 ",LAR,72102900,Facility maintenance and repair services
"Department for Levelling Up, Housing and Communities",Homes England,PLANNED PREVENTATIVE MAINT CON,Chief Operating Officer,EQUANS FM LIMITED,26/10/2023, 360.82 ,LAR,72102900,Facility maintenance and repair services
"Department for Levelling Up, Housing and Communities",Homes England,PLANNED PREVENTATIVE MAINT CON,Chief Operating Officer,EQUANS FM LIMITED,26/10/2023, 541.08 ,LAR,72102900,Facility maintenance and repair services
"Department for Levelling Up, Housing and Communities",Homes England,FURNITURE & EQUIPMENT-MAINT,Chief Operating Officer,EQUANS FM LIMITED,26/10/2023," 3,507.84 ",LAR,72102900,Facility maintenance and repair services
"Department for Levelling Up, Housing and Communities",Homes England,FURNITURE & EQUIPMENT-MAINT,Chief Operating Officer,EQUANS FM LIMITED,26/10/2023, 556.87 ,LAR,72102900,Facility maintenance and repair services
"Department for Levelling Up, Housing and Communities",Homes England,CLEANING,Chief Operating Officer,EQUANS FM LIMITED,26/10/2023, 448.50 ,LAR,76111500,General building and office cleaining and maintenance services
"Department for Levelling Up, Housing and Communities",Homes England,PLANNED PREVENTATIVE MAINT CON,Chief Operating Officer,EQUANS FM LIMITED,26/10/2023, 544.32 ,LAR,72102900,Facility maintenance and repair services
"Department for Levelling Up, Housing and Communities",Homes England,FURNITURE & EQUIPMENT-MAINT,Chief Operating Officer,EQUANS FM LIMITED,26/10/2023, 255.70 ,LAR,72102900,Facility maintenance and repair services
"Department for Levelling Up, Housing and Communities",Homes England,FURNITURE & EQUIPMENT-MAINT,Chief Operating Officer,EQUANS FM LIMITED,26/10/2023, 264.28 ,LAR,72102900,Facility maintenance and repair services
"Department for Levelling Up, Housing and Communities",Homes England,LEGAL FEES (PROGRAMME - RDEL),Investment,MILLS & REEVE,04/10/2023," 1,500.00 ",LAR,80121600,Business law services
"Department for Levelling Up, Housing and Communities",Homes England,LEGAL FEES (PROGRAMME - CDEL),Development,MILLS & REEVE,04/10/2023," 8,209.80 ",LAR,80121600,Business law services
"Department for Levelling Up, Housing and Communities",Homes England,LEGAL FEES (PROGRAMME - CDEL),Investment,MILLS & REEVE,09/10/2023," 2,461.20 ",LAR,80121600,Business law services
"Department for Levelling Up, Housing and Communities",Homes England,LEGAL FEES (PROGRAMME - RDEL),Investment,MILLS & REEVE,09/10/2023," 6,765.60 ",LAR,80121600,Business law services
"Department for Levelling Up, Housing and Communities",Homes England,LEGAL FEES (PROGRAMME - RDEL),Investment,MILLS & REEVE,09/10/2023," 1,824.00 ",LAR,80121600,Business law services
"Department for Levelling Up, Housing and Communities",Homes England,LEGAL FEES (PROGRAMME - RDEL),Investment,MILLS & REEVE,10/10/2023," 2,425.74 ",LAR,80121600,Business law services
"Department for Levelling Up, Housing and Communities",Homes England,LEGAL FEES (PROGRAMME - RDEL),Development,MILLS & REEVE,11/10/2023," 3,000.00 ",LAR,80121600,Business law services
"Department for Levelling Up, Housing and Communities",Homes England,LEGAL FEES (PROGRAMME - RDEL),Investment,MILLS & REEVE,12/10/2023," 15,648.00 ",LAR,80121600,Business law services
"Department for Levelling Up, Housing and Communities",Homes England,LEGAL FEES (PROGRAMME - RDEL),Investment,MILLS & REEVE,13/10/2023," 4,812.02 ",LAR,80121600,Business law services
"Department for Levelling Up, Housing and Communities",Homes England,LEGAL FEES (PROGRAMME - RDEL),Investment,MILLS & REEVE,18/10/2023," 3,600.00 ",LAR,80121600,Business law services
"Department for Levelling Up, Housing and Communities",Homes England,LEGAL FEES (PROGRAMME - RDEL),Investment,MILLS & REEVE,23/10/2023," 1,500.00 ",LAR,80121600,Business law services
"Department for Levelling Up, Housing and Communities",Homes England,LEGAL FEES (PROGRAMME - RDEL),Investment,MILLS & REEVE,25/10/2023," 2,407.62 ",LAR,80121600,Business law services
"Department for Levelling Up, Housing and Communities",Homes England,LEGAL FEES (PROGRAMME - RDEL),Investment,MILLS & REEVE,25/10/2023," 9,072.00 ",LAR,80121600,Business law services
"Department for Levelling Up, Housing and Communities",Homes England,LEGAL FEES (PROGRAMME - RDEL),Investment,MILLS & REEVE,25/10/2023," 12,744.00 ",LAR,80121600,Business law services
"Department for Levelling Up, Housing and Communities",Homes England,LEGAL FEES (PROGRAMME - RDEL),Investment,MILLS & REEVE,25/10/2023," 369,000.00 ",LAR,80121600,Business law services
"Department for Levelling Up, Housing and Communities",Homes England,LEGAL FEES (PROGRAMME - RDEL),Investment,MILLS & REEVE,25/10/2023," 19,728.00 ",LAR,80121600,Business law services
"Department for Levelling Up, Housing and Communities",Homes England,LEGAL FEES (PROGRAMME - RDEL),Investment,MILLS & REEVE,25/10/2023," 13,176.00 ",LAR,80121600,Business law services
"Department for Levelling Up, Housing and Communities",Homes England,LEGAL FEES (PROGRAMME - CDEL),Development,MILLS & REEVE,31/10/2023," 2,299.32 ",LAR,80121600,Business law services
"Department for Levelling Up, Housing and Communities",Homes England,LEGAL FEES (PROGRAMME - CDEL),Development,MILLS & REEVE,31/10/2023," 11,041.44 ",LAR,80121600,Business law services
"Department for Levelling Up, Housing and Communities",Homes England,CAP GRNTS TO PRIVATE SECTOR,London,Rendall and Rittner Limited,06/10/2023," 133,560.00 ",LAR,None,Grants
"Department for Levelling Up, Housing and Communities",Homes England,CAP GRNTS TO PRIVATE SECTOR,Investment,Norwich Freehold Management Ltd,25/10/2023," 168,000.00 ",MIC,None,Grants
"Department for Levelling Up, Housing and Communities",Homes England,DATA CENTRE,Cido,OASIS UK NORTH LIMITED,10/10/2023, 907.55 ,LAR,43231500,Business function specific software
"Department for Levelling Up, Housing and Communities",Homes England,MISC PROFESSIONAL FEES,"Markets, Partners & Places",DRIVERS JONAS DELOITTE,10/10/2023," 30,861.60 ",LAR,80101500,Business and Corporate Management Consultation Services
"Department for Levelling Up, Housing and Communities",Homes England,MISC PROFESSIONAL FEES,"Markets, Partners & Places",DRIVERS JONAS DELOITTE,24/10/2023," 4,645.55 ",LAR,80101500,Business and Corporate Management Consultation Services
"Department for Levelling Up, Housing and Communities",Homes England,MISC PROFESSIONAL FEES,"Markets, Partners & Places",DRIVERS JONAS DELOITTE,27/10/2023," 28,343.28 ",LAR,80111600,Temporary personnel services
"Department for Levelling Up, Housing and Communities",Homes England,MISC PROFESSIONAL FEES,Corporate Resources,DELOITTE & TOUCHE,30/10/2023," 90,720.00 ",LAR,80101500,Business and Corporate Management Consultation Services
"Department for Levelling Up, Housing and Communities",Homes England,PROPERTY SERVICES,Development,CUSHMAN & WAKEFIELD DEBENHAM TIE LEUNG,02/10/2023," 5,033.78 ",LAR,80131800,Real estate management services
"Department for Levelling Up, Housing and Communities",Homes England,PROF FEES LOANS CAPITALISED,Investment,CUSHMAN & WAKEFIELD DEBENHAM TIE LEUNG,03/10/2023," 3,120.00 ",LAR,81101500,Civil Engineering
"Department for Levelling Up, Housing and Communities",Homes England,RI - MONIITORING SURVEYOR FEES,Investment,CUSHMAN & WAKEFIELD DEBENHAM TIE LEUNG,03/10/2023, 840.00 ,LAR,81101500,Civil Engineering
"Department for Levelling Up, Housing and Communities",Homes England,RI - MONIITORING SURVEYOR FEES,Investment,CUSHMAN & WAKEFIELD DEBENHAM TIE LEUNG,03/10/2023, 960.00 ,LAR,81101500,Civil Engineering
"Department for Levelling Up, Housing and Communities",Homes England,RI - MONIITORING SURVEYOR FEES,Investment,CUSHMAN & WAKEFIELD DEBENHAM TIE LEUNG,03/10/2023, 840.00 ,LAR,81101500,Civil Engineering
"Department for Levelling Up, Housing and Communities",Homes England,RI - MONIITORING SURVEYOR FEES,Investment,CUSHMAN & WAKEFIELD DEBENHAM TIE LEUNG,03/10/2023, 960.00 ,LAR,81101500,Civil Engineering
"Department for Levelling Up, Housing and Communities",Homes England,RI - MONIITORING SURVEYOR FEES,Investment,CUSHMAN & WAKEFIELD DEBENHAM TIE LEUNG,04/10/2023," 1,080.00 ",LAR,81101500,Civil Engineering
"Department for Levelling Up, Housing and Communities",Homes England,RI - MONIITORING SURVEYOR FEES,Investment,CUSHMAN & WAKEFIELD DEBENHAM TIE LEUNG,04/10/2023, 900.00 ,LAR,81101500,Civil Engineering
"Department for Levelling Up, Housing and Communities",Homes England,MISC PROFESSIONAL FEES,Development,CUSHMAN & WAKEFIELD DEBENHAM TIE LEUNG,04/10/2023," 1,486.45 ",LAR,77101500,Environmental auditing
"Department for Levelling Up, Housing and Communities",Homes England,ECONOMIC CONSULTANCY PANEL,Development,CUSHMAN & WAKEFIELD DEBENHAM TIE LEUNG,04/10/2023," 12,000.00 ",LAR,80131800,Real estate management services
"Department for Levelling Up, Housing and Communities",Homes England,MISC PROFESSIONAL FEES,Development,CUSHMAN & WAKEFIELD DEBENHAM TIE LEUNG,05/10/2023," 1,170.00 ",LAR,77101500,Environmental auditing
"Department for Levelling Up, Housing and Communities",Homes England,VALUATION FEES,Development,CUSHMAN & WAKEFIELD DEBENHAM TIE LEUNG,05/10/2023," 12,720.00 ",LAR,80131800,Real estate management services
"Department for Levelling Up, Housing and Communities",Homes England,MISC PROFESSIONAL FEES,Development,CUSHMAN & WAKEFIELD DEBENHAM TIE LEUNG,06/10/2023," 1,020.00 ",LAR,80131800,Real estate management services
"Department for Levelling Up, Housing and Communities",Homes England,PROPERTY SERVICES,"Markets, Partners & Places",CUSHMAN & WAKEFIELD DEBENHAM TIE LEUNG,10/10/2023," 12,000.00 ",LAR,80131800,Real estate management services
"Department for Levelling Up, Housing and Communities",Homes England,PROPERTY SERVICES,"Markets, Partners & Places",CUSHMAN & WAKEFIELD DEBENHAM TIE LEUNG,10/10/2023," 9,000.00 ",LAR,80131800,Real estate management services
"Department for Levelling Up, Housing and Communities",Homes England,MISC PROFESSIONAL FEES,Investment,CUSHMAN & WAKEFIELD DEBENHAM TIE LEUNG,10/10/2023," 20,268.24 ",LAR,80131800,Real estate management services
"Department for Levelling Up, Housing and Communities",Homes England,RI - MONIITORING SURVEYOR FEES,Investment,CUSHMAN & WAKEFIELD DEBENHAM TIE LEUNG,11/10/2023, 900.00 ,LAR,81101500,Civil Engineering
"Department for Levelling Up, Housing and Communities",Homes England,RI - MONIITORING SURVEYOR FEES,Investment,CUSHMAN & WAKEFIELD DEBENHAM TIE LEUNG,11/10/2023," 1,080.00 ",LAR,81101500,Civil Engineering
"Department for Levelling Up, Housing and Communities",Homes England,RI - MONIITORING SURVEYOR FEES,Investment,CUSHMAN & WAKEFIELD DEBENHAM TIE LEUNG,11/10/2023," 1,020.00 ",LAR,81101500,Civil Engineering
"Department for Levelling Up, Housing and Communities",Homes England,PROPERTY SERVICES,"Markets, Partners & Places",CUSHMAN & WAKEFIELD DEBENHAM TIE LEUNG,12/10/2023," 6,000.00 ",LAR,80131800,Real estate management services
"Department for Levelling Up, Housing and Communities",Homes England,RI - MONIITORING SURVEYOR FEES,Investment,CUSHMAN & WAKEFIELD DEBENHAM TIE LEUNG,13/10/2023, 900.00 ,LAR,81101500,Civil Engineering
"Department for Levelling Up, Housing and Communities",Homes England,MISC PROFESSIONAL FEES,Investment,CUSHMAN & WAKEFIELD DEBENHAM TIE LEUNG,16/10/2023," 4,800.00 ",LAR,80131800,Real estate management services
"Department for Levelling Up, Housing and Communities",Homes England,RI - MONIITORING SURVEYOR FEES,Investment,CUSHMAN & WAKEFIELD DEBENHAM TIE LEUNG,16/10/2023, 960.00 ,LAR,81101500,Civil Engineering
"Department for Levelling Up, Housing and Communities",Homes England,PROF FEES LOANS CAPITALISED,Investment,CUSHMAN & WAKEFIELD DEBENHAM TIE LEUNG,16/10/2023, 768.00 ,LAR,81101500,Civil Engineering
"Department for Levelling Up, Housing and Communities",Homes England,PROPERTY SERVICES,"Markets, Partners & Places",CUSHMAN & WAKEFIELD DEBENHAM TIE LEUNG,18/10/2023," 1,020.00 ",LAR,80131800,Real estate management services
"Department for Levelling Up, Housing and Communities",Homes England,PROPERTY SERVICES,"Markets, Partners & Places",CUSHMAN & WAKEFIELD DEBENHAM TIE LEUNG,18/10/2023," 1,020.00 ",LAR,80131800,Real estate management services
"Department for Levelling Up, Housing and Communities",Homes England,PROPERTY SERVICES,"Markets, Partners & Places",CUSHMAN & WAKEFIELD DEBENHAM TIE LEUNG,19/10/2023," 1,008.00 ",LAR,80131800,Real estate management services
"Department for Levelling Up, Housing and Communities",Homes England,RI - MONIITORING SURVEYOR FEES,Investment,CUSHMAN & WAKEFIELD DEBENHAM TIE LEUNG,23/10/2023, 900.00 ,LAR,81101500,Civil Engineering
"Department for Levelling Up, Housing and Communities",Homes England,RI - MONIITORING SURVEYOR FEES,Investment,CUSHMAN & WAKEFIELD DEBENHAM TIE LEUNG,23/10/2023, 900.00 ,LAR,81101500,Civil Engineering
"Department for Levelling Up, Housing and Communities",Homes England,MARKET RESEARCH FEES,"Markets, Partners & Places",CUSHMAN & WAKEFIELD DEBENHAM TIE LEUNG,24/10/2023," 18,000.00 ",LAR,80141500,Market research
"Department for Levelling Up, Housing and Communities",Homes England,MISC PROFESSIONAL FEES,"Markets, Partners & Places",CUSHMAN & WAKEFIELD DEBENHAM TIE LEUNG,25/10/2023," 3,000.00 ",LAR,80141500,Market research
"Department for Levelling Up, Housing and Communities",Homes England,MISC PROFESSIONAL FEES,"Markets, Partners & Places",CUSHMAN & WAKEFIELD DEBENHAM TIE LEUNG,27/10/2023," 10,350.00 ",LAR,80131800,Real estate management services
"Department for Levelling Up, Housing and Communities",Homes England,MISC PROFESSIONAL FEES,Investment,CUSHMAN & WAKEFIELD DEBENHAM TIE LEUNG,30/10/2023, 741.89 ,LAR,81101500,Civil Engineering
"Department for Levelling Up, Housing and Communities",Homes England,MISC PROFESSIONAL FEES,Chief Customer Office,DARWIN PRESS,03/10/2023, 840.00 ,SMA,44121600,Desk supplies
"Department for Levelling Up, Housing and Communities",Homes England,CONTRACT WORKS,Development,DSM DEMOLITION LIMITED,03/10/2023," 244,661.46 ",MED,72141500,Land preparation services
"Department for Levelling Up, Housing and Communities",Homes England,OTHER GRANTS-CAPITAL,Chief Customer Office,"DEPARTMENT FOR LEVELLING UP, HOUSING & COMMUN",31/10/2023," 1,191,532.86 ",PUB,None,Grants
"Department for Levelling Up, Housing and Communities",Homes England,RENT PAYABLE,Development,DERBY CITY COUNCIL,06/10/2023, 362.50 ,PUB,80131500,Lease and rental of property or building
"Department for Levelling Up, Housing and Communities",Homes England,HBF-IL Loans Additions,Investment,DAVIDSONS PROPERTIES LIMITED,11/10/2023," 779,133.45 ",MIC,None,Loans
"Department for Levelling Up, Housing and Communities",Homes England,TRAINING COURSES & CONFERENCES,Development,DNA COACH,13/10/2023," 4,464.00 ",SMA,86101800,In service training and manpower development
"Department for Levelling Up, Housing and Communities",Homes England,CAR LEASING - HIRE CHARGES,Corporate Allocations,ATHLON MOBILITY SERVICES UK LIMITED,30/10/2023," 3,197.47 ",SMA,25101500,Passenger motor vehicles
"Department for Levelling Up, Housing and Communities",Homes England,CAR LEASING - HIRE CHARGES,Corporate Allocations,ATHLON MOBILITY SERVICES UK LIMITED,30/10/2023," 4,439.38 ",SMA,25101500,Passenger motor vehicles
"Department for Levelling Up, Housing and Communities",Homes England,MISC PROFESSIONAL FEES,Chief Customer Office,DAVIES GROUP LTD,18/10/2023," 963,681.94 ",LAR,80131800,Real estate management services
"Department for Levelling Up, Housing and Communities",Homes England,STAFF RECRUITMENT COSTS,Chief Operating Officer,DDC LTD,19/10/2023, 36.00 ,MIC,80111700,Personnel Recruitment
"Department for Levelling Up, Housing and Communities",Homes England,STAFF RECRUITMENT COSTS,Chief Operating Officer,DDC LTD,19/10/2023, 676.68 ,MIC,80111700,Personnel Recruitment
"Department for Levelling Up, Housing and Communities",Homes England,STAFF RECRUITMENT COSTS,Chief Operating Officer,DDC LTD,19/10/2023, 270.00 ,MIC,80111700,Personnel Recruitment
"Department for Levelling Up, Housing and Communities",Homes England,STAFF RECRUITMENT COSTS,Chief Operating Officer,DDC LTD,19/10/2023," 1,837.03 ",MIC,80111700,Personnel Recruitment
"Department for Levelling Up, Housing and Communities",Homes England,CONTRACT WORKS,Development,Countryside Properties (UK) Limited,26/10/2023," 103,000.00 ",LAR,72103300,Infrastructure maintenance and repair services
"Department for Levelling Up, Housing and Communities",Homes England,ESTATE GENERAL MAINTENANCE,Development,DURHAM COUNTY COUNCIL,13/10/2023, 961.10 ,PUB,72101500,Building maintenance and repair services
"Department for Levelling Up, Housing and Communities",Homes England,LEGAL FEES (PROGRAMME - RDEL),Development,DWF LAW LLP,02/10/2023," 1,177.20 ",LAR,80121600,Business law services
"Department for Levelling Up, Housing and Communities",Homes England,DISPOSAL FEES - LEGAL,Development,DWF LAW LLP,03/10/2023," 4,701.60 ",LAR,80121600,Business law services
"Department for Levelling Up, Housing and Communities",Homes England,DISPOSAL FEES - LEGAL,Development,DWF LAW LLP,03/10/2023," 5,985.60 ",LAR,80121600,Business law services
"Department for Levelling Up, Housing and Communities",Homes England,DISPOSAL FEES - LEGAL,Development,DWF LAW LLP,03/10/2023, 900.00 ,LAR,80121600,Business law services
"Department for Levelling Up, Housing and Communities",Homes England,LEGAL FEES (PROGRAMME - CDEL),Development,DWF LAW LLP,06/10/2023," 3,113.41 ",LAR,80121600,Business law services
"Department for Levelling Up, Housing and Communities",Homes England,LEGAL FEES (PROGRAMME - CDEL),Development,DWF LAW LLP,06/10/2023," 2,159.40 ",LAR,80121600,Business law services
"Department for Levelling Up, Housing and Communities",Homes England,LEGAL FEES (PROGRAMME - CDEL),Development,DWF LAW LLP,06/10/2023," 5,103.00 ",LAR,80121600,Business law services
"Department for Levelling Up, Housing and Communities",Homes England,LEGAL FEES (PROGRAMME - CDEL),Development,DWF LAW LLP,06/10/2023," 2,662.20 ",LAR,80121600,Business law services
"Department for Levelling Up, Housing and Communities",Homes England,LEGAL FEES (PROGRAMME - RDEL),Development,DWF LAW LLP,09/10/2023, 128.00 ,LAR,80121600,Business law services
"Department for Levelling Up, Housing and Communities",Homes England,LEGAL FEES (PROGRAMME - RDEL),Development,DWF LAW LLP,09/10/2023," 1,375.12 ",LAR,80121600,Business law services
"Department for Levelling Up, Housing and Communities",Homes England,LEGAL FEES (PROGRAMME - CDEL),"Markets, Partners & Places",DWF LAW LLP,16/10/2023," 44,777.28 ",LAR,80121600,Business law services
"Department for Levelling Up, Housing and Communities",Homes England,LEGAL FEES (PROGRAMME - RDEL),Development,DWF LAW LLP,17/10/2023, 304.80 ,LAR,80121600,Business law services
"Department for Levelling Up, Housing and Communities",Homes England,LEGAL FEES (PROGRAMME - CDEL),"Markets, Partners & Places",DWF LAW LLP,17/10/2023," 1,080.00 ",LAR,80121600,Business law services
"Department for Levelling Up, Housing and Communities",Homes England,LEGAL FEES (ADMIN ONLY),Cido,DWF LAW LLP,18/10/2023, 396.00 ,LAR,80121600,Business law services
"Department for Levelling Up, Housing and Communities",Homes England,LEGAL FEES (PROGRAMME - CDEL),Development,DWF LAW LLP,19/10/2023," 1,325.46 ",LAR,80121600,Business law services
"Department for Levelling Up, Housing and Communities",Homes England,LEGAL FEES (PROGRAMME - CDEL),Development,DWF LAW LLP,19/10/2023," 1,570.80 ",LAR,80121600,Business law services
"Department for Levelling Up, Housing and Communities",Homes England,AGENCY STAFF,Chief Customer Office,DWF LAW LLP,20/10/2023, 522.00 ,LAR,80111600,Temporary personnel services
"Department for Levelling Up, Housing and Communities",Homes England,LEGAL FEES (PROGRAMME - CDEL),Development,DWF LAW LLP,24/10/2023, 500.00 ,LAR,80121600,Business law services
"Department for Levelling Up, Housing and Communities",Homes England,STAMP DUTY,Development,DWF LAW LLP,24/10/2023," 481,988.00 ",LAR,80121600,Business law services
"Department for Levelling Up, Housing and Communities",Homes England,COST OF ACQUISITION,Development,DWF LAW LLP,24/10/2023," 1,549,766.00 ",LAR,80121600,Business law services
"Department for Levelling Up, Housing and Communities",Homes England,COST OF ACQUISITION,Development,DWF LAW LLP,24/10/2023," 8,300,000.00 ",LAR,80121600,Business law services
"Department for Levelling Up, Housing and Communities",Homes England,LEGAL FEES (PROGRAMME - RDEL),Development,DWF LAW LLP,25/10/2023," 10,422.48 ",LAR,80121600,Business law services
"Department for Levelling Up, Housing and Communities",Homes England,LEGAL FEES (PROGRAMME - CDEL),Development,DWF LAW LLP,30/10/2023," 9,919.56 ",LAR,80121600,Business law services
"Department for Levelling Up, Housing and Communities",Homes England,LEGAL FEES (PROGRAMME - RDEL),Development,DWF LAW LLP,30/10/2023," 1,200.00 ",LAR,80121600,Business law services
"Department for Levelling Up, Housing and Communities",Homes England,LEGAL FEES (PROGRAMME - CDEL),"Markets, Partners & Places",DWF LAW LLP,30/10/2023," 5,000.00 ",LAR,80121600,Business law services
"Department for Levelling Up, Housing and Communities",Homes England,DISPOSAL FEES - LEGAL,Development,DWF LAW LLP,31/10/2023," 1,818.00 ",LAR,80121600,Business law services
"Department for Levelling Up, Housing and Communities",Homes England,LEGAL FEES (PROGRAMME - RDEL),"Markets, Partners & Places",DWF LAW LLP,31/10/2023," 1,497.36 ",LAR,80121600,Business law services
"Department for Levelling Up, Housing and Communities",Homes England,LEGAL FEES (PROGRAMME - RDEL),Chief Customer Office,DENTONS UK & MIDDLES EAT LLP,16/10/2023," 35,573.56 ",LAR,80121600,Business law services
"Department for Levelling Up, Housing and Communities",Homes England,LEGAL FEES (PROGRAMME - RDEL),Chief Customer Office,DENTONS UK & MIDDLES EAT LLP,16/10/2023," 14,650.08 ",LAR,80121600,Business law services
"Department for Levelling Up, Housing and Communities",Homes England,DRAINS & SEWERS,"Markets, Partners & Places",DASON CONSTRUCTION LIMITED,12/10/2023," 8,918.16 ",MIC,72101500,Building maintenance and repair services
"Department for Levelling Up, Housing and Communities",Homes England,PLANNING APPLICATIONS,"Markets, Partners & Places",WSP ENVIRONMENT & INFRASTRUCTURE SOLUTIONS UK,02/10/2023," 22,845.60 ",LAR,80131800,Real estate management services
"Department for Levelling Up, Housing and Communities",Homes England,LANDSCAPE ARCHITECT FEES,Development,WSP ENVIRONMENT & INFRASTRUCTURE SOLUTIONS UK,05/10/2023," 1,200.00 ",LAR,77101700,Environmental advisory services�
"Department for Levelling Up, Housing and Communities",Homes England,LANDSCAPE ARCHITECT FEES,Development,WSP ENVIRONMENT & INFRASTRUCTURE SOLUTIONS UK,09/10/2023," 24,746.40 ",LAR,77101700,Environmental advisory services�
"Department for Levelling Up, Housing and Communities",Homes England,PLANNING APPLICATIONS,Development,WSP ENVIRONMENT & INFRASTRUCTURE SOLUTIONS UK,12/10/2023," 3,600.00 ",LAR,80131800,Real estate management services
"Department for Levelling Up, Housing and Communities",Homes England,PLANNING APPLICATIONS,Development,WSP ENVIRONMENT & INFRASTRUCTURE SOLUTIONS UK,23/10/2023," 32,256.29 ",LAR,80131800,Real estate management services
"Department for Levelling Up, Housing and Communities",Homes England,PLANNING APPLICATIONS,"Markets, Partners & Places",WSP ENVIRONMENT & INFRASTRUCTURE SOLUTIONS UK,25/10/2023," 28,890.00 ",LAR,80131800,Real estate management services
"Department for Levelling Up, Housing and Communities",Homes England,PROPERTY SERVICES,"Markets, Partners & Places",WSP ENVIRONMENT & INFRASTRUCTURE SOLUTIONS UK,26/10/2023," 4,665.79 ",LAR,80131800,Real estate management services
"Department for Levelling Up, Housing and Communities",Homes England,PROPERTY SERVICES,"Markets, Partners & Places",WSP ENVIRONMENT & INFRASTRUCTURE SOLUTIONS UK,26/10/2023," 2,500.56 ",LAR,80131800,Real estate management services
"Department for Levelling Up, Housing and Communities",Homes England,ENGINEERING CONSULTANTS,Development,WSP ENVIRONMENT & INFRASTRUCTURE SOLUTIONS UK,31/10/2023," 11,206.80 ",LAR,81101500,Civil Engineering
"Department for Levelling Up, Housing and Communities",Homes England,ENGINEERING FEES,Development,WSP ENVIRONMENT & INFRASTRUCTURE SOLUTIONS UK,31/10/2023," 3,288.00 ",LAR,81101500,Civil Engineering
"Department for Levelling Up, Housing and Communities",Homes England,SUNDRIES,Cido,ERNST & YOUNG,16/10/2023," 17,421.00 ",LAR,86101800,In service training and manpower development
"Department for Levelling Up, Housing and Communities",Homes England,BUILDINGS-ELECTRICITY,Development,Elevate FM Ltd,30/10/2023," 4,271.90 ",MIC,72101500,Building maintenance and repair services
"Department for Levelling Up, Housing and Communities",Homes England,BUILDINGS-ELECTRICITY,Development,Elevate FM Ltd,30/10/2023," 1,310.40 ",MIC,72101500,Building maintenance and repair services
"Department for Levelling Up, Housing and Communities",Homes England,OTHER PROFESSIONAL FEES,Development,EGNIOL CONSULTING LIMITED,17/10/2023," 2,838.00 ",SMA,81101500,Civil Engineering
"Department for Levelling Up, Housing and Communities",Homes England,OTHER PROFESSIONAL FEES,Development,EGNIOL CONSULTING LIMITED,31/10/2023," 2,400.00 ",SMA,81101500,Civil Engineering
"Department for Levelling Up, Housing and Communities",Homes England,REWARD & EXCELLENCE,Chief Operating Officer,EDENRED (UK GROUP) LTD,05/10/2023," 4,700.00 ",LAR,80111500,Human resource development
"Department for Levelling Up, Housing and Communities",Homes England,REWARD & EXCELLENCE,Chief Operating Officer,EDENRED (UK GROUP) LTD,12/10/2023," 4,525.00 ",LAR,80111500,Human resource development
"Department for Levelling Up, Housing and Communities",Homes England,ST FUND LOANS REPAYMENTS,Investment,EASINGWOLD DEVCO LLP,23/10/2023, 373.52 ,MIC,None,Loans
"Department for Levelling Up, Housing and Communities",Homes England,LEGAL FEES (PROGRAMME - RDEL),"Markets, Partners & Places",EVERSHEDS CLIENT ACCOUNT,02/10/2023," 74,335.87 ",LAR,80121600,Business law services
"Department for Levelling Up, Housing and Communities",Homes England,LEGAL FEES (PROGRAMME - RDEL),Development,EVERSHEDS CLIENT ACCOUNT,02/10/2023," 16,435.08 ",LAR,80121600,Business law services
"Department for Levelling Up, Housing and Communities",Homes England,LEGAL FEES (PROGRAMME - RDEL),Investment,EVERSHEDS CLIENT ACCOUNT,03/10/2023," 1,200.00 ",LAR,80121600,Business law services
"Department for Levelling Up, Housing and Communities",Homes England,DISPOSAL FEES - LEGAL,Investment,EVERSHEDS CLIENT ACCOUNT,04/10/2023," 3,892.10 ",LAR,80121600,Business law services
"Department for Levelling Up, Housing and Communities",Homes England,LEGAL FEES (PROGRAMME - RDEL),Investment,EVERSHEDS CLIENT ACCOUNT,05/10/2023, 696.00 ,LAR,80121600,Business law services
"Department for Levelling Up, Housing and Communities",Homes England,LEGAL FEES (PROGRAMME - CDEL),"Markets, Partners & Places",EVERSHEDS CLIENT ACCOUNT,06/10/2023," 21,612.00 ",LAR,80121600,Business law services
"Department for Levelling Up, Housing and Communities",Homes England,LEGAL FEES (PROGRAMME - CDEL),Development,EVERSHEDS CLIENT ACCOUNT,06/10/2023," 2,409.60 ",LAR,80121600,Business law services
"Department for Levelling Up, Housing and Communities",Homes England,DISPOSAL FEES - LEGAL,"Markets, Partners & Places",EVERSHEDS CLIENT ACCOUNT,09/10/2023," 9,682.80 ",LAR,80121600,Business law services
"Department for Levelling Up, Housing and Communities",Homes England,LEGAL FEES (PROGRAMME - CDEL),"Markets, Partners & Places",EVERSHEDS CLIENT ACCOUNT,09/10/2023," 28,243.54 ",LAR,80121600,Business law services
"Department for Levelling Up, Housing and Communities",Homes England,LEGAL FEES (ADMIN ONLY),Corporate Resources,EVERSHEDS CLIENT ACCOUNT,09/10/2023," 10,108.00 ",LAR,80121600,Business law services
"Department for Levelling Up, Housing and Communities",Homes England,LEGAL FEES (ADMIN ONLY),Corporate Resources,EVERSHEDS CLIENT ACCOUNT,09/10/2023," 50,791.68 ",LAR,80121600,Business law services
"Department for Levelling Up, Housing and Communities",Homes England,LEGAL FEES (ADMIN ONLY),Chief Operating Officer,EVERSHEDS CLIENT ACCOUNT,12/10/2023, 840.00 ,LAR,80121600,Business law services
"Department for Levelling Up, Housing and Communities",Homes England,HEALTH & SAFETY,Chief Operating Officer,EVERSHEDS CLIENT ACCOUNT,12/10/2023," 3,000.00 ",LAR,86101800,In service training and manpower development
"Department for Levelling Up, Housing and Communities",Homes England,LEGAL FEES (PROGRAMME - RDEL),Investment,EVERSHEDS CLIENT ACCOUNT,17/10/2023," 24,077.26 ",LAR,80121600,Business law services
"Department for Levelling Up, Housing and Communities",Homes England,LEGAL FEES (PROGRAMME - RDEL),Investment,EVERSHEDS CLIENT ACCOUNT,20/10/2023," 27,821.52 ",LAR,80121600,Business law services
"Department for Levelling Up, Housing and Communities",Homes England,LEGAL FEES (PROGRAMME - RDEL),Investment,EVERSHEDS CLIENT ACCOUNT,24/10/2023," 6,367.20 ",LAR,80121600,Business law services
"Department for Levelling Up, Housing and Communities",Homes England,LEGAL FEES (PROGRAMME - RDEL),"Markets, Partners & Places",EVERSHEDS CLIENT ACCOUNT,26/10/2023," 4,800.00 ",LAR,80121600,Business law services
"Department for Levelling Up, Housing and Communities",Homes England,DISPOSAL FEES - LEGAL,Development,EVERSHEDS CLIENT ACCOUNT,26/10/2023," 2,974.32 ",LAR,80121600,Business law services
"Department for Levelling Up, Housing and Communities",Homes England,LEGAL FEES (PROGRAMME - RDEL),"Markets, Partners & Places",EVERSHEDS CLIENT ACCOUNT,31/10/2023," 9,600.00 ",LAR,80121600,Business law services
"Department for Levelling Up, Housing and Communities",Homes England,MANAGEMENT COSTS,Development,EAST ANGLIA PROPERTY MANAGEMENT,09/10/2023, 565.00 ,MIC,80131800,Real estate management services
"Department for Levelling Up, Housing and Communities",Homes England,FENCE MAINTENANCE,Development,EAST ANGLIA PROPERTY MANAGEMENT,13/10/2023," 5,967.00 ",MIC,72102900,Facility maintenance and repair services
"Department for Levelling Up, Housing and Communities",Homes England,ESTATE GENERAL MAINTENANCE,Development,ECOLOGICAL LAND MANGEMENT LTD,17/10/2023, 768.00 ,SMA,72101500,Building maintenance and repair services
"Department for Levelling Up, Housing and Communities",Homes England,FENCE MAINTENANCE,Development,ECOLOGICAL LAND MANGEMENT LTD,26/10/2023," 1,314.00 ",SMA,72102900,Facility maintenance and repair services
"Department for Levelling Up, Housing and Communities",Homes England,ESTATE GENERAL MAINTENANCE,Development,ECOLOGICAL LAND MANGEMENT LTD,30/10/2023," 1,680.00 ",SMA,72101500,Building maintenance and repair services
"Department for Levelling Up, Housing and Communities",Homes England,ESTATE GENERAL MAINTENANCE,Development,ECOLOGICAL LAND MANGEMENT LTD,30/10/2023," 4,393.68 ",SMA,72101500,Building maintenance and repair services
"Department for Levelling Up, Housing and Communities",Homes England,MANAGEMENT COSTS,Development,ENERGY MATTERS NATIONWIDE LIMITED,10/10/2023, 960.00 ,MIC,80131800,Real estate management services
"Department for Levelling Up, Housing and Communities",Homes England,DATA CENTRE,Cido,EPATON LTD,16/10/2023," 29,811.39 ",SMA,43231500,Business function specific software
"Department for Levelling Up, Housing and Communities",Homes England,ENGINEERING FEES,Development,East Midlands Electrical Contractors LTD,26/10/2023, 720.00 ,SMA,81101500,Civil Engineering
"Department for Levelling Up, Housing and Communities",Homes England,ELECTRICITY,Chief Operating Officer,EDF ENERGY CUST FIELD SERVICES,27/10/2023, 292.80 ,LAR,83101800,Electric utilities
"Department for Levelling Up, Housing and Communities",Homes England,MISC PROFESSIONAL FEES,Chief Customer Office,Equiniti Gateway Limited,05/10/2023," 92,473.20 ",LAR,84121600,Funds transfer and clearance and exchange services
"Department for Levelling Up, Housing and Communities",Homes England,PROF FEES LOANS CAPITALISED,Investment,EDDISONS COMMERCIAL LIMITED,04/10/2023," 1,800.00 ",MED,81101500,Civil Engineering
"Department for Levelling Up, Housing and Communities",Homes England,RI - MONIITORING SURVEYOR FEES,Investment,EDDISONS COMMERCIAL LIMITED,05/10/2023," 1,050.00 ",MED,81101500,Civil Engineering
"Department for Levelling Up, Housing and Communities",Homes England,RI - SITE VALUATION FEES,Investment,EDDISONS COMMERCIAL LIMITED,10/10/2023," 3,600.00 ",MED,80131800,Real estate management services
"Department for Levelling Up, Housing and Communities",Homes England,RI - MONIITORING SURVEYOR FEES,Investment,EDDISONS COMMERCIAL LIMITED,11/10/2023, 870.00 ,MED,81101500,Civil Engineering
"Department for Levelling Up, Housing and Communities",Homes England,RI - MONIITORING SURVEYOR FEES,Investment,EDDISONS COMMERCIAL LIMITED,16/10/2023, 900.00 ,MED,81101500,Civil Engineering
"Department for Levelling Up, Housing and Communities",Homes England,RI - MONIITORING SURVEYOR FEES,Investment,EDDISONS COMMERCIAL LIMITED,16/10/2023, 900.00 ,MED,81101500,Civil Engineering
"Department for Levelling Up, Housing and Communities",Homes England,RI - MONIITORING SURVEYOR FEES,Investment,EDDISONS COMMERCIAL LIMITED,19/10/2023, 900.00 ,MED,81101500,Civil Engineering
"Department for Levelling Up, Housing and Communities",Homes England,RI - MONIITORING SURVEYOR FEES,Investment,EDDISONS COMMERCIAL LIMITED,31/10/2023, 900.00 ,MED,81101500,Civil Engineering
"Department for Levelling Up, Housing and Communities",Homes England,RI - MONIITORING SURVEYOR FEES,Investment,EDDISONS COMMERCIAL LIMITED,31/10/2023, 900.00 ,MED,81101500,Civil Engineering
"Department for Levelling Up, Housing and Communities",Homes England,OTHER PROFESSIONAL FEES,"Markets, Partners & Places",EAST HAMPSHIRE DISTRICT COUNCIL,03/10/2023," 67,111.44 ",PUB,80131800,Real estate management services
"Department for Levelling Up, Housing and Communities",Homes England,PLANNING FEES,Development,EAST HAMPSHIRE DISTRICT COUNCIL,09/10/2023, 650.00 ,PUB,80131800,Real estate management services
"Department for Levelling Up, Housing and Communities",Homes England,PROPERTY SERVICES,Development,SOCOTEC UK LIMITED,04/10/2023," 1,200.00 ",LAR,80131800,Real estate management services
"Department for Levelling Up, Housing and Communities",Homes England,PROPERTY SERVICES,Development,SOCOTEC UK LIMITED,05/10/2023," 1,356.00 ",LAR,80131800,Real estate management services
"Department for Levelling Up, Housing and Communities",Homes England,MASTERPLANNING FEES,"Markets, Partners & Places",AECOM LIMITED,03/10/2023," 4,411.20 ",LAR,81101500,Civil Engineering
"Department for Levelling Up, Housing and Communities",Homes England,ENGINEERING FEES,Development,AECOM LIMITED,04/10/2023," 18,803.11 ",LAR,81101500,Civil Engineering
"Department for Levelling Up, Housing and Communities",Homes England,QS FEES,Development,AECOM LIMITED,05/10/2023," 3,812.40 ",LAR,81101500,Civil Engineering
"Department for Levelling Up, Housing and Communities",Homes England,QS FEES,Development,AECOM LIMITED,06/10/2023," 7,076.83 ",LAR,81101500,Civil Engineering
"Department for Levelling Up, Housing and Communities",Homes England,RI - MONIITORING SURVEYOR FEES,Investment,AECOM LIMITED,09/10/2023," 2,100.00 ",LAR,81101500,Civil Engineering
"Department for Levelling Up, Housing and Communities",Homes England,ENVIRONMENTAL ASSESMENT,"Markets, Partners & Places",AECOM LIMITED,12/10/2023," 7,022.64 ",LAR,77101500,Environmental auditing
"Department for Levelling Up, Housing and Communities",Homes England,ENVIRONMENTAL ASSESMENT,"Markets, Partners & Places",AECOM LIMITED,12/10/2023,"-1,072.32 ",LAR,77101500,Environmental auditing
"Department for Levelling Up, Housing and Communities",Homes England,RI - MONIITORING SURVEYOR FEES,Investment,AECOM LIMITED,17/10/2023," 3,860.84 ",LAR,81101500,Civil Engineering
"Department for Levelling Up, Housing and Communities",Homes England,RI - MONIITORING SURVEYOR FEES,Investment,AECOM LIMITED,19/10/2023," 2,100.00 ",LAR,81101500,Civil Engineering
"Department for Levelling Up, Housing and Communities",Homes England,RI - MONIITORING SURVEYOR FEES,Investment,AECOM LIMITED,23/10/2023," 4,800.00 ",LAR,81101500,Civil Engineering
"Department for Levelling Up, Housing and Communities",Homes England,MASTERPLANNING FEES,"Markets, Partners & Places",AECOM LIMITED,30/10/2023, 600.00 ,LAR,81101500,Civil Engineering
"Department for Levelling Up, Housing and Communities",Homes England,OTHER PROFESSIONAL FEES,Development,AECOM LIMITED,30/10/2023," 2,411.64 ",LAR,70123000,Animal control and welfare services
"Department for Levelling Up, Housing and Communities",Homes England,PROPERTY SERVICES,Development,SAVILLS UK LIMITED,05/10/2023," 2,850.00 ",LAR,80131800,Real estate management services
"Department for Levelling Up, Housing and Communities",Homes England,MISC PROFESSIONAL FEES,Development,SAVILLS UK LIMITED,10/10/2023," 3,000.00 ",LAR,80131800,Real estate management services
"Department for Levelling Up, Housing and Communities",Homes England,RI - SITE VALUATION FEES,Investment,SAVILLS UK LIMITED,12/10/2023," 8,100.00 ",LAR,80131800,Real estate management services
"Department for Levelling Up, Housing and Communities",Homes England,DISPOSAL FEES - PROPERTY AGENT,Development,SAVILLS UK LIMITED,13/10/2023," 18,000.00 ",LAR,80131600,Sale of property and building
"Department for Levelling Up, Housing and Communities",Homes England,RI - SITE VALUATION FEES,Investment,SAVILLS UK LIMITED,19/10/2023," 4,620.00 ",LAR,80131800,Real estate management services
"Department for Levelling Up, Housing and Communities",Homes England,DISPOSAL FEES - PROPERTY AGENT,Development,SAVILLS UK LIMITED,25/10/2023," 2,400.00 ",LAR,80131600,Sale of property and building
"Department for Levelling Up, Housing and Communities",Homes England,DISPOSAL FEES - PROPERTY AGENT,Development,SAVILLS UK LIMITED,25/10/2023," 24,000.00 ",LAR,80131600,Sale of property and building
"Department for Levelling Up, Housing and Communities",Homes England,PROPERTY SERVICES,Development,SAVILLS UK LIMITED,30/10/2023," 4,800.00 ",LAR,80131800,Real estate management services
"Department for Levelling Up, Housing and Communities",Homes England,PLANNING FEES,Development,SAVILLS UK LIMITED,31/10/2023," 2,016.00 ",LAR,80131800,Real estate management services
"Department for Levelling Up, Housing and Communities",Homes England,PROPERTY SERVICES,Development,SAVILLS UK LIMITED,31/10/2023," 6,000.00 ",LAR,80131800,Real estate management services
"Department for Levelling Up, Housing and Communities",Homes England,VALUATION FEES,"Markets, Partners & Places",SAVILLS UK LIMITED,31/10/2023," 2,100.00 ",LAR,80131800,Real estate management services
"Department for Levelling Up, Housing and Communities",Homes England,MANAGEMENT COSTS,Development,R FOX T/A SOUTHCOAST MAINTENANCE,04/10/2023, 734.40 ,SMA,80131800,Real estate management services
"Department for Levelling Up, Housing and Communities",Homes England,BUILDINGS-CLEANING,Development,R FOX T/A SOUTHCOAST MAINTENANCE,04/10/2023, 756.00 ,SMA,76111500,General building and office cleaining and maintenance services
"Department for Levelling Up, Housing and Communities",Homes England,DRAINS & SEWERS,Development,R FOX T/A SOUTHCOAST MAINTENANCE,04/10/2023, 720.00 ,SMA,72101500,Building maintenance and repair services
"Department for Levelling Up, Housing and Communities",Homes England,BUILDINGS-CLEANING,Development,R FOX T/A SOUTHCOAST MAINTENANCE,06/10/2023, 840.00 ,SMA,76111500,General building and office cleaining and maintenance services
"Department for Levelling Up, Housing and Communities",Homes England,MANAGEMENT COSTS,Development,R FOX T/A SOUTHCOAST MAINTENANCE,06/10/2023, 420.00 ,SMA,80131800,Real estate management services
"Department for Levelling Up, Housing and Communities",Homes England,BUILDINGS-WATER,Development,R FOX T/A SOUTHCOAST MAINTENANCE,09/10/2023, 718.80 ,SMA,83101500,Water and sewer utilities
"Department for Levelling Up, Housing and Communities",Homes England,MANAGEMENT COSTS,Development,R FOX T/A SOUTHCOAST MAINTENANCE,09/10/2023, 549.60 ,SMA,80131800,Real estate management services
"Department for Levelling Up, Housing and Communities",Homes England,EXTERNAL BUILDING MAINTENANCE,Development,R FOX T/A SOUTHCOAST MAINTENANCE,10/10/2023, 336.00 ,SMA,72101500,Building maintenance and repair services
"Department for Levelling Up, Housing and Communities",Homes England,EXTERNAL BUILDING MAINTENANCE,Development,R FOX T/A SOUTHCOAST MAINTENANCE,10/10/2023, 504.00 ,SMA,72101500,Building maintenance and repair services
"Department for Levelling Up, Housing and Communities",Homes England,ESTATE GENERAL MAINTENANCE,Development,R FOX T/A SOUTHCOAST MAINTENANCE,31/10/2023, 432.00 ,SMA,72101500,Building maintenance and repair services
"Department for Levelling Up, Housing and Communities",Homes England,ESTATE GENERAL MAINTENANCE,Development,R FOX T/A SOUTHCOAST MAINTENANCE,31/10/2023, 612.00 ,SMA,72101500,Building maintenance and repair services
"Department for Levelling Up, Housing and Communities",Homes England,ESTATE GENERAL MAINTENANCE,Development,R FOX T/A SOUTHCOAST MAINTENANCE,31/10/2023, 552.00 ,SMA,72101500,Building maintenance and repair services
"Department for Levelling Up, Housing and Communities",Homes England,EXTERNAL BUILDING MAINTENANCE,Development,R FOX T/A SOUTHCOAST MAINTENANCE,31/10/2023, 252.00 ,SMA,72101500,Building maintenance and repair services
"Department for Levelling Up, Housing and Communities",Homes England,FENCE MAINTENANCE,Development,R FOX T/A SOUTHCOAST MAINTENANCE,31/10/2023, 168.00 ,SMA,72102900,Facility maintenance and repair services
"Department for Levelling Up, Housing and Communities",Homes England,FENCE MAINTENANCE,Development,R FOX T/A SOUTHCOAST MAINTENANCE,31/10/2023, 306.00 ,SMA,72102900,Facility maintenance and repair services
"Department for Levelling Up, Housing and Communities",Homes England,ESTATE GENERAL MAINTENANCE,Development,FALCON SECURITY,03/10/2023, 522.00 ,SMA,72101500,Building maintenance and repair services
"Department for Levelling Up, Housing and Communities",Homes England,SECURITY,Development,FALCON SECURITY,05/10/2023, 864.00 ,SMA,92121500,Guard services
"Department for Levelling Up, Housing and Communities",Homes England,SECURITY,Development,FALCON SECURITY,05/10/2023," 1,080.00 ",SMA,92121500,Guard services
"Department for Levelling Up, Housing and Communities",Homes England,FENCE MAINTENANCE,Development,FALCON SECURITY,11/10/2023, 696.00 ,SMA,72102900,Facility maintenance and repair services
"Department for Levelling Up, Housing and Communities",Homes England,FENCE MAINTENANCE,Development,FALCON SECURITY,11/10/2023," 4,992.00 ",SMA,72102900,Facility maintenance and repair services
"Department for Levelling Up, Housing and Communities",Homes England,ESTATE GENERAL MAINTENANCE,"Markets, Partners & Places",FALCON SECURITY,11/10/2023, 288.00 ,SMA,72101500,Building maintenance and repair services
"Department for Levelling Up, Housing and Communities",Homes England,ESTATE GENERAL MAINTENANCE,Development,FALCON SECURITY,11/10/2023," 1,848.00 ",SMA,72101500,Building maintenance and repair services
"Department for Levelling Up, Housing and Communities",Homes England,SECURITY,Development,FALCON SECURITY,12/10/2023," 2,804.40 ",SMA,92121500,Guard services
"Department for Levelling Up, Housing and Communities",Homes England,SECURITY,Development,FALCON SECURITY,12/10/2023," 3,111.60 ",SMA,92121500,Guard services
"Department for Levelling Up, Housing and Communities",Homes England,ESTATE GENERAL MAINTENANCE,Development,FIRST CHOICE CLEANING & MAINTENANCE LTD,05/10/2023," 1,080.00 ",MED,72101500,Building maintenance and repair services
"Department for Levelling Up, Housing and Communities",Homes England,ESTATE GENERAL MAINTENANCE,Development,FIRST CHOICE CLEANING & MAINTENANCE LTD,06/10/2023," 2,088.00 ",MED,72101500,Building maintenance and repair services
"Department for Levelling Up, Housing and Communities",Homes England,ESTATE GENERAL MAINTENANCE,Development,FIRST CHOICE CLEANING & MAINTENANCE LTD,06/10/2023," 3,480.00 ",MED,72101500,Building maintenance and repair services
"Department for Levelling Up, Housing and Communities",Homes England,ESTATE GENERAL MAINTENANCE,Development,FIRST CHOICE CLEANING & MAINTENANCE LTD,18/10/2023, 105.60 ,MED,72101500,Building maintenance and repair services
"Department for Levelling Up, Housing and Communities",Homes England,ESTATE GENERAL MAINTENANCE,Development,FIRST CHOICE CLEANING & MAINTENANCE LTD,18/10/2023, 141.37 ,MED,72101500,Building maintenance and repair services
"Department for Levelling Up, Housing and Communities",Homes England,ESTATE GENERAL MAINTENANCE,Development,FIRST CHOICE CLEANING & MAINTENANCE LTD,18/10/2023, 318.84 ,MED,72101500,Building maintenance and repair services
"Department for Levelling Up, Housing and Communities",Homes England,DRAINS & SEWERS,Development,FIRST CHOICE CLEANING & MAINTENANCE LTD,23/10/2023," 1,183.20 ",MED,72101500,Building maintenance and repair services
"Department for Levelling Up, Housing and Communities",Homes England,ESTATE GENERAL MAINTENANCE,Development,FIRST RESPONSE GROUP LTD,12/10/2023," 1,015.24 ",MED,92121500,Guard services
"Department for Levelling Up, Housing and Communities",Homes England,SECURITY,"Markets, Partners & Places",FIRST RESPONSE GROUP LTD,24/10/2023, 643.50 ,MED,92121500,Guard services
"Department for Levelling Up, Housing and Communities",Homes England,SECURITY,"Markets, Partners & Places",FIRST RESPONSE GROUP LTD,24/10/2023, 664.50 ,MED,92121500,Guard services
"Department for Levelling Up, Housing and Communities",Homes England,SECURITY,"Markets, Partners & Places",FIRST RESPONSE GROUP LTD,24/10/2023, 664.50 ,MED,92121500,Guard services
"Department for Levelling Up, Housing and Communities",Homes England,SECURITY,"Markets, Partners & Places",FIRST RESPONSE GROUP LTD,24/10/2023, 643.50 ,MED,92121500,Guard services
"Department for Levelling Up, Housing and Communities",Homes England,MISC PROFESSIONAL FEES,Chief Customer Office,THE FUEL GROUP LIMITED,02/10/2023," 3,300.00 ",SMA,80111600,Temporary personnel services
"Department for Levelling Up, Housing and Communities",Homes England,AGENCY STAFF,Chief Customer Office,THE FUEL GROUP LIMITED,09/10/2023," 3,960.00 ",SMA,80111600,Temporary personnel services
"Department for Levelling Up, Housing and Communities",Homes England,MISC PROFESSIONAL FEES,Chief Customer Office,THE FUEL GROUP LIMITED,09/10/2023," 1,980.00 ",SMA,80111600,Temporary personnel services
"Department for Levelling Up, Housing and Communities",Homes England,AGENCY STAFF,Cido,THE FUEL GROUP LIMITED,16/10/2023," 3,300.00 ",SMA,80111600,Temporary personnel services
"Department for Levelling Up, Housing and Communities",Homes England,AGENCY STAFF,Cido,THE FUEL GROUP LIMITED,20/10/2023," 3,300.00 ",SMA,80111600,Temporary personnel services
"Department for Levelling Up, Housing and Communities",Homes England,AGENCY STAFF,Cido,THE FUEL GROUP LIMITED,31/10/2023," 3,300.00 ",SMA,80111600,Temporary personnel services
"Department for Levelling Up, Housing and Communities",Homes England,MANAGEMENT COSTS,Development,P D Freeman,04/10/2023," 6,876.00 ",MIC,80131800,Real estate management services
